Workbook

Sheet GuiadeUso
E8: GUÍA DE USO - COTIZADOR PYME
C10: Este archivo debe usarse con versiones de Excel 2003 en adelante. Además, debe tener instalado el complemento de "Guardar como PDF para Office" en su PC.
C13: Si le apareciera el botón Habilitar Contenido, haga click en el mismo. Luego le aparecerá una ventana en la cual debe seleccionar la opción "Habilitar Macros" y dar click en Aceptar.
C17: REALIZAR COTIZACIÓN
C18: 1. Los campos de color celeste son obligatorios. Debe llenarlos sino no podrá continuar.
C19: 2. Ud. cuenta con 4 secciones:
C20: (i) Declaración de Bienes
C21: (ii) Coberturas
C22: (iii) Datos del Negocio
C23: (iv) Pago de Primas
C24: 3. Para obtener un archivo PDF de la Cotización de Seguro, debe presionar el botón: "COTIZACIÓN EN PDF"
C27: INGRESAR SOLICITUD
C28: 1. Los campos de color celeste son obligatorios. Debe llenarlos sino no podrá continuar.
C29: 2. Ud. cuenta con 6 secciones:
C30: (i) Datos Generales -> Informacion del Asegurado
C31: (ii) Datos Generales -> Informacion del Contratante
C32: (iii) Datos del Negocio (Datos vienen de la hoja Cotizador)
C33: (iv) Declaracion Jurada
C34: (v) Pago de Primas (Datos vienen de la hoja Cotizador)
C35: (vi) Datos del Corredor de Seguros
C36: 3. Para obtener un archivo PDF de la Solicitud de Seguro, debe presionar el botón: "SOLICITUD DE SEGURO EN PDF"
C39: SOLICITUD EN BLANCO
C40: 1.- Para imprimir una solicitud en blanco se presiona el botón: "SOLICITUD EN BLANCO"
C43: PARA EMISIÓN
C44: 1.- Enviar al buzon emisionrapida@pacifico.com.pe
C45: (I) Solicitud PDF firmada
C46: (ii) Slip de cotizacion

Sheet Panel
J27: =configuracion!$G$2 -> OCTUBRE 2021

Sheet Afiliación débito
AO1: Ir a Panel
C14: Modalidad de Pago
C15: Contratante
C17: Tipo de documento | L17: Número | Z17: Fecha | AF17: Importe máximo
AB18: dd/ | AC18: mm/ | AD18: aa
C20: Producto: Pyme
C22: Formato de pago del depósito inicial (*)
C24: A) TARJETA DE CRÉDITO
C26: Entidad | L26: VISA | R26: MASTERCARD | Z26: AMEX | AE26: DINNERS
C28: Número de tarjeta
C32: Fecha de Vencimiento
E34: / | N34: Importe | U34: . | AA34: Moneda
C35: mes | F35: año
C37: B) ABONO EN EFECTIVO EN LA CUENTA DE PACÍFICO SEGUROS
C38: (En las cuentas que a continuación se indican solo deberá abonarse el monto del depósito inicial)
C42: Autorización de débito automático para cobranzas futuras
C44: Como titular de la cuenta bancaria y/o tarjeta de crédito indicada en el presente formato, autorizo sin requerir visto ni confirmación posterior se realicen los cargos automáticos de las primas que resulten de la contratación de la(s) pólizas(s) solicitadas(s) en la cuenta bancaria y/o tarjeta de crédito indicada en la siguiente solicitud, extendiéndose a la tarjeta de crédito que el Banco re emita por renovación, pérdida o robo.
L48: Acepto | R48: No acepto
C50: A) TARJETA DE CRÉDITO
C52: Entidad | L52: VISA | R52: MASTERCARD | Z52: AMEX | AE52: DINNERS
C54: Número de tarjeta
C58: Fecha de Vencimiento
E60: / | N60: Importe | U60: .
C61: mes | F61: año
C63: Nota: Para las tarjetas Ripley Visa, se debe marcar VISA. Para las tarjetas Ripley Mastercard, se debe marcar Mastercard.
C65: B) CUENTA BANCARIA
C67: N° de Cuenta | K67: D | L67: C
Y68: Moneda: | AB68: Soles | AG68: Dólares
K69: 9 | L69: 10 | N69: 12 | O69: 13 | P69: 14
C71: BCP Cta. Cte. de Ahorros (14) | M71: Interbank Cta. Corriente (13) | Y71: Scotiabank Cta. Ahorros (12)
C73: BCP Cta. Corriente (13) | M73: Interbank Cta. De Ahorros (13) | Y73: Continental Cta. Corriente Nuevo (20)
C75: BCP Cta. Maestro (13) | M75: Scotiabank Cta. Corriente (12) | Y75: Continental Cta. Ahorro Nuevo (20)
C77: Nota: En caso de haber elegido una Cuenta Bancaria, favor llenar en “N° de Cuenta” hasta el número indicado en el paréntesis correspondiente. Para cuentas del Continental, los digitos de control van en los casilleros 9 y 10.
C80: LA ACEPTACIÓN DEL CONTRATANTE AUTORIZA A PACÍFICO SEGUROS CARGARLE EN SU TARJETA DE CRÉDITO O CUENTA, DE ESTAR ÉSTAS VENCIDAS HASTA 3 CUOTAS.
C83: (*) El depósito inicial será imputado a la(s) prima(s) de seguro en caso se apruebe(n) su(s) solicitud(es) de seguro. En caso de rechazo, la Compañía reembolsará al Solicitante el importe total del depósito inicial en la Cuenta Bancaria declarada para el Débito Automático para Cobranzas Futuras o extornará a la Tarjeta de Crédito de la cual se realizó el cargo del depósito inicial.
C87: PACÍFICO SEGUROS NO AUTORIZA A SU PERSONAL A RECIBIR SUMA ALGUNA DE DINERO EN FORMA PERSONAL. En este sentido, no se hace responsable por cualquier monto entregado al asesor o cualquier funcionario.
C90: EL CARGO EN TARJETA DE CRÉDITO SE EFECTUARÁ en moneda nacional de acuerdo al tipo de cambio del día de operación. Pacífico Seguros emitirá Facturas o boletas de venta. VISANET y Mastercard quedan excluidas de toda responsabilidad por la continuidad, cantidad y calidad de los bienes y/o servicios que Pacíficos Seguros se obliga a brindar al Usuario.

Sheet configuracion
G1: MES Y AÑO VIGENCIA | J1: DESCUENTO
D2: VARIABLES DE CONFIGURACIÓN | G2: OCTUBRE 2021 | J2: 0.15
D4: Asesor / Corredor | E4: Corredor

Sheet Cotizador
A1: 0
B2: ="Cotizador Seguro Multiriesgo Pyme " & configuracion!$G$2 -> Cotizador Seguro Multiriesgo Pyme OCTUBRE 2021
B4: Declaración de Bienes
H6: Local 1 | M6: Local 2 | R6: Local 3
C7: Tipo de Moneda: | D7: USD | F7: Endosado al Banco?: | I7: NO | N7: NO | S7: NO
F8: A quien está endosado?:
H9: Totales | I9: Endosado | M9: Totales | N9: Endosado | R9: Totales | S9: Endosado
C10: Edificio (sin considerar el valor del terreno)
C11: Instalaciones fijas
C12: Mobiliario y/o contenido propios del giro
C13: Existencias propias del giro del negocio
C14: Maquinaria propia del giro del negocio
C15: Equipos electrónicos propios del giro del negocio
C16: Lucro Cesante
C17: TOTAL VALOR DECLARADO (Máximo 2'000,000 USD por local) | H17: =+IF(OR(SUM(H10:H16)<=0,SUM(H10:H16)>2000000),"",SUM(H10:H16)) ->  | I17: =+IF(H17="","",IF(I7="NO","",(IF(SUM(I10:I15)>SUM(H10:H15),"",SUM(I10:I15))))) ->  | M17: =+IF(OR(SUM(M10:M16)<=0,SUM(M10:M16)>2000000),"",SUM(M10:M16)) ->  | N17: =+IF(M17="","",IF(N7="NO","",(IF(SUM(N10:N15)>SUM(M10:M15),"",SUM(N10:N15))))) ->  | R17: =+IF(OR(SUM(R10:R16)<=0,SUM(R10:R16)>2000000),"",SUM(R10:R16)) ->  | S17: =+IF(R17="","",IF(S7="NO","",(IF(SUM(S10:S15)>SUM(R10:R15),"",SUM(S10:S15))))) -> 
B21: Coberturas | AD21: =AD22 -> 2
H22: Local 1 | M22: Local 2 | R22: Local 3 | AD22: =PagodePrimasLocal1!AD21 -> 2
C23: Robo y/o Asalto | F23: SI | H23: Valor Declarado | I23: Suma Asegurada | K23: NO | M23: Valor Declarado | N23: Suma Asegurada | P23: NO | R23: Valor Declarado | S23: Suma Asegurada
C24: Instalaciones fijas | H24: =+IF(H17="","",IF(F23="NO","",IF(H11>0,H11,""))) ->  | I24: =+IF(H24="","",IF(H24>100000*CoberturasaElegirLocal1!$AC$5,100000*CoberturasaElegirLocal1!$AC$5,H24)) ->  | M24: =+IF(M17="","",IF(K23="NO","",IF(M11>0,M11,""))) ->  | N24: =+IF(M24="","",IF(M24>100000*CoberturasaElegirLocal2!$AC$5,100000*CoberturasaElegirLocal2!$AC$5,M24)) ->  | R24: =+IF(R17="","",IF(P23="NO","",IF(R11>0,R11,""))) ->  | S24: =+IF(R24="","",IF(R24>100000*CoberturasaElegirLocal3!$AC$5,100000*CoberturasaElegirLocal3!$AC$5,R24)) -> 
C25: Mobiliario y/o contenido propios del giro del negocio | H25: =+IF(H17="","",IF(F23="NO","",IF(H12>0,H12,""))) ->  | I25: =+IF(H25="","",IF(H25>100000*CoberturasaElegirLocal1!$AC$6,100000*CoberturasaElegirLocal1!$AC$6,H25)) ->  | M25: =+IF(M17="","",IF(K23="NO","",IF(M12>0,M12,""))) ->  | N25: =+IF(M25="","",IF(M25>100000*CoberturasaElegirLocal2!$AC$6,100000*CoberturasaElegirLocal2!$AC$6,M25)) ->  | R25: =+IF(R17="","",IF(P23="NO","",IF(R12>0,R12,""))) ->  | S25: =+IF(R25="","",IF(R25>100000*CoberturasaElegirLocal3!$AC$6,100000*CoberturasaElegirLocal3!$AC$6,R25)) -> 
C26: Existencias propias del giro del negocio | H26: =+IF(H17="","",IF(F23="NO","",IF(H13>0,H13,""))) ->  | I26: =+IF(H26="","",IF(H26>100000*CoberturasaElegirLocal1!$AC$7,100000*CoberturasaElegirLocal1!$AC$7,H26)) ->  | M26: =+IF(M17="","",IF(K23="NO","",IF(M13>0,M13,""))) ->  | N26: =+IF(M26="","",IF(M26>100000*CoberturasaElegirLocal2!$AC$7,100000*CoberturasaElegirLocal2!$AC$7,M26)) ->  | R26: =+IF(R17="","",IF(P23="NO","",IF(R13>0,R13,""))) ->  | S26: =+IF(R26="","",IF(R26>100000*CoberturasaElegirLocal3!$AC$7,100000*CoberturasaElegirLocal3!$AC$7,R26)) -> 
C27: Maquinaria propia del giro del negocio | H27: =+IF(H17="","",IF(F23="NO","",IF(H14>0,H14,""))) ->  | I27: =+IF(H27="","",IF(H27>100000*CoberturasaElegirLocal1!$AC$8,100000*CoberturasaElegirLocal1!$AC$8,H27)) ->  | M27: =+IF(M17="","",IF(K23="NO","",IF(M14>0,M14,""))) ->  | N27: =+IF(M27="","",IF(M27>100000*CoberturasaElegirLocal2!$AC$8,100000*CoberturasaElegirLocal2!$AC$8,M27)) ->  | R27: =+IF(R17="","",IF(P23="NO","",IF(R14>0,R14,""))) ->  | S27: =+IF(R27="","",IF(R27>100000*CoberturasaElegirLocal3!$AC$8,100000*CoberturasaElegirLocal3!$AC$8,R27)) -> 
C28: Equipo electrónico fijo | H28: =+IF(H17="","",IF(F23="NO","",IF(H15>0,H15,""))) ->  | I28: =+IF(H28="","",IF(H28>100000*CoberturasaElegirLocal1!$AC$9,100000*CoberturasaElegirLocal1!$AC$9,H28)) ->  | M28: =+IF(M17="","",IF(K23="NO","",IF(M15>0,M15,""))) ->  | N28: =+IF(M28="","",IF(M28>100000*CoberturasaElegirLocal2!$AC$9,100000*CoberturasaElegirLocal2!$AC$9,M28)) ->  | R28: =+IF(R17="","",IF(P23="NO","",IF(R15>0,R15,""))) ->  | S28: =+IF(R28="","",IF(R28>100000*CoberturasaElegirLocal3!$AC$9,100000*CoberturasaElegirLocal3!$AC$9,R28)) -> 
C29: Dinero y/o valores dentro del local (caja chica y/o caja registradora) | F29: SI | H29: --------- | I29: =+IF(CoberturasaElegirLocal1!$AB$7=0,"",IF(F29="NO","",IF(CoberturasaElegirLocal1!$AB$7<3000,CoberturasaElegirLocal1!$AB$7,3000))) ->  | K29: NO | M29: --------- | N29: =+IF(CoberturasaElegirLocal2!$AB$7=0,"",IF(K29="NO","",IF(CoberturasaElegirLocal2!$AB$7<3000,CoberturasaElegirLocal2!$AB$7,3000))) ->  | P29: NO | R29: --------- | S29: =+IF(CoberturasaElegirLocal3!$AB$7=0,"",IF(P29="NO","",IF(CoberturasaElegirLocal3!$AB$7<3000,CoberturasaElegirLocal3!$AB$7,3000))) -> 
C31: Dinero en Tránsito | F31: SI | H31: --------- | I31: =+IF(CoberturasaElegirLocal1!$AB$7=0,"",IF(F31="NO","",IF(CoberturasaElegirLocal1!$AB$7<3000,CoberturasaElegirLocal1!$AB$7,3000))) ->  | K31: NO | M31: --------- | N31: =+IF(CoberturasaElegirLocal2!$AB$7=0,"",IF(K31="NO","",IF(CoberturasaElegirLocal2!$AB$7<3000,CoberturasaElegirLocal2!$AB$7,3000))) ->  | P31: NO | R31: --------- | S31: =+IF(CoberturasaElegirLocal3!$AB$7=0,"",IF(P31="NO","",IF(CoberturasaElegirLocal3!$AB$7<3000,CoberturasaElegirLocal3!$AB$7,3000))) -> 
C33: Responsabilidad Civil | F33: SI | G33: Opción: | H33: 1 | I33: =IF(H17="","",IF(F33="NO","",IF(H33=1,50000,IF(H33=2,100000,IF(H33=3,200000,IF(H33=4,300000,500000)))))) ->  | K33: NO | M33: 1 | N33: =IF(M17="","",IF(K33="NO","",IF(M33=1,50000,IF(M33=2,100000,IF(M33=3,200000,IF(M33=4,300000,500000)))))) ->  | P33: NO | R33: 1 | S33: =IF(R17="","",IF(P33="NO","",IF(R33=1,50000,IF(R33=2,100000,IF(R33=3,200000,IF(R33=4,300000,500000)))))) -> 
C35: Equipo Electrónico
C36: Equipos electrónicos propios del giro del negocio | F36: NO | H36: =+IF(H17="","",IF(F36="NO","",IF(H15>0,H15,""))) ->  | I36: =+IF(H36="","",IF(H36>50000,50000,H36)) ->  | K36: NO | M36: =+IF(M17="","",IF(K36="NO","",IF(M15>0,M15,""))) ->  | N36: =+IF(M36="","",IF(M36>50000,50000,M36)) ->  | P36: NO | R36: =+IF(R17="","",IF(P36="NO","",IF(R15>0,R15,""))) ->  | S36: =+IF(R36="","",IF(R36>50000,50000,R36)) -> 
C37: Equipos móviles y portátiles fuera del predio limitado a laptops y/o notebooks | F37: NO | H37: =+IF(F37="NO","",IF(I36="","",IF(3000>I36,I36,3000))) ->  | I37: =+IF(H37="","",H37) ->  | K37: NO | M37: =+IF(K37="NO","",IF(N36="","",IF(3000>N36,N36,3000))) ->  | N37: =+IF(M37="","",M37) ->  | P37: NO | R37: =+IF(P37="NO","",IF(S36="","",IF(3000>S36,S36,3000))) ->  | S37: =+IF(R37="","",R37) -> 
C40: Rotura de Maquinaria | F40: NO | H40: =+IF(H17="","",IF(F40="NO","",IF(H14>0,H14,""))) ->  | I40: =+IF(H40="","",IF(H40>200000,200000,H40)) ->  | K40: NO | M40: =+IF(M17="","",IF(K40="NO","",IF(M14>0,M14,""))) ->  | N40: =+IF(M40="","",IF(M40>200000,200000,M40)) ->  | P40: NO | R40: =+IF(R17="","",IF(P40="NO","",IF(R14>0,R14,""))) ->  | S40: =+IF(R40="","",IF(R40>200000,200000,R40)) -> 
C44: Accidentes Colectivos | F44: NO | H44: Nº asegurados: | I44: =IF($F$44="SÍ",ACCO!$E$18,"") ->  | K44: NO | N44: =IF($K$44="SÍ",ACCO!$F$18,"") ->  | P44: NO | S44: =IF($P$44="SÍ",ACCO!$G$18,"") -> 
C46: Transporte nacional | F46: NO | H46: Movimiento Anual | I46: =IF($F$46="SÍ",CuestionarioTransporte!$D$24,"") -> 
B49: Datos del Negocio
B51: Actividad Realizada | H51: Dirección de los locales por asegurar:
I52: Local 1 | M52: Local 2 | Q52: Local 3
C53: Actividad y/o Giro: | H53: Departamento
C54: Local 1 | H54: Provincia
H55: Distrito
C56: Local 2 | H56: Dirección exacta del riesgo:*:
H57: Nro
C58: Local 3
B60: Tipo de Negocio
C61: Tipo:
C62: Local 1 | D62: Comercial y Servicios
C64: Local 2 | D64: Comercial y Servicios
C66: Local 3 | D66: Comercial y Servicios
B68: Uso del Local
C70: Ocupación:
C71: Local 1
C73: Local 2
C75: Local 3
B78: Pago de Primas
C80: Autorizaciones
D81: Documento Contratante
D82: Forma de pago | H82: Emitir Factura?
D83: Descuento de 15% por afiliación al débito automático y emisión de póliza electrónica
C85: Inicio de Vigencia y Pago
D87: Forma de pago | H87: Nro. Cuotas:
D88: Al Contado | H88: Inicio Vigencia Póliza:
D89: En cuotas
I90: Local 1 | K90: Local 2 | M90: Local 3 | P90: Total
H91: Prima Comercial | I91: =IF(E82="Débito Automático",PagodePrimasLocal1!$AH$10,IF(AND(PagodePrimasLocal1!$AD$21=1,I87=""),PagodePrimasLocal1!$AH$10,IF(I87="","----",PagodePrimasLocal1!$AH$10))) -> ---- | K91: =IF(E82="Débito Automático",PagodePrimasLocal2!$AH$10,IF(AND(PagodePrimasLocal2!$AD$21=1,I87=""),PagodePrimasLocal2!$AH$10,IF(I87="","----",PagodePrimasLocal2!$AH$10))) -> ---- | M91: =IF(E82="Débito Automático",PagodePrimasLocal3!$AH$10,IF(AND(PagodePrimasLocal3!$AD$21=1,I87=""),PagodePrimasLocal3!$AH$10,IF(I87="","----",PagodePrimasLocal3!$AH$10))) -> ---- | O91: Prima Comercial | P91: =SUM(I91,K91,M91) -> 0
H92: Intereses (*) | I92: =IF(E82="Débito Automático",0,IF(ISERROR(IF(I87="",0,(PagodePrimasLocal1!$AG$12-PagodePrimasLocal1!$AG$10)/1.18)),0,IF(I87="",0,(PagodePrimasLocal1!$AG$12-PagodePrimasLocal1!$AG$10)/1.18))) -> 0 | K92: =IF(E82="Débito Automático",0,IF(ISERROR(IF(I87="",0,(PagodePrimasLocal2!$AG$12-PagodePrimasLocal2!$AG$10)/1.18)),0,IF(I87="",0,(PagodePrimasLocal2!$AG$12-PagodePrimasLocal2!$AG$10)/1.18))) -> 0 | M92: =IF(E82="Débito Automático",0,IF(ISERROR(IF(I87="",0,(PagodePrimasLocal3!$AG$12-PagodePrimasLocal3!$AG$10)/1.18)),0,IF(I87="",0,(PagodePrimasLocal3!$AG$12-PagodePrimasLocal3!$AG$10)/1.18))) -> 0 | O92: Intereses (*) | P92: =SUM(I92,K92,M92) -> 0 | Q92: Dscto | R92: Total
H93: I.G.V. | I93: =SUM(I91:I92)*0.18 -> 0 | K93: =SUM(K91:K92)*0.18 -> 0 | M93: =SUM(M91:M92)*0.18 -> 0 | O93: I.G.V. | P93: =I93+K93+M93 -> 0 | Q93: 0.15 | R93: Final
H94: Total a Pagar | I94: =SUM(I91:I93) -> 0 | K94: =SUM(K91:K93) -> 0 | M94: =SUM(M91:M93) -> 0 | O94: Total a Pagar | P94: =I94+K94+M94 -> 0 | Q94: =IFERROR(IF($I$94-$I$94*$Q$93<120,0,$I$94*$Q$93)+IF($K$94-$K$94*$Q$93<120,0,$K$94*$Q$93)+IF($M$94-$M$94*$Q$93<120,0,$M$94*$Q$93),0) -> 0 | R94: =IFERROR(P94-Q94,0) -> 0
H95: Cuota | I95: =IFERROR(I94/$I$87,"") ->  | K95: =IFERROR(K94/$I$87,"") ->  | M95: =IFERROR(M94/$I$87,"") ->  | O95: Cuota | P95: =IFERROR(I95+K95+M95,"") ->  | Q95: =IFERROR(IF($I$94-$I$94*$Q$93<120,0,$I$95*$Q$93)+IF($K$94-$K$94*$Q$93<120,0,$K$95*$Q$93)+IF($M$94-$M$94*$Q$93<120,0,$M$95*$Q$93),0) -> 0 | R95: =IFERROR(P95-Q95,0) -> 0
C104: (*) Los intereses aplican para la forma de pago con Cupones y para los fraccionamientos en 6 y 10 cuotas. La TEA es de 17.5% para persona natural y de 12% para persona jurídica.
C112: Se deja constancia expresa que, a potestad de la Compañía, la aceptación final del riesgo por parte de ésta queda sujeta a la realización de la inspección o evaluación, por parte de nuestro Departamento de Ingeniería o la persona autorizada para tal efecto, para verificar el efectivo estado del riesgo, así como el estricto cumplimiento por parte del Asegurado de las garantías que a mérito de dicha inspección establezca el Departamento de Ingeniería de la Compañía.
B118: IMPORTANTE
C120: Aprobación de la solicitud de seguro
C121: PACÍFICO SEGUROS entregará la póliza de seguro al Contratante dentro del plazo de 15 días calendario de haber recibido la solicitud, si es que no es rechazada. No obstante, cuando corresponda, PACÍFICO SEGUROS se obliga a comunicar el rechazo de la solicitud dentro del plazo de 15 días calendario de recibida, salvo que PACÍFICO SEGUROS haya requerido información adicional y/u otros requerimientos adicionales, necesarios para la evaluación del riesgo, dentro del referido plazo. En este caso, el plazo para comunicar el rechazo se contará a partir de la recepción de la información completa solicitada y de cumplidos los requerimientos realizados por PACÍFICO SEGUROS. En el supuesto que el Contratante no complete la información solicitada por PACÍFICO SEGUROS y/o no cumpla con los requerimientos que PACÍFICO SEGUROS haya realizado, se considerará rechazada la solicitud.
C126: Medios de comunicación pactados: Escritos (correo electrónico o comunicaciones enviadas al domicilio físico) y telefónicas.
C128: Autorizo a PACÍFICO SEGUROS, a que en el caso de aprobar la presente solicitud, pueda enviar válidamente cualquier comunicación y/o notiﬁcación vinculada con este seguro durante su vigencia por cualquiera de los medios de comunicación arriba indicados, precisándose que las comunicaciones por teléfono se realizarán únicamente en aquellos casos en que la comunicación escrita no sea requerida de forma especíﬁca, conforme al marco normativo vigente. Declaro igualmente conocer y estar de acuerdo con que las comunicaciones y/o notiﬁcaciones que sean dirigidas a mi correo electrónico surtirán efectos y las consideraré recibidas a partir del momento en que éstas sean recibidas en el servidor de mi cuenta del correo electrónico, considerándose igualmente que en ese momento he tomado conocimiento del contenido del documento enviado por dicho medio.
C132: Se enviará comunicaciones por escrito al domicilio físico del contratante y/o asegurado, en caso la normatividad vigente lo exija o, no se consigne una dirección electrónica.
C134: PROTECCIÓN DE DATOS PERSONALES
C135: Para la correcta ejecución de la relación contractual, EL CONTRATANTE / ASEGURADO (“EL CLIENTE”) se obliga a mantener actualizada su información personal, financiera y crediticia (“LA INFORMACIÓN”) y reconoce que PACÍFICO SEGUROS podrá tratarla, actualizarla, completarla y realizar flujos transfronterizos conforme a ley.
C138: PACÍFICO SEGUROS conservará, tratará y realizará flujos transfronterizos con LA INFORMACIÓN de EL CLIENTE mientras se mantenga la relación contractual y luego de veinte (20) años de finalizado el contrato. Para el tratamiento de La INFORMACIÓN de EL CLIENTE, PACÍFICO SEGUROS utilizará diversos Encargados ubicados en el Perú y el extranjero, los cuales se han puesto a disposición del El cliente y también se encuentran detallados en https://www.pacifico.com.pe/transparencia/politica-privacidad
C142: Su información será incluida en el banco de datos de Usuarios que se encuentra registrado ante la Autoridad de Protección de Datos Personales bajo el número de registro RNPDP-PJ N.° 774, de titularidad de PACÍFICO SEGUROS, ubicada en Juan de Arona 830, San Isidro, Lima - Perú.
C145: EL CLIENTE puede ejercer los derechos de acceso, rectificación, cancelación, revocación y oposición, dirigiéndose a PACÍFICO SEGUROS de forma presencial en cualquiera de sus oficinas a nivel nacional en el horario establecido para la atención al público o por teléfono o a través del Chat ubicado en nuestra página web www.pacifico.com.pe. El detalle de nuestra Política de Privacidad se encuentra disponible en: https://www.pacifico.com.pe/transparencia/politica-privacidad
C150: AUTORIZACIONES PARA USOS ADICIONALES
C151: EL CLIENTE autoriza que PACÍFICO SEGUROS, de manera directa o a través de sus Encargados: - Le oferte cualquiera de nuestros productos de los ramos de Riesgos Generales o de Vida. - Le oferte cualquier otro producto o servicio de PACÍFICO SEGUROS o de sus empresas terceras. - A transferir su Información a empresas Credicorp (incluyendo subsidiarias, vinculadas y afiliadas) así como socios comerciales (Terceros), para que cada uno de ellos pueda ofertar sus productos o servicios.
C156: EL CLIENTE acepta haber tenido a su disposición la lista de Terceros y Encargados que también se encuentra disponible en https://www.pacifico.com.pe/transparencia/politica-privacidad. Dicha lista detalla los posibles usos que los Terceros darán a sus datos personales. El envío de comunicaciones o mensajes con las ofertas y/o publicidades podrá ser remitida a través de medios escritos, verbales (por ejemplo: mensajes, push notification o llamadas telefónicas) o electrónicos/informáticos (por ejemplo correo electrónico).
C160: PACÍFICO SEGUROS y los Terceros podrán conservar y tratar LA INFORMACIÓN de EL CLIENTE en los términos establecidos en esta sección, mientras se mantenga la relación contractual y luego de veinte (20) años de finalizado el contrato. La aceptación o no de esta autorización para usos adicionales (ajenos a la ejecución de la relación contractual) no condiciona la prestación del servicio que EL CLIENTE está contratando.
C163: Sí acepto
C164: No acepto y prefiero perder la oportunidad de recibir nuevas ofertas
C166: Cláusulas Abusivas
C167: “Las condiciones de la presente póliza se encuentran sujetas a una revisión posterior por parte de la Superintendencia de Banca, Seguros y AFPs, por lo que, en caso se identiﬁquen cláusulas abusivas en el marco de la Ley del Contrato de Seguro y normas reglamentarias, y estas no sean subsanadas por PACÍFICO SEGUROS, la Superintendencia de Banca, Seguros y AFPs,
C170: Derecho de arrepentimiento
C171: En el caso que este seguro sea ofertado por un comercializador (incluyendo la Bancaseguro), declaro conocer que tengo derecho a arrepentirme de la contratación de este seguro, sin expresión de causa ni penalidad alguna, dentro del plazo de 15 días de recibir la póliza de seguro o el certiﬁcado de seguro, de ser el caso, ya que se me devuelva la prima que hubiere pagado.

Sheet Solicitud.Manual (hidden)
A2: Ingreso Manual Solicitud de Seguro Multiriesgo Pyme
A6: Datos Generales -> Informacion del Contratante | H6: Datos Generales -> Informacion del Asegurado
H7: ¿Contratante es diferente de Asegurado? | I7: SI
B8: Tipo de Documento*: | D8: Nro Documento: | H8: Tipo de Documento*: | K8: Nro Documento:
B9: Nombre / Razón Social*: | H9: Nombre / Razón Social*:
B10: Apellido Paterno: | D10: Apellido Materno: | H10: Apellido Paterno: | K10: Apellido Materno:
B11: Direccion | H11: Direccion
B12: Nro | D12: Cargo: | H12: Nro | L12: Cargo:
B13: Dpto/Piso/Int | H13: Dpto/Piso/Int
B14: Lt: | D14: Código de cliente: | H14: Lt: | L14: Código de cliente:
B15: Mz: | D15: Profesion / Ocupación: | H15: Mz: | L15: Profesion / Ocupación:
B16: Distrito: | D16: Nacionalidad: | H16: Distrito: | L16: Nacionalidad:
B17: Provincia: | D17: Fecha de Nacimiento: | H17: Provincia: | L17: Fecha de Nacimiento:
B18: Departamento: | D18: Estado Civil: | H18: Departamento: | L18: Estado Civil:
B19: Teléfono Casa: | D19: Teléfono Trabajo: | H19: Teléfono Casa: | L19: Teléfono Trabajo:
B20: Teléfono Móvil: | H20: Teléfono Móvil:
B21: Correo Electrónico: | H21: Correo Electrónico:
B22: ¿Desea recibir información del seguro y otro? | H22: ¿Desea recibir información del seguro y otro?
B23: ¿Desea recibir su póliza de forma electrónica? | H23: ¿Desea recibir su póliza de forma electrónica?
A24: Datos del Negocio (Datos vienen de la hoja Cotizador)
C26: Local 1
C27: Actividad y/o Giro: | E27: =IF(LEN(Cotizador!$D$54)>0,Cotizador!$D$54,"") -> 
C28: Tipo: | E28: =IF(LEN(Cotizador!$D$62)>0,Cotizador!$D$62,"") -> Comercial y Servicios
C29: Ocupación: | E29: =IF(LEN(Cotizador!$D$71)>0,Cotizador!$D$71,"") -> 
C31: Local 2
C32: Actividad y/o Giro: | E32: =IF(LEN(Cotizador!$D$56)>0,Cotizador!$D$56,"") -> 
C33: Tipo: | E33: =IF(LEN(Cotizador!$D$64)>0,Cotizador!$D$64,"") -> Comercial y Servicios
C34: Ocupación: | E34: =IF(LEN(Cotizador!$D$73)>0,Cotizador!$D$73,"") -> 
C36: Local 3
C37: Actividad y/o Giro: | E37: =IF(LEN(Cotizador!$D$58)>0,Cotizador!$D$58,"") -> 
C38: Tipo: | E38: =IF(LEN(Cotizador!$D$66)>0,Cotizador!$D$66,"") -> Comercial y Servicios
C39: Ocupación: | E39: =IF(LEN(Cotizador!$D$75)>0,Cotizador!$D$75,"") -> 
A41: Declaración Jurada
C43: Local 1 | G43: Local 2 | K43: Local 3
B44: Departamento | C44: =IF(LEN(Cotizador!$I$53)>0,Cotizador!$I$53,"") ->  | G44: =IF(LEN(Cotizador!$M$53)>0,Cotizador!$M$53,"") ->  | K44: =IF(LEN(Cotizador!$Q$53)>0,Cotizador!$Q$53,"") -> 
B45: Provincia | C45: =IF(LEN(Cotizador!$I$54)>0,Cotizador!$I$54,"") ->  | G45: =IF(LEN(Cotizador!$M$54)>0,Cotizador!$M$54,"") ->  | K45: =IF(LEN(Cotizador!$Q$54)>0,Cotizador!$Q$54,"") -> 
B46: Distrito | C46: =IF(LEN(Cotizador!$I$55)>0,Cotizador!$I$55,"") ->  | G46: =IF(LEN(Cotizador!$M$55)>0,Cotizador!$M$55,"") ->  | K46: =IF(LEN(Cotizador!$Q$55)>0,Cotizador!$Q$55,"") -> 
B47: Dirección exacta del riesgo:*: | C47: =IF(LEN(Cotizador!$I$56)>0,Cotizador!$I$56,"") ->  | G47: =IF(LEN(Cotizador!$M$56)>0,Cotizador!$M$56,"") ->  | K47: =IF(LEN(Cotizador!$Q$56)>0,Cotizador!$Q$56,"") -> 
B48: Nro | C48: =IF(LEN(Cotizador!$I$57)>0,Cotizador!$I$57,"") ->  | G48: =IF(LEN(Cotizador!$M$57)>0,Cotizador!$M$57,"") ->  | K48: =IF(LEN(Cotizador!$Q$57)>0,Cotizador!$Q$57,"") -> 
B53: Año de construcción
B54: Número de Pisos
B55: Número de Sotanos
B59: Cuestionario | I59: Local 1 | J59: Local 2 | K59: Local 3
B60: 1. Material de construcción noble
B61: Paredes
B62: Ladrillo y cemento en su totalidad
B63: Techos
B64: Concreto aligerado en su totalidad
B65: 2. Instalaciones eléctricas empotradas y/o entubadas en su totalidad
B66: 3. Cuenta con uno o más extintores contra incendio
B67: 4. Cuenta con vigilantes
B68: 5. Puertas exteriores (Rejas de fierro y/o cortina metálica y/o planchas de fierro, en su totalidad)
B69: 6. Ventanas protegidas por reja de fierro y/o reja plegadiza y/o cortina metálica, en su totalidad
B70: 7. Totalidad de su mercadería se encuentra almacenada en el interior de su local bajo las condiciones antes mencionadas
B71: 8. Los productos que almacena o tiene dentro de su local son combustibles y/o inflamables
B72: 9. La ubicación del inmueble ¿está a mas de 500 metros de distancia de un río, playa o laguna y a más de 15 metros de altura alguno de estos?
B74: PROTECCIÓN DE DATOS PERSONALES
B75: Para la correcta ejecución de la relación contractual, EL CONTRATANTE / ASEGURADO (“EL CLIENTE”) se obliga a mantener actualizada su información personal, financiera y crediticia (“LA INFORMACIÓN”) y reconoce que PACÍFICO SEGUROS podrá tratarla, actualizarla, completarla y realizar flujos transfronterizos conforme a ley.
B78: PACÍFICO SEGUROS conservará, tratará y realizará flujos transfronterizos con LA INFORMACIÓN de EL CLIENTE mientras se mantenga la relación contractual y luego de veinte (20) años de finalizado el contrato. Para el tratamiento de La INFORMACIÓN de EL CLIENTE, PACÍFICO SEGUROS utilizará diversos Encargados ubicados en el Perú y el extranjero, los cuales se han puesto a disposición del El cliente y también se encuentran detallados en https://www.pacifico.com.pe/transparencia/politica-privacidad.
B83: Su información será incluida en el banco de datos de Usuarios que se encuentra registrado ante la Autoridad de Protección de Datos Personales bajo el número de registro RNPDP-PJ N.° 774, de titularidad de PACÍFICO SEGUROS, ubicada en Juan de Arona 830, San Isidro, Lima - Perú.
B86: EL CLIENTE puede ejercer los derechos de acceso, rectificación, cancelación, revocación y oposición, dirigiéndose a PACÍFICO SEGUROS de forma presencial en cualquiera de sus oficinas a nivel nacional en el horario establecido para la atención al público o por teléfono o a través del Chat ubicado en nuestra página web www.pacifico.com.pe. El detalle de nuestra Política de Privacidad se encuentra disponible en: https://www.pacifico.com.pe/transparencia/politica-privacidad
B91: AUTORIZACIONES PARA USOS ADICIONALES
B92: EL CLIENTE autoriza que PACÍFICO SEGUROS, de manera directa o a través de sus Encargados: - Le oferte cualquiera de nuestros productos de los ramos de Riesgos Generales o de Vida. - Le oferte cualquier otro producto o servicio de PACÍFICO SEGUROS o de sus empresas terceras. - A transferir su Información a empresas Credicorp (incluyendo subsidiarias, vinculadas y afiliadas) así como socios comerciales (Terceros), para que cada uno de ellos pueda ofertar sus productos o servicios.
B98: EL CLIENTE acepta haber tenido a su disposición la lista de Terceros y Encargados que también se encuentra disponible en https://www.pacifico.com.pe/transparencia/politica-privacidad. Dicha lista detalla los posibles usos que los Terceros darán a sus datos personales. El envío de comunicaciones o mensajes con las ofertas y/o publicidades podrá ser remitida a través de medios escritos, verbales (por ejemplo: mensajes, push notification o llamadas telefónicas) o electrónicos/informáticos (por ejemplo correo electrónico).
B102: PACÍFICO SEGUROS y los Terceros podrán conservar y tratar LA INFORMACIÓN de EL CLIENTE en los términos establecidos en esta sección, mientras se mantenga la relación contractual y luego de veinte (20) años de finalizado el contrato. La aceptación o no de esta autorización para usos adicionales (ajenos a la ejecución de la relación contractual) no condiciona la prestación del servicio que EL CLIENTE está contratando.
B109: Sí acepto
B110: No acepto y
B111: prefiero perder la oportunidad de recibir nuevas ofertas
B113: Cláusulas Abusivas
B114: “Las condiciones de la presente póliza se encuentran sujetas a una revisión posterior por parte de la Superintendencia de Banca, Seguros y AFPs, por lo que, en caso se identiﬁquen cláusulas abusivas en el marco de la Ley del Contrato de Seguro y normas reglamentarias, y estas no sean subsanadas por PACÍFICO SEGUROS, la Superintendencia de Banca, Seguros y AFPs,
B117: Derecho de arrepentimiento
B118: En el caso que este seguro sea ofertado por un comercializador (incluyendo la Bancaseguro), declaro conocer que tengo derecho a arrepentirme de la contratación de este seguro, sin expresión de causa ni penalidad alguna, dentro del plazo de 15 días de recibir la póliza de seguro o el certiﬁcado de seguro, de ser el caso, ya que se me devuelva la prima que hubiere pagado.
A122: Pago de Primas (Datos vienen de la hoja Cotizador)
C124: Autorizaciones
C126: Forma de pago | D126: =IF(Cotizador!$E$82=0,"",Cotizador!$E$82) ->  | J126: Emitir Factura? | K126: =IF(Cotizador!$I$82=0,"",Cotizador!$I$82) -> 
C129: Inicio de Vigencia y Pago
J130: Nro. Cuotas: | K130: =IF(Cotizador!$I$87=0,"",Cotizador!$I$87) -> 
C131: Forma de pago | J131: Inicio Vigencia Póliza: | K131: =IF(Cotizador!$I$88=0,"",Cotizador!$I$88) -> 
C132: Al Contado | D132: =IF(LEN(D126)>0,IF(Cotizador!$AD$22=1,"X",""),"") -> 
C133: En cuotas | D133: =IF(LEN(D126)>0,IF(Cotizador!$AD$22=2,"X",""),"") -> 
J134: Monto Total a Pagar Anual: | K134: =IF(Cotizador!$P$91=0,0,Cotizador!$P$91) + IF(Cotizador!$P$102=0,0,Cotizador!$P$102) -> 0
J135: Monto Total a Pagar Mensual: | K135: =IF(Cotizador!$P$92=0,0,Cotizador!$P$92) + IF(Cotizador!$P$103=0,0,Cotizador!$P$103) -> 0
A138: Datos del Corredor de Seguros
C140: Canal
I142: Tipo Canal: | J142: Corredores
I144: Código o Número:
I146: Teléfono Corredor:
C148: Nombre del Corredor: | I148: Correo electrónico:

Sheet PagodePrimasLocal1
AM1: =IFERROR(IF(OR(K22=4,K22=12),AM5*VLOOKUP(K22,AD35:AF40,3,0),AM5*SUMPRODUCT(($AD$35:$AD$40=K22)*($AE$35:$AE$40=I17)*($AF$35:$AF$40))),0) -> 0 | AN1: <- Fórmula anterior…
AA5: 1 | AB5: SÍ | AC5: Pago contado | AD5: Incendio | AE5: 2.1488272 | AF5: =IF(ISERROR($AE$10*AE5),0,$AE$10*AE5)/1000 -> 0 | AG5: =+IF($AE$10>50000,AF5,75)*AE21 -> 0 | AH5: =+AG5/(1+$AE$14) -> 0 | AJ5: =IF(LEN(I10)>0,1,0)+IF(LEN(M8)>0,1,0)+IF(LEN(M10)>0,1,0)+IF(LEN(M11)>0,1,0)+IF(LEN(M12)>0,1,0)+IF(LEN(M13)>0,1,0)+IF(LEN(M17)>0,1,0)+IF(LEN(N22)>0,1,0) -> 1 | AL5: Accidentes | AM5: =IF(Cotizador!$F$44="SÍ",ACCO!$E$66,"") ->  | AN5: =IFERROR(AM5/(1+$AE$14),0) -> 0
G6: Canal | AA6: 2 | AB6: NO | AC6: En cuotas | AD6: Roma | AE6: 0.2892652 | AF6: =IF(CoberturasaElegirLocal1!M23="",0,IF(ISERROR($AE$10*AE6),0,($AE$10*AE6)))/1000 -> 0 | AG6: =+IF(AF6=0,0,IF($AE$10>50000,AF6,25))*AE21 -> 0 | AH6: =+AG6/(1+$AE$14) -> 0 | AM6: =IFERROR(IF(OR(K22=12),AM5*VLOOKUP(K22,AD35:AF40,3,0),AM5*SUMPRODUCT(($AD$35:$AD$40=K22)*($AE$35:$AE$40=I17)*($AF$35:$AF$40))),0) -> 0 | AN6: <- Fórmula modificada el 06 Mayo 2017
AD7: Eqel | AE7: 0.2169489 | AF7: =IF(CoberturasaElegirLocal1!M26="",0,IF(ISERROR($AE$10*AE7),0,($AE$10*AE7)))/1000 -> 0 | AG7: =+IF(AF7=0,0,IF($AE$10>50000,AF7,25))*AE21 -> 0 | AH7: =+AG7/(1+$AE$14) -> 0 | AM7: =IFERROR(IF(K22=4,AM5,(AM6*K22)),0) -> 0 | AN7: <- Fórmula modificada el 12 Mayo 2017 y el 18 Mayo 2017
H8: Tipo Canal: | I8: =IF(Solicitud.Manual!$J$142=0,"",Solicitud.Manual!$J$142) -> Corredores | L8: Nombre Canal: | M8: =IF(Solicitud.Manual!$J$142=0,"",Solicitud.Manual!$J$142) -> Corredores | AD8: Robo | AE8: 0.73774478 | AF8: =IF(CoberturasaElegirLocal1!AB7=0,0,IF(ISERROR($AE$10*AE8),0,($AE$10*AE8)))/1000 -> 0 | AG8: =+IF(AF8=0,0,IF($AE$10>50000,AF8,75))*AE21 -> 0 | AH8: =+AG8/(1+$AE$14) -> 0
AD9: Resp | AE9: =IF(Cotizador!$H$17="",0,CoberturasaElegirLocal1!$N$40) -> 0 | AF9: =IF(DatosdelNegocioLocal1!$I$8="HOTELES Y HOSPEDAJES (DE 2 Y 3 ESTRELLAS)",IF(AE9=50000,99,IF(AE9=100000,197,IF(AE9=200000,394,IF(AE9=300000,591,IF(AE9=500000,985,0))))),IF(AE9=50000,45,IF(AE9=100000,91,IF(AE9=200000,181,IF(AE9=300000,272,IF(AE9=500000,453,0)))))) -> 0 | AG9: =+AF9*AE21 -> 0 | AH9: =+AG9/(1+$AE$14) -> 0
H10: Código o Número: | I10: =IF(Solicitud.Manual!$J$144=0,"",Solicitud.Manual!$J$144) ->  | L10: Nombre Corredorr: | M10: =IF(Solicitud.Manual!$D$148=0,"",Solicitud.Manual!$D$148) ->  | AD10: VD | AE10: =+CoberturasaElegirLocal1!M18 ->  | AG10: =SUM(AG5:AG9) -> 0 | AH10: =SUM(AH5:AH9) -> 0 | AI10: =AG10 -> 0 | AL10: Transportes | AM10: =IF(Cotizador!$F$46="SÍ",IF(LEN(CuestionarioTransporte!$D$26)>0,CuestionarioTransporte!$D$26,""),"") ->  | AN10: =IFERROR(AM10/(1+$AE$14),0) -> 0
L11: DNI Vendedor: | AG11: =IF($AF$33="RUC",IF(OR(K22=4,K22=12),AG10*VLOOKUP(K22,AD35:AG40,4,0),AG10*SUMPRODUCT(($AD$35:$AD$40=K22)*($AE$35:$AE$40=I17)*($AG$35:$AG$40))),IF(OR(K22=4,K22=12),AG10*VLOOKUP(K22,AD35:AF40,3,0),AG10*SUMPRODUCT(($AD$35:$AD$40=K22)*($AE$35:$AE$40=I17)*($AF$35:$AF$40)))) -> 0 | AM11: =IF(K22=4,0,IFERROR(IF(OR(K22=4,K22=12),AM10*VLOOKUP(K22,AD35:AF40,3,0),AM10*SUMPRODUCT(($AD$35:$AD$40=K22)*($AE$35:$AE$40=I17)*($AF$35:$AF$40))),0)) -> 0
L12: Teléfono Vendedor: | M12: =IF(Solicitud.Manual!$J$146=0,"",Solicitud.Manual!$J$146) ->  | AD12: Forma de pago | AG12: =IF(ISERROR(AG11*K22),0,(AG11*K22)) -> 0 | AM12: =SUM(AM10:AM11) -> 0
L13: Correo electrónico: | M13: =IF(Solicitud.Manual!$J$148=0,"",Solicitud.Manual!$J$148) ->  | AD13: =IF(LEN(Cotizador!$E$82)=0,"",Cotizador!$E$82) -> 
AD14: IGV | AE14: 0.18 | AF14: Ptasa | AG14: Pcliente | AH14: Pcomercial
G15: Autorizaciones | AD15: 2 | AE15: =IF(LEN(I8)>0,1,0)+IF(LEN(M8)>0,1,0)+IF(LEN(M10)>0,1,0)+IF(LEN(I10)>0,1,0)+IF(LEN(AE42)>0,1,0)+IF(LEN(M17)>0,1,0)+IF(LEN(N22)>0,1,0)+IF(LEN(I22)>0,1,0)+IF(LEN(K22)>0,1,0)+IF(LEN(M11)>0,1,0)+IF(LEN(M12)>0,1,0)+IF(LEN(M13)>0,1,0) -> 4
AC16: 1 | AD16: Corredores | AE16: =+IF(AD21=2,"","Sin Cuotas") ->  | AH16: FFVV
H17: Forma de pago | I17: =IF(Cotizador!$E$82=0,"",Cotizador!$E$82) ->  | L17: Emitir Factura? | M17: =IF(Cotizador!$I$82=0,"",Cotizador!$I$82) ->  | AC17: 2 | AD17: Fuerza de Ventas | AF17: =+IF($AD$21=2,4,"") -> 4 | AH17: =+IF($AD$21=2,4,"") -> 4
AC18: 3 | AD18: Televentas | AF18: =+IF($AD$21=2,6,"") -> 6 | AH18: =+IF($AD$21=2,6,"") -> 6
AF19: =+IF($AD$21=2,10,"") -> 10 | AH19: =+IF($AD$21=2,12,"") -> 12
G20: Inicio de Vigencia y Pago | AD20: Interes: | AE20: =+AF27 -> 1 | AF20: =+IF($AD$21=2,IF($AD$13="Cupones","",12),"") -> 12
AD21: 2 | AE21: 1
H22: Forma de Pago: | I22: Al Contado | J22: Nro. Cuotas: | K22: =IF(Cotizador!$I$87=0,"",Cotizador!$I$87) ->  | M22: Inicio Vigencia Póliza: | N22: =IF(Cotizador!$I$88=0,"",Cotizador!$I$88) ->  | AD22: =IF(AND(CoberturasaElegirLocal1!M18>0,CoberturasaElegirLocal1!M18<=50000),"PLAN PYME HASTA 50 MIL DÓLARES",IF(AND(CoberturasaElegirLocal1!M18>50000,CoberturasaElegirLocal1!M18<=500000),"PLAN PYME MAYOR A 50 MIL DÓLARES",IF(CoberturasaElegirLocal1!M18>500000,"PLAN PYME MAYOR A 500 MIL DÓLARES",""))) -> PLAN PYME MAYOR A 500 MIL DÓLARES
I23: En cuotas
AD24: Al Contado | AE24: 0 | AF24: =+IF(AE42="SÍ","DA",IF(AE42="NO","C","")) -> C
J25: Monto Total a Pagar Anual: | K25: =+IF(AND(AD21=1,K22=""),AG10,IF(K22="","----",AG12)) -> ---- | L25: USD | AD25: En Cuotas4DA | AE25: 0 | AF25: =+IF(AD21=1,"Al Contado",IF(AD21=2,"En Cuotas","")) -> En Cuotas
J26: Monto Total a Pagar Mensual: | K26: =IF(ISERROR(IF(K22=" ","---",K25/K22)),0,IF(K22=" ","---",K25/K22)) -> 0 | L26: USD | AD26: En Cuotas4C | AE26: 0 | AF26: =+AF25&K22&AF24 -> En CuotasC
AD27: En Cuotas6DA | AE27: 0.12 | AF27: 1
AD28: En Cuotas6C | AE28: 0.175 | AF28: 1
AD29: En Cuotas10DA | AE29: 0.12 | AF29: =+IF(AE42="NO",2,1) -> 2 | AG29: Débito
AD30: En Cuotas10C | AE30: 0.175 | AF30: =+IF(AE43="NO",2,1) -> 2 | AG30: cupones
AD31: En Cuotas12DA | AE31: 0.12
AD32: En Cuotas12C | AE32: 0.175
AE33: Dcto Contratante | AF33: =Cotizador!$E$81 -> 0
AF34: P.Natural | AG34: P.Juridica
AD35: 4 | AF35: 0.25 | AG35: 0.25
AD36: 6 | AE36: Cupones | AF36: 0.1746473822 | AG36: 0.1722453552
AD37: 10 | AE37: Cupones | AF37: 0.1075913079 | AG37: 0.1052927555
AD42: Débito Automático: | AE42: =+IF($I$17="Débito Automático","SÍ","NO") -> NO
AD43: Cupones: | AE43: =+IF($I$17="Cupones","SÍ","NO") -> NO
AD45: Result | AE45: =+IF(OR(K22=4,K22=12),VLOOKUP(K22,$AD$35:$AF$40,3,0),SUMPRODUCT(($AD$35:$AD$40=K22)*($AE$35:$AE$40=I17)*$AF$35:$AF$40)) -> 0
AD47: 1 | AE47: Débito Automático | AF47: 2
AD48: 2 | AE48: Cupones

Sheet PagodePrimasLocal2
AA5: 1 | AB5: SÍ | AC5: Pago contado | AD5: Incendio | AE5: 2.1488272 | AF5: =IF(ISERROR($AE$10*AE5),0,$AE$10*AE5)/1000 -> 0 | AG5: =+IF($AE$10>50000,AF5,75)*AE21 -> 0 | AH5: =+AG5/(1+$AE$14) -> 0 | AJ5: =IF(LEN(I10)>0,1,0)+IF(LEN(M8)>0,1,0)+IF(LEN(M10)>0,1,0)+IF(LEN(M11)>0,1,0)+IF(LEN(M12)>0,1,0)+IF(LEN(M13)>0,1,0)+IF(LEN(M17)>0,1,0)+IF(LEN(N22)>0,1,0) -> 1 | AL5: Accidentes | AM5: =IF(Cotizador!$K$44="SÍ",ACCO!$F$66,"") ->  | AN5: =IFERROR(AM5/(1+$AE$14),0) -> 0
G6: Canal | AA6: 2 | AB6: NO | AC6: En cuotas | AD6: Roma | AE6: 0.2892652 | AF6: =IF(CoberturasaElegirLocal2!M23="",0,IF(ISERROR($AE$10*AE6),0,($AE$10*AE6)))/1000 -> 0 | AG6: =+IF(AF6=0,0,IF($AE$10>50000,AF6,25))*AE21 -> 0 | AH6: =+AG6/(1+$AE$14) -> 0 | AM6: =IFERROR(IF(OR(K22=4,K22=12),AM5*VLOOKUP(K22,AD35:AF40,3,0),AM5*SUMPRODUCT(($AD$35:$AD$40=K22)*($AE$35:$AE$40=I17)*($AF$35:$AF$40))),0) -> 0
AD7: Eqel | AE7: 0.2169489 | AF7: =IF(CoberturasaElegirLocal2!M26="",0,IF(ISERROR($AE$10*AE7),0,($AE$10*AE7)))/1000 -> 0 | AG7: =+IF(AF7=0,0,IF($AE$10>50000,AF7,25))*AE21 -> 0 | AH7: =+AG7/(1+$AE$14) -> 0 | AM7: =SUM(AM5:AM6) -> 0
H8: Tipo Canal: | I8: =IF(Solicitud.Manual!$J$142=0,"",Solicitud.Manual!$J$142) -> Corredores | L8: Nombre Canal: | M8: =IF(Solicitud.Manual!$J$142=0,"",Solicitud.Manual!$J$142) -> Corredores | AD8: Robo | AE8: 0.73774478 | AF8: =IF(CoberturasaElegirLocal2!AB7=0,0,IF(ISERROR($AE$10*AE8),0,($AE$10*AE8)))/1000 -> 0 | AG8: =+IF(AF8=0,0,IF($AE$10>50000,AF8,75))*AE21 -> 0 | AH8: =+AG8/(1+$AE$14) -> 0 | AM8: <
AD9: Resp | AE9: =IF(Cotizador!$M$17="",0,CoberturasaElegirLocal2!$N$40) -> 0 | AF9: =IF(DatosdelNegocioLocal2!$I$8="HOTELES Y HOSPEDAJES (DE 2 Y 3 ESTRELLAS)",IF(AE9=50000,99,IF(AE9=100000,197,IF(AE9=200000,394,IF(AE9=300000,591,IF(AE9=500000,985,0))))),IF(AE9=50000,45,IF(AE9=100000,91,IF(AE9=200000,181,IF(AE9=300000,272,IF(AE9=500000,453,0)))))) -> 0 | AG9: =+AF9*AE21 -> 0 | AH9: =+AG9/(1+$AE$14) -> 0
H10: Código o Número: | I10: =IF(Solicitud.Manual!$J$144=0,"",Solicitud.Manual!$J$144) ->  | L10: Nombre Corredorr: | M10: =IF(Solicitud.Manual!$D$148=0,"",Solicitud.Manual!$D$148) ->  | AD10: VD | AE10: =+CoberturasaElegirLocal2!M18 ->  | AG10: =SUM(AG5:AG9) -> 0 | AH10: =SUM(AH5:AH9) -> 0 | AL10: Transportes | AN10: =+AM10/(1+$AE$14) -> 0
L11: DNI Vendedor: | AG11: =IF($AF$33="RUC",IF(OR(K22=4,K22=12),AG10*VLOOKUP(K22,AD35:AG40,4,0),AG10*SUMPRODUCT(($AD$35:$AD$40=K22)*($AE$35:$AE$40=I17)*($AG$35:$AG$40))),IF(OR(K22=4,K22=12),AG10*VLOOKUP(K22,AD35:AF40,3,0),AG10*SUMPRODUCT(($AD$35:$AD$40=K22)*($AE$35:$AE$40=I17)*($AF$35:$AF$40)))) -> 0
L12: Teléfono Vendedor: | M12: =IF(Solicitud.Manual!$J$146=0,"",Solicitud.Manual!$J$146) ->  | AG12: =IF(ISERROR(AG11*K22),0,(AG11*K22)) -> 0 | AM12: =SUM(AM10:AM11) -> 0
L13: Correo electrónico: | M13: =IF(Solicitud.Manual!$J$148=0,"",Solicitud.Manual!$J$148) -> 
AD14: IGV | AE14: 0.18 | AF14: Ptasa | AG14: Pcliente | AH14: Pcomercial
G15: Autorizaciones | AD15: 2 | AE15: =IF(LEN(I8)>0,1,0)+IF(LEN(M8)>0,1,0)+IF(LEN(M10)>0,1,0)+IF(LEN(I10)>0,1,0)+IF(LEN(AE42)>0,1,0)+IF(LEN(M17)>0,1,0)+IF(LEN(N22)>0,1,0)+IF(LEN(I22)>0,1,0)+IF(LEN(K22)>0,1,0)+IF(LEN(M11)>0,1,0)+IF(LEN(M12)>0,1,0)+IF(LEN(M13)>0,1,0) -> 4
AC16: 1 | AD16: Corredores | AE16: =+IF(AD21=2,"","Sin Cuotas") -> 
H17: Forma de pago | I17: =IF(Cotizador!$E$82=0,"",Cotizador!$E$82) ->  | L17: Emitir Factura? | M17: =IF(Cotizador!$I$82=0,"",Cotizador!$I$82) ->  | AC17: 2 | AD17: Fuerza de Ventas | AF17: =+IF($AD$21=2,4,"") -> 4
AC18: 3 | AD18: Televentas | AF18: =+IF($AD$21=2,6,"") -> 6
AF19: =+IF($AD$21=2,10,"") -> 10
G20: Inicio de Vigencia y Pago | AD20: Interes: | AE20: =+AF27 -> 1 | AF20: =+IF($AD$21=2,12,"") -> 12
AD21: =PagodePrimasLocal1!AD21 -> 2 | AE21: 1
H22: Forma de Pago: | I22: Al Contado | J22: Nro. Cuotas: | K22: =IF(Cotizador!$I$87=0,"",Cotizador!$I$87) ->  | M22: Inicio Vigencia Póliza: | N22: =IF(Cotizador!$I$88=0,"",Cotizador!$I$88) ->  | AD22: =IF(AND(CoberturasaElegirLocal2!M18>0,CoberturasaElegirLocal2!M18<=50000),"PLAN PYME HASTA 50 MIL DÓLARES",IF(AND(CoberturasaElegirLocal2!M18>50000,CoberturasaElegirLocal2!M18<=500000),"PLAN PYME MAYOR A 50 MIL DÓLARES",IF(CoberturasaElegirLocal2!M18>500000,"PLAN PYME MAYOR A 500 MIL DÓLARES",""))) -> PLAN PYME MAYOR A 500 MIL DÓLARES
I23: En cuotas
AD24: Al Contado | AE24: 0 | AF24: =+IF(AE42="SÍ","DA",IF(AE42="NO","C","")) -> C
J25: Monto Total a Pagar Anual: | K25: =+IF(AND(AD21=1,K22=""),AG10,IF(K22="","----",AG12)) -> ---- | L25: USD | AD25: En Cuotas4DA | AE25: 0 | AF25: =+IF(AD21=1,"Al Contado",IF(AD21=2,"En Cuotas","")) -> En Cuotas
J26: Monto Total a Pagar Mensual: | K26: =IF(ISERROR(IF(K22=" ","---",K25/K22)),0,IF(K22=" ","---",K25/K22)) -> 0 | L26: USD | AD26: En Cuotas4C | AE26: 0 | AF26: =+AF25&K22&AF24 -> En CuotasC
AD27: En Cuotas6DA | AE27: 0.12 | AF27: 1
AD28: En Cuotas6C | AE28: 0.175 | AF28: 1
AD29: En Cuotas10DA | AE29: 0.12 | AF29: =+IF(AE42="NO",2,1) -> 2 | AG29: Débito
AD30: En Cuotas10C | AE30: 0.175 | AF30: =+IF(AE43="NO",2,1) -> 2 | AG30: cupones
AD31: En Cuotas12DA | AE31: 0.12
AD32: En Cuotas12C | AE32: 0.175
AE33: Dcto Contratante | AF33: =Cotizador!$E$81 -> 0
AF34: P.Natural | AG34: P.Juridica
AD35: 4 | AF35: 0.25 | AG35: 0.25
AD36: 6 | AE36: Cupones | AF36: 0.1746473822 | AG36: 0.1722453552
AD37: 10 | AE37: Cupones | AF37: 0.1075913079 | AG37: 0.1052927555
AD42: Débito Automático: | AE42: =+IF($I$17="Débito Automático","SÍ","NO") -> NO
AD43: Cupones: | AE43: =+IF($I$17="Cupones","SÍ","NO") -> NO
AD45: Result | AE45: =+IF(OR(K22=4,K22=12),VLOOKUP(K22,$AD$35:$AF$40,3,0),SUMPRODUCT(($AD$35:$AD$40=K22)*($AE$35:$AE$40=I17)*$AF$35:$AF$40)) -> 0
AD47: 1 | AE47: Débito Automático | AF47: 2
AD48: 2 | AE48: Cupones

Sheet PagodePrimasLocal3
AA5: 1 | AB5: SÍ | AC5: Pago contado | AD5: Incendio | AE5: 2.1488272 | AF5: =IF(ISERROR($AE$10*AE5),0,$AE$10*AE5)/1000 -> 0 | AG5: =+IF($AE$10>50000,AF5,75)*AE21 -> 0 | AH5: =+AG5/(1+$AE$14) -> 0 | AJ5: =IF(LEN(I10)>0,1,0)+IF(LEN(M8)>0,1,0)+IF(LEN(M10)>0,1,0)+IF(LEN(M11)>0,1,0)+IF(LEN(M12)>0,1,0)+IF(LEN(M13)>0,1,0)+IF(LEN(M17)>0,1,0)+IF(LEN(N22)>0,1,0) -> 1 | AL5: Accidentes | AM5: =IF(Cotizador!$P$44="SÍ",ACCO!$G$66,"") ->  | AN5: =IFERROR(AM5/(1+$AE$14),0) -> 0
G6: Canal | AA6: 2 | AB6: NO | AC6: En cuotas | AD6: Roma | AE6: 0.2892652 | AF6: =IF(CoberturasaElegirLocal3!M23="",0,IF(ISERROR($AE$10*AE6),0,($AE$10*AE6)))/1000 -> 0 | AG6: =+IF(AF6=0,0,IF($AE$10>50000,AF6,25))*AE21 -> 0 | AH6: =+AG6/(1+$AE$14) -> 0 | AM6: =IFERROR(IF(OR(K22=4,K22=12),AM5*VLOOKUP(K22,AD35:AF40,3,0),AM5*SUMPRODUCT(($AD$35:$AD$40=K22)*($AE$35:$AE$40=I17)*($AF$35:$AF$40))),0) -> 0
AD7: Eqel | AE7: 0.2169489 | AF7: =IF(CoberturasaElegirLocal3!M26="",0,IF(ISERROR($AE$10*AE7),0,($AE$10*AE7)))/1000 -> 0 | AG7: =+IF(AF7=0,0,IF($AE$10>50000,AF7,25))*AE21 -> 0 | AH7: =+AG7/(1+$AE$14) -> 0 | AM7: =SUM(AM5:AM6) -> 0
H8: Tipo Canal: | I8: =IF(Solicitud.Manual!$J$142=0,"",Solicitud.Manual!$J$142) -> Corredores | L8: Nombre Canal: | M8: =IF(Solicitud.Manual!$J$142=0,"",Solicitud.Manual!$J$142) -> Corredores | AD8: Robo | AE8: 0.73774478 | AF8: =IF(CoberturasaElegirLocal3!AB7=0,0,IF(ISERROR($AE$10*AE8),0,($AE$10*AE8)))/1000 -> 0 | AG8: =+IF(AF8=0,0,IF($AE$10>50000,AF8,75))*AE21 -> 0 | AH8: =+AG8/(1+$AE$14) -> 0 | AM8: <
AD9: Resp | AE9: =IF(Cotizador!$R$17="",0,CoberturasaElegirLocal3!$N$40) -> 0 | AF9: =IF(DatosdelNegocioLocal3!$I$8="HOTELES Y HOSPEDAJES (DE 2 Y 3 ESTRELLAS)",IF(AE9=50000,99,IF(AE9=100000,197,IF(AE9=200000,394,IF(AE9=300000,591,IF(AE9=500000,985,0))))),IF(AE9=50000,45,IF(AE9=100000,91,IF(AE9=200000,181,IF(AE9=300000,272,IF(AE9=500000,453,0)))))) -> 0 | AG9: =+AF9*AE21 -> 0 | AH9: =+AG9/(1+$AE$14) -> 0
H10: Código o Número: | I10: =IF(Solicitud.Manual!$J$144=0,"",Solicitud.Manual!$J$144) ->  | L10: Nombre Corredorr: | M10: =IF(Solicitud.Manual!$D$148=0,"",Solicitud.Manual!$D$148) ->  | AD10: VD | AE10: =+CoberturasaElegirLocal3!M18 ->  | AG10: =SUM(AG5:AG9) -> 0 | AH10: =SUM(AH5:AH9) -> 0 | AL10: Transportes | AN10: =+AM10/(1+$AE$14) -> 0
L11: DNI Vendedor: | AG11: =IF($AF$33="RUC",IF(OR(K22=4,K22=12),AG10*VLOOKUP(K22,AD35:AG40,4,0),AG10*SUMPRODUCT(($AD$35:$AD$40=K22)*($AE$35:$AE$40=I17)*($AG$35:$AG$40))),IF(OR(K22=4,K22=12),AG10*VLOOKUP(K22,AD35:AF40,3,0),AG10*SUMPRODUCT(($AD$35:$AD$40=K22)*($AE$35:$AE$40=I17)*($AF$35:$AF$40)))) -> 0
L12: Teléfono Vendedor: | M12: =IF(Solicitud.Manual!$J$146=0,"",Solicitud.Manual!$J$146) ->  | AG12: =IF(ISERROR(AG11*K22),0,(AG11*K22)) -> 0 | AM12: =SUM(AM10:AM11) -> 0
L13: Correo electrónico: | M13: =IF(Solicitud.Manual!$J$148=0,"",Solicitud.Manual!$J$148) -> 
AD14: IGV | AE14: 0.18 | AF14: Ptasa | AG14: Pcliente | AH14: Pcomercial
G15: Autorizaciones | AD15: 2 | AE15: =IF(LEN(I8)>0,1,0)+IF(LEN(M8)>0,1,0)+IF(LEN(M10)>0,1,0)+IF(LEN(I10)>0,1,0)+IF(LEN(AE42)>0,1,0)+IF(LEN(M17)>0,1,0)+IF(LEN(N22)>0,1,0)+IF(LEN(I22)>0,1,0)+IF(LEN(K22)>0,1,0)+IF(LEN(M11)>0,1,0)+IF(LEN(M12)>0,1,0)+IF(LEN(M13)>0,1,0) -> 4
AC16: 1 | AD16: Corredores | AE16: =+IF(AD21=2,"","Sin Cuotas") -> 
H17: Forma de pago | I17: =IF(Cotizador!$E$82=0,"",Cotizador!$E$82) ->  | L17: Emitir Factura? | M17: =IF(Cotizador!$I$82=0,"",Cotizador!$I$82) ->  | AC17: 2 | AD17: Fuerza de Ventas | AF17: =+IF($AD$21=2,4,"") -> 4
AC18: 3 | AD18: Televentas | AF18: =+IF($AD$21=2,6,"") -> 6
AF19: =+IF($AD$21=2,10,"") -> 10
G20: Inicio de Vigencia y Pago | AD20: Interes: | AE20: =+AF27 -> 1 | AF20: =+IF($AD$21=2,12,"") -> 12
AD21: =PagodePrimasLocal1!AD21 -> 2 | AE21: 1
H22: Forma de Pago: | I22: Al Contado | J22: Nro. Cuotas: | K22: =IF(Cotizador!$I$87=0,"",Cotizador!$I$87) ->  | M22: Inicio Vigencia Póliza: | N22: =IF(Cotizador!$I$88=0,"",Cotizador!$I$88) ->  | AD22: =IF(AND(CoberturasaElegirLocal3!M18>0,CoberturasaElegirLocal3!M18<=50000),"PLAN PYME HASTA 50 MIL DÓLARES",IF(AND(CoberturasaElegirLocal3!M18>50000,CoberturasaElegirLocal3!M18<=500000),"PLAN PYME MAYOR A 50 MIL DÓLARES",IF(CoberturasaElegirLocal3!M18>500000,"PLAN PYME MAYOR A 500 MIL DÓLARES",""))) -> PLAN PYME MAYOR A 500 MIL DÓLARES
I23: En cuotas
AD24: Al Contado | AE24: 0 | AF24: =+IF(AE42="SÍ","DA",IF(AE42="NO","C","")) -> C
J25: Monto Total a Pagar Anual: | K25: =+IF(AND(AD21=1,K22=""),AG10,IF(K22="","----",AG12)) -> ---- | L25: USD | AD25: En Cuotas4DA | AE25: 0 | AF25: =+IF(AD21=1,"Al Contado",IF(AD21=2,"En Cuotas","")) -> En Cuotas
J26: Monto Total a Pagar Mensual: | K26: =IF(ISERROR(IF(K22=" ","---",K25/K22)),0,IF(K22=" ","---",K25/K22)) -> 0 | L26: USD | AD26: En Cuotas4C | AE26: 0 | AF26: =+AF25&K22&AF24 -> En CuotasC
AD27: En Cuotas6DA | AE27: 0.12 | AF27: 1
AD28: En Cuotas6C | AE28: 0.175 | AF28: 1
AD29: En Cuotas10DA | AE29: 0.12 | AF29: =+IF(AE42="NO",2,1) -> 2 | AG29: Débito
AD30: En Cuotas10C | AE30: 0.175 | AF30: =+IF(AE43="NO",2,1) -> 2 | AG30: cupones
AD31: En Cuotas12DA | AE31: 0.12
AD32: En Cuotas12C | AE32: 0.175
AE33: Dcto Contratante | AF33: =Cotizador!$E$81 -> 0
AF34: P.Natural | AG34: P.Juridica
AD35: 4 | AF35: 0.25 | AG35: 0.25
AD36: 6 | AE36: Cupones | AF36: 0.1746473822 | AG36: 0.1722453552
AD37: 10 | AE37: Cupones | AF37: 0.1075913079 | AG37: 0.1052927555
AD42: Débito Automático: | AE42: =+IF($I$17="Débito Automático","SÍ","NO") -> NO
AD43: Cupones: | AE43: =+IF($I$17="Cupones","SÍ","NO") -> NO
AD45: Result | AE45: =+IF(OR(K22=4,K22=12),VLOOKUP(K22,$AD$35:$AF$40,3,0),SUMPRODUCT(($AD$35:$AD$40=K22)*($AE$35:$AE$40=I17)*$AF$35:$AF$40)) -> 0
AD47: 1 | AE47: Débito Automático | AF47: 2
AD48: 2 | AE48: Cupones

Sheet CoberturasaElegirLocal1
P5: =+YEAR(TODAY())-50 -> 1971 | AB5: SÍ | AC5: =IF(ISERROR($M$31/$AB$7),0,$M$31/$AB$7) -> 0
G6: Declaración de Bienes | AB6: NO | AC6: =IF(ISERROR($M$32/$AB$7),0,$M$32/$AB$7) -> 0
AB7: =+SUM(M31:M35) -> 0 | AC7: =IF(ISERROR($M$33/$AB$7),0,$M$33/$AB$7) -> 0
H8: Tipo de Moneda: | I8: =IF(Cotizador!$D$7=0,"",Cotizador!$D$7) -> USD | M8: Endosado al Banco?: | N8: =IF(Cotizador!$I$7=0,"",Cotizador!$I$7) -> NO | Z8: 1 | AC8: =IF(ISERROR($M$34/$AB$7),0,$M$34/$AB$7) -> 0
Z9: 2 | AC9: =IF(ISERROR($M$35/$AB$7),0,$M$35/$AB$7) -> 0
M10: Totales | N10: Endosado | Z10: 3
H11: Edificio (sin considerar el valor del terreno) | M11: =IF(Cotizador!$H$10=0,"",Cotizador!$H$10) ->  | N11: =IF(Cotizador!$I$10=0,"",Cotizador!$I$10) ->  | O11: =IF(N11="","",IF(OR(AND($N$8="NO",N11>0),AND($N$8="SÍ",M11="")),"Endosado Invalido","")) ->  | Z11: 4
H12: Instalaciones fijas | M12: =IF(Cotizador!$H$11=0,"",Cotizador!$H$11) ->  | N12: =IF(Cotizador!$I$11=0,"",Cotizador!$I$11) ->  | Z12: 5 | AB12: RM | AC12: 1 | AD12: 2
H13: Mobiliario y/o contenido propios del giro | M13: =IF(Cotizador!$H$12=0,"",Cotizador!$H$12) ->  | N13: =IF(Cotizador!$I$12=0,"",Cotizador!$I$12) ->  | AB13: EQEL | AC13: 1
H14: Existencias propias del giro del negocio | M14: =IF(Cotizador!$H$13=0,"",Cotizador!$H$13) ->  | N14: =IF(Cotizador!$I$13=0,"",Cotizador!$I$13) ->  | AB14: EQMOV | AC14: 1
H15: Maquinaria propia del giro del negocio | M15: =IF(Cotizador!$H$14=0,"",Cotizador!$H$14) ->  | N15: =IF(Cotizador!$I$14=0,"",Cotizador!$I$14) ->  | AB15: ROBO | AC15: 1
H16: Equipos electrónicos propios del giro del negocio | M16: =IF(Cotizador!$H$15=0,"",Cotizador!$H$15) ->  | N16: =IF(Cotizador!$I$15=0,"",Cotizador!$I$15) ->  | AB16: DINERO | AC16: 1
H17: Lucro Cesante | M17: =IF(Cotizador!$H$16=0,"",Cotizador!$H$16) ->  | N17: =IF(Cotizador!$I$16=0,"",Cotizador!$I$16) ->  | AB17: RC | AC17: 1
H18: TOTAL VALOR DECLARADO (Máximo 2'000,000 USD) | M18: =+IF(OR(SUM($M$11:$M$17)<=0,SUM($M$11:$M$17)>2000000),"",SUM($M$11:$M$17)) ->  | N18: =+IF($M$18="","",IF($N$8="NO","",(IF(SUM($N$11:$N$17)>SUM($M$11:$M$17),"",SUM($N$11:$N$17))))) ->  | AB18: DINEROTRANS | AC18: 1
G19: =+IF(SUM(M11:M16)>2000000,"Sus Valores suman "&SUM(M11:M16)&" USD, por favor corrija los montos","") -> 
G20: Coberturas
M22: Valor Declarado | N22: Valor Asegurado
H23: =IF(Cotizador!$F$40=0,"",Cotizador!$F$40) -> NO | I23: Rotura de Maquinaria | M23: =+IF($M$18="","",IF($H$23="NO","",IF($M$15>0,$M$15,""))) ->  | N23: =+IF($M$23="","",IF($M$23>200000,200000,$M$23)) -> 
I25: Equipo Electrónico
H26: =IF(Cotizador!$F$36=0,"",Cotizador!$F$36) -> NO | I26: Equipos electrónicos propios del giro del negocio | M26: =+IF($M$18="","",IF($H$26="NO","",IF($M$16>0,$M$16,""))) ->  | N26: =+IF($M$26="","",IF($M$26>50000,50000,$M$26)) -> 
H27: =IF(Cotizador!$F$37=0,"",Cotizador!$F$37) -> NO | I27: Equipos móviles y portátiles fuera del predio limitado a laptops y/o notebooks | M27: =+IF($H$27="NO","",IF($N$26="","",IF(3000>$N$26,$N$26,3000))) ->  | N27: =+IF($M$27="","",$M$27) -> 
H30: =IF(Cotizador!$F$23=0,"",Cotizador!$F$23) -> SI | I30: Robo y/o Asalto
I31: Instalaciones fijas | M31: =+IF($M$18="","",IF($H$30="NO","",IF($M$12>0,$M$12,""))) ->  | N31: =+IF($M$31="","",IF($M$31>100000*AC5,100000*$AC$5,$M$31)) -> 
I32: Mobiliario y/o contenido propios del giro del negocio | M32: =+IF($M$18="","",IF($H$30="NO","",IF($M$13>0,$M$13,""))) ->  | N32: =+IF($M$32="","",IF($M$32>100000*AC6,100000*$AC$6,$M$32)) -> 
I33: Existencias propias del giro del negocio | M33: =+IF($M$18="","",IF($H$30="NO","",IF($M$14>0,$M$14,""))) ->  | N33: =+IF($M$33="","",IF($M$33>100000*$AC$7,100000*$AC$7,$M$33)) -> 
I34: Maquinaria propia del giro del negocio | M34: =+IF($M$18="","",IF($H$30="NO","",IF($M$15>0,$M$15,""))) ->  | N34: =+IF($M$34="","",IF($M$34>100000*$AC$8,100000*$AC$8,$M$34)) -> 
I35: Equipo electrónico fijo | M35: =+IF($M$18="","",IF($H$30="NO","",IF($M$16>0,$M$16,""))) ->  | N35: =+IF($M$35="","",IF($M$35>100000*$AC$9,100000*$AC$9,$M$35)) -> 
H36: =IF(Cotizador!$F$29=0,"",Cotizador!$F$29) -> SI | I36: Dinero y/o valores dentro del local (caja chica y/o caja registradora) | M36: =IF(Cotizador!$H$29=0,"",Cotizador!$H$29) -> --------- | N36: =+IF($AB$7=0,"",IF($H$36="NO","",IF($AB$7<3000,$AB$7,3000))) -> 
H38: =IF(Cotizador!$F$31=0,"",Cotizador!$F$31) -> SI | I38: Dinero en Tránsito | M38: =IF(Cotizador!$H$31=0,"",Cotizador!$H$31) -> --------- | N38: =+IF($AB$7=0,"",IF($H$38="NO","",IF($AB$7<3000,$AB$7,3000))) -> 
H40: =IF(Cotizador!$F$33=0,"",Cotizador!$F$33) -> SI | I40: Responsabilidad Civil | K40: Opción: | L40: =IF(Cotizador!$H$33=0,"",Cotizador!$H$33) -> 1 | N40: =IF(H17="","",IF(H40="NO","",IF(L40=1,50000,IF(L40=2,100000,IF(L40=3,200000,IF(L40=4,300000,500000)))))) -> 50000

Sheet CoberturasaElegirLocal2
AB5: SÍ | AC5: =IF(ISERROR($M$31/$AB$7),0,$M$31/$AB$7) -> 0
G6: Declaración de Bienes | AB6: NO | AC6: =IF(ISERROR($M$32/$AB$7),0,$M$32/$AB$7) -> 0
AB7: =+SUM(M31:M35) -> 0 | AC7: =IF(ISERROR($M$33/$AB$7),0,$M$33/$AB$7) -> 0
H8: Tipo de Moneda: | I8: =IF(Cotizador!$D$7=0,"",Cotizador!$D$7) -> USD | M8: Endosado al Banco?: | N8: =IF(Cotizador!$N$7=0,"",Cotizador!$N$7) -> NO | Z8: 1 | AC8: =IF(ISERROR($M$34/$AB$7),0,$M$34/$AB$7) -> 0
Z9: 2 | AC9: =IF(ISERROR($M$35/$AB$7),0,$M$35/$AB$7) -> 0
M10: Totales | N10: Endosado | Z10: 3
H11: Edificio (sin considerar el valor del terreno ni Instalaciones Fijas) | M11: =IF(Cotizador!$M$10=0,"",Cotizador!$M$10) ->  | N11: =IF(Cotizador!$N$10=0,"",Cotizador!$N$10) ->  | O11: =IF(N11="","",IF(OR(AND($N$8="NO",N11>0),AND($N$8="SÍ",M11="")),"Endosado Invalido","")) ->  | Z11: 4
H12: Instalaciones fijas | M12: =IF(Cotizador!$M$11=0,"",Cotizador!$M$11) ->  | N12: =IF(Cotizador!$N$11=0,"",Cotizador!$N$11) ->  | Z12: 5 | AB12: RM | AC12: 1 | AD12: 2
H13: Mobiliario y/o contenido propios del giro | M13: =IF(Cotizador!$M$12=0,"",Cotizador!$M$12) ->  | N13: =IF(Cotizador!$N$12=0,"",Cotizador!$N$12) ->  | AB13: EQEL | AC13: 1
H14: Existencias propias del giro del negocio | M14: =IF(Cotizador!$M$13=0,"",Cotizador!$M$13) ->  | N14: =IF(Cotizador!$N$13=0,"",Cotizador!$N$13) ->  | AB14: EQMOV | AC14: 1
H15: Maquinaria propia del giro del negocio | M15: =IF(Cotizador!$M$14=0,"",Cotizador!$M$14) ->  | N15: =IF(Cotizador!$N$14=0,"",Cotizador!$N$14) ->  | AB15: ROBO | AC15: 1
H16: Equipos electrónicos propios del giro del negocio | M16: =IF(Cotizador!$M$15=0,"",Cotizador!$M$15) ->  | N16: =IF(Cotizador!$N$15=0,"",Cotizador!$N$15) ->  | AB16: DINERO | AC16: 1
H17: Lucro Cesante | M17: =IF(Cotizador!$M$16=0,"",Cotizador!$M$16) ->  | N17: =IF(Cotizador!$N$16=0,"",Cotizador!$N$16) ->  | AB17: RC | AC17: 1
H18: TOTAL VALOR DECLARADO (Máximo 2'000,000 USD) | M18: =+IF(OR(SUM($M$11:$M$17)<=0,SUM($M$11:$M$17)>2000000),"",SUM($M$11:$M$17)) ->  | N18: =+IF($M$18="","",IF($N$8="NO","",(IF(SUM($N$11:$N$17)>SUM($M$11:$M$17),"",SUM($N$11:$N$17))))) ->  | AB18: DINEROTRANS | AC18: 1
G19: =+IF(SUM(M11:M16)>2000000,"Sus Valores suman "&SUM(M11:M16)&" USD, por favor corrija los montos","") -> 
G20: Coberturas
M22: Valor Declarado | N22: Valor Asegurado
H23: =IF(Cotizador!$K$40=0,"",Cotizador!$K$40) -> NO | I23: Rotura de Maquinaria | M23: =+IF($M$18="","",IF($H$23="NO","",IF($M$15>0,$M$15,""))) ->  | N23: =+IF($M$23="","",IF($M$23>200000,200000,$M$23)) -> 
I25: Equipo Electrónico
H26: =IF(Cotizador!$K$36=0,"",Cotizador!$K$36) -> NO | I26: Equipos electrónicos propios del giro del negocio | M26: =+IF($M$18="","",IF($H$26="NO","",IF($M$16>0,$M$16,""))) ->  | N26: =+IF($M$26="","",IF($M$26>50000,50000,$M$26)) -> 
H27: =IF(Cotizador!$K$37=0,"",Cotizador!$K$37) -> NO | I27: Equipos móviles y portátiles fuera del predio limitado a laptops y/o notebooks | M27: =+IF($H$27="NO","",IF($N$26="","",IF(3000>$N$26,$N$26,3000))) ->  | N27: =+IF($M$27="","",$M$27) -> 
H30: =IF(Cotizador!$K$23=0,"",Cotizador!$K$23) -> NO | I30: Robo y/o Asalto
I31: Instalaciones fijas | M31: =+IF($M$18="","",IF($H$30="NO","",IF($M$12>0,$M$12,""))) ->  | N31: =+IF($M$31="","",IF($M$31>100000*AC5,100000*$AC$5,$M$31)) -> 
I32: Mobiliario y/o contenido propios del giro del negocio | M32: =+IF($M$18="","",IF($H$30="NO","",IF($M$13>0,$M$13,""))) ->  | N32: =+IF($M$32="","",IF($M$32>100000*AC6,100000*$AC$6,$M$32)) -> 
I33: Existencias propias del giro del negocio | M33: =+IF($M$18="","",IF($H$30="NO","",IF($M$14>0,$M$14,""))) ->  | N33: =+IF($M$33="","",IF($M$33>100000*$AC$7,100000*$AC$7,$M$33)) -> 
I34: Maquinaria propia del giro del negocio | M34: =+IF($M$18="","",IF($H$30="NO","",IF($M$15>0,$M$15,""))) ->  | N34: =+IF($M$34="","",IF($M$34>100000*$AC$8,100000*$AC$8,$M$34)) -> 
I35: Equipo electrónico fijo | M35: =+IF($M$18="","",IF($H$30="NO","",IF($M$16>0,$M$16,""))) ->  | N35: =+IF($M$35="","",IF($M$35>100000*$AC$9,100000*$AC$9,$M$35)) -> 
H36: =IF(Cotizador!$K$29=0,"",Cotizador!$K$29) -> NO | I36: Dinero y/o valores dentro del local (caja chica y/o caja registradora) | M36: =IF(Cotizador!$M$29=0,"",Cotizador!$M$29) -> --------- | N36: =+IF($AB$7=0,"",IF($H$36="NO","",IF($AB$7<3000,$AB$7,3000))) -> 
H38: =IF(Cotizador!$K$31=0,"",Cotizador!$K$31) -> NO | I38: Dinero en Tránsito | M38: =IF(Cotizador!$M$31=0,"",Cotizador!$M$31) -> --------- | N38: =+IF($AB$7=0,"",IF($H$38="NO","",IF($AB$7<3000,$AB$7,3000))) -> 
H40: =IF(Cotizador!$K$33=0,"",Cotizador!$K$33) -> NO | I40: Responsabilidad Civil | K40: Opción: | L40: =IF(Cotizador!$M$33=0,"",Cotizador!$M$33) -> 1 | N40: =IF(H17="","",IF(H40="NO","",IF(L40=1,50000,IF(L40=2,100000,IF(L40=3,200000,IF(L40=4,300000,500000)))))) -> 

Sheet CoberturasaElegirLocal3
AB5: SÍ | AC5: =IF(ISERROR($M$31/$AB$7),0,$M$31/$AB$7) -> 0
G6: Declaración de Bienes | AB6: NO | AC6: =IF(ISERROR($M$32/$AB$7),0,$M$32/$AB$7) -> 0
AB7: =+SUM(M31:M35) -> 0 | AC7: =IF(ISERROR($M$33/$AB$7),0,$M$33/$AB$7) -> 0
H8: Tipo de Moneda: | I8: =IF(Cotizador!$D$7=0,"",Cotizador!$D$7) -> USD | M8: Endosado al Banco?: | N8: =IF(Cotizador!$S$7=0,"",Cotizador!$S$7) -> NO | Z8: 1 | AC8: =IF(ISERROR($M$34/$AB$7),0,$M$34/$AB$7) -> 0
Z9: 2 | AC9: =IF(ISERROR($M$35/$AB$7),0,$M$35/$AB$7) -> 0
M10: Totales | N10: Endosado | Z10: 3
H11: Edificio (sin considerar el valor del terreno ni Instalaciones Fijas) | M11: =IF(Cotizador!$R$10=0,"",Cotizador!$R$10) ->  | N11: =IF(Cotizador!$S$10=0,"",Cotizador!$S$10) ->  | O11: =IF(N11="","",IF(OR(AND($N$8="NO",N11>0),AND($N$8="SÍ",M11="")),"Endosado Invalido","")) ->  | Z11: 4
H12: Instalaciones fijas | M12: =IF(Cotizador!$R$11=0,"",Cotizador!$R$11) ->  | N12: =IF(Cotizador!$S$11=0,"",Cotizador!$S$11) ->  | Z12: 5 | AB12: RM | AC12: 1 | AD12: 2
H13: Mobiliario y/o contenido propios del giro | M13: =IF(Cotizador!$R$12=0,"",Cotizador!$R$12) ->  | N13: =IF(Cotizador!$S$12=0,"",Cotizador!$S$12) ->  | AB13: EQEL | AC13: 1
H14: Existencias propias del giro del negocio | M14: =IF(Cotizador!$R$13=0,"",Cotizador!$R$13) ->  | N14: =IF(Cotizador!$S$13=0,"",Cotizador!$S$13) ->  | AB14: EQMOV | AC14: 1
H15: Maquinaria propia del giro del negocio | M15: =IF(Cotizador!$R$14=0,"",Cotizador!$R$14) ->  | N15: =IF(Cotizador!$S$14=0,"",Cotizador!$S$14) ->  | AB15: ROBO | AC15: 1
H16: Equipos electrónicos propios del giro del negocio | M16: =IF(Cotizador!$R$15=0,"",Cotizador!$R$15) ->  | N16: =IF(Cotizador!$S$15=0,"",Cotizador!$S$15) ->  | AB16: DINERO | AC16: 1
H17: Lucro Cesante | M17: =IF(Cotizador!$R$16=0,"",Cotizador!$R$16) ->  | N17: =IF(Cotizador!$S$16=0,"",Cotizador!$S$16) ->  | AB17: RC | AC17: 1
H18: TOTAL VALOR DECLARADO (Máximo 2'000,000 USD) | M18: =+IF(OR(SUM($M$11:$M$17)<=0,SUM($M$11:$M$17)>2000000),"",SUM($M$11:$M$17)) ->  | N18: =+IF($M$18="","",IF($N$8="NO","",(IF(SUM($N$11:$N$17)>SUM($M$11:$M$17),"",SUM($N$11:$N$17))))) ->  | AB18: DINEROTRANS | AC18: 1
G19: =+IF(SUM(M11:M16)>2000000,"Sus Valores suman "&SUM(M11:M16)&" USD, por favor corrija los montos","") -> 
G20: Coberturas
M22: Valor Declarado | N22: Valor Asegurado
H23: =IF(Cotizador!$P$40=0,"",Cotizador!$P$40) -> NO | I23: Rotura de Maquinaria | M23: =+IF($M$18="","",IF($H$23="NO","",IF($M$15>0,$M$15,""))) ->  | N23: =+IF($M$23="","",IF($M$23>200000,200000,$M$23)) -> 
I25: Equipo Electrónico
H26: =IF(Cotizador!$P$36=0,"",Cotizador!$P$36) -> NO | I26: Equipos electrónicos propios del giro del negocio | M26: =+IF($M$18="","",IF($H$26="NO","",IF($M$16>0,$M$16,""))) ->  | N26: =+IF($M$26="","",IF($M$26>50000,50000,$M$26)) -> 
H27: =IF(Cotizador!$P$37=0,"",Cotizador!$P$37) -> NO | I27: Equipos móviles y portátiles fuera del predio limitado a laptops y/o notebooks | M27: =+IF($H$27="NO","",IF($N$26="","",IF(3000>$N$26,$N$26,3000))) ->  | N27: =+IF($M$27="","",$M$27) -> 
H30: =IF(Cotizador!$P$23=0,"",Cotizador!$P$23) -> NO | I30: Robo y/o Asalto
I31: Instalaciones fijas | M31: =+IF($M$18="","",IF($H$30="NO","",IF($M$12>0,$M$12,""))) ->  | N31: =+IF($M$31="","",IF($M$31>100000*AC5,100000*$AC$5,$M$31)) -> 
I32: Mobiliario y/o contenido propios del giro del negocio | M32: =+IF($M$18="","",IF($H$30="NO","",IF($M$13>0,$M$13,""))) ->  | N32: =+IF($M$32="","",IF($M$32>100000*AC6,100000*$AC$6,$M$32)) -> 
I33: Existencias propias del giro del negocio | M33: =+IF($M$18="","",IF($H$30="NO","",IF($M$14>0,$M$14,""))) ->  | N33: =+IF($M$33="","",IF($M$33>100000*$AC$7,100000*$AC$7,$M$33)) -> 
I34: Maquinaria propia del giro del negocio | M34: =+IF($M$18="","",IF($H$30="NO","",IF($M$15>0,$M$15,""))) ->  | N34: =+IF($M$34="","",IF($M$34>100000*$AC$8,100000*$AC$8,$M$34)) -> 
I35: Equipo electrónico fijo | M35: =+IF($M$18="","",IF($H$30="NO","",IF($M$16>0,$M$16,""))) ->  | N35: =+IF($M$35="","",IF($M$35>100000*$AC$9,100000*$AC$9,$M$35)) -> 
H36: =IF(Cotizador!$P$29=0,"",Cotizador!$P$29) -> NO | I36: Dinero y/o valores dentro del local (caja chica y/o caja registradora) | M36: =IF(Cotizador!$R$29=0,"",Cotizador!$R$29) -> --------- | N36: =+IF($AB$7=0,"",IF($H$36="NO","",IF($AB$7<3000,$AB$7,3000))) -> 
H38: =IF(Cotizador!$P$31=0,"",Cotizador!$P$31) -> NO | I38: Dinero en Tránsito | M38: =IF(Cotizador!$R$31=0,"",Cotizador!$R$31) -> --------- | N38: =+IF($AB$7=0,"",IF($H$38="NO","",IF($AB$7<3000,$AB$7,3000))) -> 
H40: =IF(Cotizador!$P$33=0,"",Cotizador!$P$33) -> NO | I40: Responsabilidad Civil | K40: Opción: | L40: =IF(Cotizador!$R$33=0,"",Cotizador!$R$33) -> 1 | N40: =IF(H17="","",IF(H40="NO","",IF(L40=1,50000,IF(L40=2,100000,IF(L40=3,200000,IF(L40=4,300000,500000)))))) -> 

Sheet Solicitud
B8: ="Solicitud de Seguro - Multiriesgo Negocios " & configuracion!$G$2 -> Solicitud de Seguro - Multiriesgo Negocios OCTUBRE 2021
C9: Contratante
C11: Persona Natural | I11: =IF(OR(Solicitud.Manual!$C$8="DNI",Solicitud.Manual!$C$8="CE"),"X","") ->  | L11: Persona Jurídica | N11: =IF(Solicitud.Manual!$C$8="RUC","X","") ->  | T11: Código de cliente | Y11: =IF(LEN(Solicitud.Manual!$E$14)=0,"",Solicitud.Manual!$E$14) -> 
C13: DNI | D13: =IF(Solicitud.Manual!$C$8="DNI",Solicitud.Manual!$E$8,"") ->  | L13: RUC | M13: =IF(Solicitud.Manual!$C$8="RUC",Solicitud.Manual!$E$8,"") ->  | T13: Otro (indicar tipo y numero) | AA13: =IF(Solicitud.Manual!$C$8="CE",Solicitud.Manual!$C$8,"") ->  | AC13: =IF(Solicitud.Manual!$C$8="CE",Solicitud.Manual!$E$8,"") -> 
C15: Nombre / Razon Social | J15: =IF(LEN(Solicitud.Manual!$C$9)=0,"",Solicitud.Manual!$C$9) -> 
C16: Apellido Paterno | H16: =IF(LEN(Solicitud.Manual!$C$10)=0,"",Solicitud.Manual!$C$10) ->  | U16: Apellido Materno | Y16: =IF(LEN(Solicitud.Manual!$E$10)=0,"",Solicitud.Manual!$E$10) -> 
C18: Sexo | E18: F | F18: M | Q18: Fecha de Nacimiento | V18: =IF(LEN(Solicitud.Manual!$E$17)=0,"",DAY(Solicitud.Manual!$E$17)) ->  | W18: =IF(LEN(Solicitud.Manual!$E$17)=0,"",TEXT(MONTH(Solicitud.Manual!$E$17),"00")) ->  | X18: =IF(LEN(Solicitud.Manual!$E$17)=0,"",TEXT(YEAR(Solicitud.Manual!$E$17),"00")) ->  | AD18: Estado Civil | AE18: =IF(LEN(Solicitud.Manual!$E$18)=0,"",Solicitud.Manual!$E$18) -> 
V19: dd/ | W19: mm/ | X19: aa/
C20: Nacionalidad | G20: =IF(LEN(Solicitud.Manual!$E$16)=0,"",Solicitud.Manual!$E$16) ->  | M20: Profesion / Ocupación | P20: =IF(LEN(Solicitud.Manual!$E$15)=0,"",Solicitud.Manual!$E$15) ->  | Y20: Cargo | AB20: =IF(LEN(Solicitud.Manual!$E$12)=0,"",Solicitud.Manual!$E$12) -> 
C21: Dirección (Jr / Cl / Av) | J21: =IF(LEN(Solicitud.Manual!$C$11)=0,"",Solicitud.Manual!$C$11) ->  | W21: Nro | X21: =IF(LEN(Solicitud.Manual!$C$12)=0,"",Solicitud.Manual!$C$12) ->  | AC21: Dpto/Piso/Int | AD21: =IF(LEN(Solicitud.Manual!$C$13)=0,"",Solicitud.Manual!$C$13) ->  | AE21: Mz | AF21: =IF(LEN(Solicitud.Manual!$C$14)=0,"",Solicitud.Manual!$C$14) ->  | AG21: Lt | AH21: =IF(LEN(Solicitud.Manual!$C$15)=0,"",Solicitud.Manual!$C$15) -> 
C22: Urbanización (Urb / AAHH / Coop) | AC22: Sec / Etapa / Zona | AD22: =IF(Solicitud.Manual!C17="","",Solicitud.Manual!C17) -> 
C23: Referencia
C24: Distrito | E24: =IF(LEN(Solicitud.Manual!$C$16)=0,"",Solicitud.Manual!$C$16) ->  | M24: Provincia | N24: =IF(LEN(Solicitud.Manual!$C$17)=0,"",Solicitud.Manual!$C$17) ->  | S24: Departamento | W24: =IF(LEN(Solicitud.Manual!$C$18)=0,"",Solicitud.Manual!$C$18) ->  | AD24: País
C25: Teléfono Casa | G25: =IF(LEN(Solicitud.Manual!$C$19)=0,"",Solicitud.Manual!$C$19) ->  | M25: Teléfono trabajo | Q25: =IF(LEN(Solicitud.Manual!$E$19)=0,"",Solicitud.Manual!$E$19) ->  | AC25: Teléfono Móvil | AD25: =IF(LEN(Solicitud.Manual!$C$20)=0,"",Solicitud.Manual!$C$20) -> 
C26: Correo electrónico(*) | I26: =IF(LEN(Solicitud.Manual!$C$21)=0,"",Solicitud.Manual!$C$21) -> 
C27: (*) Para recibir información del contrato de seguro y/o cualquier comunicación necesaria para su ejecucion. | Y27: Acepto | AB27: =IF(Solicitud.Manual!$C$22="Acepto","X","") ->  | AF27: No Acepto | AH27: =IF(Solicitud.Manual!$C$22="No Acepto","X","") -> 
C28: (*) Para recibir su póliza de forma electrónica | Y28: Acepto | AB28: =IF(Solicitud.Manual!$C$23="Acepto","X","") ->  | AF28: No Acepto | AH28: =IF(Solicitud.Manual!$C$23="No Acepto","X","") -> 
C31: Asegurado titular (llenar solo si es diferente del Contratante)
C32: Persona Natural | I32: =IF(Solicitud.Manual!$I$7="NO","",IF(OR(Solicitud.Manual!$I$8="DNI",Solicitud.Manual!$I$8="CE"),"X","")) ->  | L32: Persona Jurídica | N32: =IF(Solicitud.Manual!$I$7="NO","",IF(Solicitud.Manual!$I$8="RUC","X","")) ->  | T32: Código de cliente | Y32: =IF(Solicitud.Manual!$I$7="NO","",IF(Solicitud.Manual!$I$7="NO","",IF(LEN(Solicitud.Manual!$M$14)=0,"",Solicitud.Manual!$M$14))) -> 
C34: DNI | D34: =IF(Solicitud.Manual!$I$7="NO","",IF(Solicitud.Manual!$I$8="DNI",Solicitud.Manual!$M$8,"")) ->  | L34: RUC | M34: =IF(Solicitud.Manual!$I$7="NO","",IF(Solicitud.Manual!$I$8="RUC",Solicitud.Manual!$M$8,"")) ->  | T34: Otro (indicar tipo y numero) | AA34: =IF(Solicitud.Manual!$I$8="CE",Solicitud.Manual!$I$8,"") ->  | AC34: =IF(Solicitud.Manual!$I$8="CE",Solicitud.Manual!$M$8,"") -> 
C36: Nombre / Razon Social | J36: =IF(Solicitud.Manual!$I$7="NO","",IF(LEN(Solicitud.Manual!$I$9)=0,"",Solicitud.Manual!$I$9)) -> 
C37: Apellido Paterno | H37: =IF(Solicitud.Manual!$I$7="NO","",IF(LEN(Solicitud.Manual!$I$10)=0,"",Solicitud.Manual!$I$10)) ->  | U37: Apellido Materno | Y37: =IF(Solicitud.Manual!$I$7="NO","",IF(LEN(Solicitud.Manual!$M$10)=0,"",Solicitud.Manual!$M$10)) -> 
C39: Sexo | E39: F | F39: M | Q39: Fecha de Nacimiento | V39: =IF(Solicitud.Manual!$I$7="NO","",IF(LEN(Solicitud.Manual!$M$17)=0,"",DAY(Solicitud.Manual!$M$17))) ->  | W39: =IF(Solicitud.Manual!$I$7="NO","",IF(LEN(Solicitud.Manual!$M$17)=0,"",TEXT(MONTH(Solicitud.Manual!$M$17),"00"))) ->  | X39: =IF(Solicitud.Manual!$I$7="NO","",IF(LEN(Solicitud.Manual!$M$17)=0,"",TEXT(YEAR(Solicitud.Manual!$M$17),"00"))) ->  | AD39: Estado Civil | AE39: =IF(Solicitud.Manual!$I$7="NO","",IF(LEN(Solicitud.Manual!$M$18)=0,"",Solicitud.Manual!$M$18)) -> 
V40: dd/ | W40: mm/ | X40: aa/
C41: Nacionalidad | G41: =IF(Solicitud.Manual!$I$7="NO","",IF(LEN(Solicitud.Manual!$M$16)=0,"",Solicitud.Manual!$M$16)) ->  | M41: Profesion / Ocupación | P41: =IF(Solicitud.Manual!$I$7="NO","",IF(LEN(Solicitud.Manual!$M$15)=0,"",Solicitud.Manual!$M$15)) ->  | Y41: Cargo | AB41: =IF(Solicitud.Manual!$I$7="NO","",IF(LEN(Solicitud.Manual!$M$12)=0,"",Solicitud.Manual!$M$12)) -> 
C42: Dirección (Jr / Cl / Av) | J42: =IF(Solicitud.Manual!$I$7="NO","",IF(LEN(Solicitud.Manual!$I$11)=0,"",Solicitud.Manual!$I$11)) ->  | W42: Nro | X42: =IF(Solicitud.Manual!$I$7="NO","",IF(LEN(Solicitud.Manual!$I$12)=0,"",Solicitud.Manual!$I$12)) ->  | AC42: Dpto/Piso/Int | AD42: =IF(Solicitud.Manual!$I$7="NO","",IF(LEN(Solicitud.Manual!$I$13)=0,"",Solicitud.Manual!$I$13)) ->  | AE42: Mz | AF42: =IF(Solicitud.Manual!$I$7="NO","",IF(LEN(Solicitud.Manual!$I$14)=0,"",Solicitud.Manual!$I$14)) ->  | AG42: Lt | AH42: =IF(Solicitud.Manual!$I$7="NO","",IF(LEN(Solicitud.Manual!$I$15)=0,"",Solicitud.Manual!$I$15)) -> 
C43: Urbanización (Urb / AAHH / Coop) | AC43: Sec / Etapa / Zona | AD43: =IF(Solicitud.Manual!I17="","",Solicitud.Manual!I17) -> 
C44: Referencia
C45: Distrito | E45: =IF(Solicitud.Manual!$I$7="NO","",IF(LEN(Solicitud.Manual!$I$16)=0,"",Solicitud.Manual!$I$16)) ->  | M45: Provincia | N45: =IF(Solicitud.Manual!$I$7="NO","",IF(LEN(Solicitud.Manual!$I$17)=0,"",Solicitud.Manual!$I$17)) ->  | S45: Departamento | W45: =IF(LEN(Solicitud.Manual!$I$18)=0,"",Solicitud.Manual!$I$18) ->  | AD45: País
C46: Teléfono Casa | G46: =IF(LEN(Solicitud.Manual!$I$19)=0,"",Solicitud.Manual!$I$19) ->  | M46: Teléfono trabajo | Q46: =IF(Solicitud.Manual!$I$7="NO","",IF(LEN(Solicitud.Manual!$M$19)=0,"",Solicitud.Manual!$M$19)) ->  | AC46: Teléfono Móvil | AD46: =IF(Solicitud.Manual!$I$7="NO","",IF(LEN(Solicitud.Manual!$I$20)=0,"",Solicitud.Manual!$I$20)) -> 
C47: Correo electrónico(*) | I47: =IF(Solicitud.Manual!$I$7="NO","",IF(LEN(Solicitud.Manual!$I$21)=0,"",Solicitud.Manual!$I$21)) -> 
C48: (*) Para recibir información del contrato de seguro y/o cualquier comunicación necesaria para su ejecucion. | Y48: Acepto | AB48: =IF(Solicitud.Manual!$I$7="NO","",IF(Solicitud.Manual!$I$22="Acepto","X","")) ->  | AF48: No Acepto | AH48: =IF(Solicitud.Manual!$I$7="NO","",IF(Solicitud.Manual!$I$22="No Acepto","X","")) -> 
C49: (*) Para recibir su póliza de forma electrónica | Y49: Acepto | AB49: =IF(Solicitud.Manual!$I$7="NO","",IF(Solicitud.Manual!$I$23="Acepto","X","")) ->  | AF49: No Acepto | AH49: =IF(Solicitud.Manual!$I$7="NO","",IF(Solicitud.Manual!$I$23="No Acepto","X","")) -> 
C51: Solicitud.Manual del Negocio a asegurar
C53: Local 1
C55: Actividad y/o giro | H55: =IF(LEN(Solicitud.Manual!$E$27)=0,"",Solicitud.Manual!$E$27) ->  | X55: Comercio | AD55: Servicio
C57: Ocupación del local | I57: =IF(LEN(Solicitud.Manual!$E$29)=0,"",Solicitud.Manual!$E$29) -> 
C59: Dirección | F59: =IF(LEN(Solicitud.Manual!$C$47)=0,"",Solicitud.Manual!$C$47) & " " & IF(LEN(Solicitud.Manual!$C$48)=0,"",Solicitud.Manual!$C$48) -> 
C61: Distrito | E61: =IF(LEN(Solicitud.Manual!$C$46)=0,"",Solicitud.Manual!$C$46) ->  | M61: Provincia | N61: =IF(LEN(Solicitud.Manual!$C$45)=0,"",Solicitud.Manual!$C$45) ->  | T61: Departamento | Y61: =IF(LEN(Solicitud.Manual!$C$44)=0,"",Solicitud.Manual!$C$44) ->  | AC61: País | AD61: Perú
C63: Nro. de pisos | G63: =IF(LEN(Solicitud.Manual!$C$54)=0,"",Solicitud.Manual!$C$54) ->  | I63: Nro. de sótanos | N63: =IF(LEN(Solicitud.Manual!$C$55)=0,"",Solicitud.Manual!$C$55) ->  | Q63: Año de construcción | V63: =IF(LEN(Solicitud.Manual!$C$53)=0,"",Solicitud.Manual!$C$53) -> 
C65: Material de construcción predominante | M65: Mamposteria | N65: =IF(Solicitud.Manual!$I$61="NO","","X") -> X | P65: Adobe | T65: Acero Metálico | AC65: Madera
L67: Concreto Armado | N67: =IF(Solicitud.Manual!$I$63="NO","","X") -> X | P67: Quincha | T67: Otro
C68: Metros construidos: | K68: m2 | L68: (Ladrillo y cemento)
C71: Local 2
C73: Actividad y/o giro | H73: =IF(LEN(Solicitud.Manual!$E$32)=0,"",Solicitud.Manual!$E$32) ->  | X73: Comercio | AB73: =+IF(DatosdelNegocioLocal1!$I$12="Comercial","X","") ->  | AD73: Servicio | AG73: =+IF(DatosdelNegocioLocal1!$I$12="Servicios","X","") -> 
C75: Ocupación del local | I75: =IF(LEN(Solicitud.Manual!$E$34)=0,"",Solicitud.Manual!$E$34) -> 
C77: Dirección | F77: =IF(LEN(Solicitud.Manual!$G$47)=0,"",Solicitud.Manual!$G$47) & " " & IF(LEN(Solicitud.Manual!$G$48)=0,"",Solicitud.Manual!$G$48) -> 
C79: Distrito | E79: =IF(LEN(Solicitud.Manual!$G$46)=0,"",Solicitud.Manual!$G$46) ->  | M79: Provincia | N79: =IF(LEN(Solicitud.Manual!$G$45)=0,"",Solicitud.Manual!$G$45) ->  | T79: Departamento | Y79: =IF(LEN(Solicitud.Manual!$G$44)=0,"",Solicitud.Manual!$G$44) ->  | AC79: País | AD79: Perú
C81: Nro. de pisos | G81: =IF(LEN(Solicitud.Manual!$G$54)=0,"",Solicitud.Manual!$G$54) ->  | I81: Nro. de sótanos | N81: =IF(LEN(Solicitud.Manual!$G$55)=0,"",Solicitud.Manual!$G$55) ->  | Q81: Año de construcción | V81: =IF(LEN(Solicitud.Manual!$G$53)=0,"",Solicitud.Manual!$G$53) -> 
C83: Material de construcción predominante | M83: Mamposteria | N83: =IF(Solicitud.Manual!$J$61="NO","","X") -> X | P83: Adobe | T83: Acero Metálico | AC83: Madera
L85: Concreto Armado | N85: =IF(Solicitud.Manual!$J$63="NO","","X") -> X | P85: Quincha | T85: Otro
C86: Metros construidos: | K86: m2 | L86: (Ladrillo y cemento)
C89: Local 3
C91: Actividad y/o giro | H91: =IF(LEN(Solicitud.Manual!$E$37)=0,"",Solicitud.Manual!$E$37) ->  | X91: Comercio | AB91: =+IF(DatosdelNegocioLocal1!$I$12="Comercial","X","") ->  | AD91: Servicio | AG91: =+IF(DatosdelNegocioLocal1!$I$12="Servicios","X","") -> 
C93: Ocupación del local | I93: =IF(LEN(Solicitud.Manual!$E$39)=0,"",Solicitud.Manual!$E$39) -> 
C95: Dirección | F95: =IF(LEN(Solicitud.Manual!$K$47)=0,"",Solicitud.Manual!$K$47) & " " & IF(LEN(Solicitud.Manual!$K$48)=0,"",Solicitud.Manual!$K$48) -> 
C97: Distrito | E97: =IF(LEN(Solicitud.Manual!$K$46)=0,"",Solicitud.Manual!$K$46) ->  | M97: Provincia | N97: =IF(LEN(Solicitud.Manual!$K$45)=0,"",Solicitud.Manual!$K$45) ->  | T97: Departamento | Y97: =IF(Solicitud.Manual!K44="","",Solicitud.Manual!K44) ->  | AC97: País | AD97: Perú
C99: Nro. de pisos | G99: =IF(LEN(Solicitud.Manual!$K$54)=0,"",Solicitud.Manual!$K$54) ->  | I99: Nro. de sótanos | N99: =IF(LEN(Solicitud.Manual!$K$55)=0,"",Solicitud.Manual!$K$55) ->  | Q99: Año de construcción | V99: =IF(LEN(Solicitud.Manual!$K$53)=0,"",Solicitud.Manual!$K$53) -> 
C101: Material de construcción predominante | M101: Mamposteria | N101: =IF(Solicitud.Manual!$K$61="NO","","X") -> X | P101: Adobe | T101: Acero Metálico | AC101: Madera
L103: Concreto Armado | N103: =IF(Solicitud.Manual!$K$63="NO","","X") -> X | P103: Quincha | T103: Otro
C104: Metros construidos: | K104: m2 | L104: (Ladrillo y cemento)
C108: Declaración Jurada | S108: Local 1 | Y108: Local 2 | AF108: Local 3
C110: 1. Material de construcción noble
D111: Paredes
D112: Ladrillo y cemento en su totalidad | R112: SI | S112: =IF(Solicitud.Manual!$I$61="SÍ","X","") ->  | T112: No | U112: =IF(Solicitud.Manual!$I$61="NO","X","") ->  | X112: SI | Y112: =IF(Solicitud.Manual!$J$61="SÍ","X","") ->  | Z112: No | AA112: =IF(Solicitud.Manual!$J$63="NO","X","") ->  | AE112: SI | AF112: =IF(Solicitud.Manual!$K$61="SÍ","X","") ->  | AG112: No | AH112: =IF(Solicitud.Manual!$K$61="NO","X","") -> 
D113: Techos
D114: Concreto aligerado en su totalidad | R114: SI | S114: =IF(Solicitud.Manual!$I$63="SÍ","X","") ->  | T114: No | U114: =IF(Solicitud.Manual!$I$63="NO","X","") ->  | X114: SI | Y114: =IF(Solicitud.Manual!$J$61="SÍ","X","") ->  | Z114: No | AA114: =IF(Solicitud.Manual!$J$63="NO","X","") ->  | AE114: SI | AF114: =IF(Solicitud.Manual!$K$63="SÍ","X","") ->  | AG114: No | AH114: =IF(Solicitud.Manual!$K$63="NO","X","") -> 
C116: 2. Instalaciones eléctricas empotradas y/o entubadas en su totalidad | R116: SI | S116: =IF(Solicitud.Manual!$I$65="SÍ","X","") ->  | T116: No | U116: =IF(Solicitud.Manual!$I$65="NO","X","") ->  | X116: SI | Y116: =IF(Solicitud.Manual!$J$65="SÍ","X","") ->  | Z116: No | AA116: =IF(Solicitud.Manual!$J$65="NO","X","") ->  | AE116: SI | AF116: =IF(Solicitud.Manual!$K$65="SÍ","X","") ->  | AG116: No | AH116: =IF(Solicitud.Manual!$K$65="NO","X","") -> 
C118: 3. Cuenta con uno o más extintores contra incendio | R118: SI | S118: =IF(Solicitud.Manual!$I$66="SÍ","X","") ->  | T118: No | U118: =IF(Solicitud.Manual!$I$66="NO","X","") ->  | X118: SI | Y118: =IF(Solicitud.Manual!$J$66="SÍ","X","") ->  | Z118: No | AA118: =IF(Solicitud.Manual!$J$66="NO","X","") ->  | AE118: SI | AF118: =IF(Solicitud.Manual!$K$66="SÍ","X","") ->  | AG118: No | AH118: =IF(Solicitud.Manual!$K$66="NO","X","") -> 
C120: 4. Cuenta con vigilantes | R120: SI | S120: =IF(Solicitud.Manual!$I$67="SÍ","X","") ->  | T120: No | U120: =IF(Solicitud.Manual!$I$67="NO","X","") ->  | X120: SI | Y120: =IF(Solicitud.Manual!$J$67="SÍ","X","") ->  | Z120: No | AA120: =IF(Solicitud.Manual!$J$67="NO","X","") ->  | AE120: SI | AF120: =IF(Solicitud.Manual!$K$67="SÍ","X","") ->  | AG120: No | AH120: =IF(Solicitud.Manual!$K$67="NO","X","") -> 
C122: 5. Puertas exteriores (Rejas de fierro y/o cortina metálica y/o planchas de fierro, en su totalidad) | R122: SI | S122: =IF(Solicitud.Manual!$I$68="SÍ","X","") ->  | T122: No | U122: =IF(Solicitud.Manual!$I$68="NO","X","") ->  | X122: SI | Y122: =IF(Solicitud.Manual!$J$68="SÍ","X","") ->  | Z122: No | AA122: =IF(Solicitud.Manual!$J$68="NO","X","") ->  | AE122: SI | AF122: =IF(Solicitud.Manual!$K$68="SÍ","X","") ->  | AG122: No | AH122: =IF(Solicitud.Manual!$K$68="NO","X","") -> 
C125: 6. Ventanas protegidas por reja de fierro y/o reja plegadiza y/o cortina metálica, en su totalidad | R125: SI | S125: =IF(Solicitud.Manual!$I$69="SÍ","X","") ->  | T125: No | U125: =IF(Solicitud.Manual!$I$69="NO","X","") ->  | X125: SI | Y125: =IF(Solicitud.Manual!$J$69="SÍ","X","") ->  | Z125: No | AA125: =IF(Solicitud.Manual!$J$69="NO","X","") ->  | AE125: SI | AF125: =IF(Solicitud.Manual!$K$69="SÍ","X","") ->  | AG125: No | AH125: =IF(Solicitud.Manual!$K$69="NO","X","") -> 
C128: 7. Totalidad de su mercadería se encuentra almacenada en el interior de su local bajo las condiciones antes mencionadas | R128: SI | S128: =IF(Solicitud.Manual!$I$70="SÍ","X","") ->  | T128: No | U128: =IF(Solicitud.Manual!$I$70="NO","X","") ->  | X128: SI | Y128: =IF(Solicitud.Manual!$J$70="SÍ","X","") ->  | Z128: No | AA128: =IF(Solicitud.Manual!$J$70="NO","X","") ->  | AE128: SI | AF128: =IF(Solicitud.Manual!$K$70="SÍ","X","") ->  | AG128: No | AH128: =IF(Solicitud.Manual!$K$70="NO","X","") -> 
C131: 8. Los productos que almacena o tiene dentro de su local son combustibles y/o inflamables | R131: SI | S131: =IF(Solicitud.Manual!$I$71="SÍ","X","") ->  | T131: No | U131: =IF(Solicitud.Manual!$I$71="NO","X","") ->  | X131: SI | Y131: =IF(Solicitud.Manual!$J$71="SÍ","X","") ->  | Z131: No | AA131: =IF(Solicitud.Manual!$J$71="NO","X","") ->  | AE131: SI | AF131: =IF(Solicitud.Manual!$K$71="SÍ","X","") ->  | AG131: No | AH131: =IF(Solicitud.Manual!$K$71="NO","X","") -> 
C133: 9. La ubicación del inmueble ¿está a mas de 500 metros de distancia de un río, playa o laguna y a más de 15 metros de altura alguno de estos? | R133: SI | S133: =IF(Solicitud.Manual!$I$72="SÍ","X","") ->  | T133: No | U133: =IF(Solicitud.Manual!$I$72="NO","X","") ->  | X133: SI | Y133: =IF(Solicitud.Manual!$J$72="SÍ","X","") ->  | Z133: No | AA133: =IF(Solicitud.Manual!$J$72="NO","X","") ->  | AE133: SI | AF133: =IF(Solicitud.Manual!$K$72="SÍ","X","") ->  | AG133: No | AH133: =IF(Solicitud.Manual!$K$72="NO","X","") -> 
C135: Declaración de Bienes
C136: Tipo moneda
C137: US Dólares | H137: =+IF(CoberturasaElegirLocal1!$I$8="USD","X","") -> X
N138: Local 1 | U138: Local 2 | AB138: Local 3
N139: Valor | Q139: Valor | U139: Valor | X139: Valor | AB139: Valor | AE139: Valor
N140: Declarado | Q140: Endosado | U140: Declarado | X140: Endosado | AB140: Declarado | AE140: Endosado
B141: 1 | C141: =+CoberturasaElegirLocal1!H11 -> Edificio (sin considerar el valor del terreno) | N141: =+IF(CoberturasaElegirLocal1!$M$11="","",CoberturasaElegirLocal1!$M$11) ->  | Q141: =+IF(CoberturasaElegirLocal1!$N$11="","",CoberturasaElegirLocal1!$N$11) ->  | U141: =+IF(CoberturasaElegirLocal2!$M$11="","",CoberturasaElegirLocal2!$M$11) ->  | X141: =+IF(CoberturasaElegirLocal2!$N$11="","",CoberturasaElegirLocal2!$N$11) ->  | AB141: =+IF(CoberturasaElegirLocal3!$M$11="","",CoberturasaElegirLocal3!$M$11) ->  | AE141: =+IF(CoberturasaElegirLocal3!$N$11="","",CoberturasaElegirLocal3!$N$11) -> 
B142: 2 | C142: =+IF(CoberturasaElegirLocal1!H12="","",CoberturasaElegirLocal1!H12) -> Instalaciones fijas | N142: =+IF(CoberturasaElegirLocal1!$M$12="","",CoberturasaElegirLocal1!$M$12) ->  | Q142: =+IF(CoberturasaElegirLocal1!$N$12="","",CoberturasaElegirLocal1!$N$12) ->  | U142: =+IF(CoberturasaElegirLocal2!$M$12="","",CoberturasaElegirLocal2!$M$12) ->  | X142: =+IF(CoberturasaElegirLocal2!$N$12="","",CoberturasaElegirLocal2!$N$12) ->  | AB142: =+IF(CoberturasaElegirLocal3!$M$12="","",CoberturasaElegirLocal3!$M$12) ->  | AE142: =+IF(CoberturasaElegirLocal3!$N$12="","",CoberturasaElegirLocal3!$N$12) -> 
B143: 3 | C143: =+CoberturasaElegirLocal1!H13 -> Mobiliario y/o contenido propios del giro | N143: =+IF(CoberturasaElegirLocal1!$M$13="","",CoberturasaElegirLocal1!$M$13) ->  | Q143: =+IF(CoberturasaElegirLocal1!$N$13="","",CoberturasaElegirLocal1!$N$13) ->  | U143: =+IF(CoberturasaElegirLocal2!$M$13="","",CoberturasaElegirLocal2!$M$13) ->  | X143: =+IF(CoberturasaElegirLocal2!$N$13="","",CoberturasaElegirLocal2!$N$13) ->  | AB143: =+IF(CoberturasaElegirLocal3!$M$13="","",CoberturasaElegirLocal3!$M$13) ->  | AE143: =+IF(CoberturasaElegirLocal3!$N$13="","",CoberturasaElegirLocal3!$N$13) -> 
B144: 4 | C144: =+CoberturasaElegirLocal1!H14 -> Existencias propias del giro del negocio | N144: =+IF(CoberturasaElegirLocal1!$M$14="","",CoberturasaElegirLocal1!$M$14) ->  | Q144: =+IF(CoberturasaElegirLocal1!$N$14="","",CoberturasaElegirLocal1!$N$14) ->  | U144: =+IF(CoberturasaElegirLocal2!$M$14="","",CoberturasaElegirLocal2!$M$14) ->  | X144: =+IF(CoberturasaElegirLocal2!$N$14="","",CoberturasaElegirLocal2!$N$14) ->  | AB144: =+IF(CoberturasaElegirLocal3!$M$14="","",CoberturasaElegirLocal3!$M$14) ->  | AE144: =+IF(CoberturasaElegirLocal3!$N$14="","",CoberturasaElegirLocal3!$N$14) -> 
B145: 5 | C145: =+CoberturasaElegirLocal1!H15 -> Maquinaria propia del giro del negocio | N145: =+IF(CoberturasaElegirLocal1!$M$15="","",CoberturasaElegirLocal1!$M$15) ->  | Q145: =+IF(CoberturasaElegirLocal1!$N$15="","",CoberturasaElegirLocal1!$N$15) ->  | U145: =+IF(CoberturasaElegirLocal2!$M$15="","",CoberturasaElegirLocal2!$M$15) ->  | X145: =+IF(CoberturasaElegirLocal2!$N$15="","",CoberturasaElegirLocal2!$N$15) ->  | AB145: =+IF(CoberturasaElegirLocal3!$M$15="","",CoberturasaElegirLocal3!$M$15) ->  | AE145: =+IF(CoberturasaElegirLocal3!$N$15="","",CoberturasaElegirLocal3!$N$15) -> 
B146: 6 | C146: =+CoberturasaElegirLocal1!H16 -> Equipos electrónicos propios del giro del negocio | N146: =+IF(CoberturasaElegirLocal1!$M$16="","",CoberturasaElegirLocal1!$M$16) ->  | Q146: =+IF(CoberturasaElegirLocal1!$N$16="","",CoberturasaElegirLocal1!$N$16) ->  | U146: =+IF(CoberturasaElegirLocal2!$M$16="","",CoberturasaElegirLocal2!$M$16) ->  | X146: =+IF(CoberturasaElegirLocal2!$N$16="","",CoberturasaElegirLocal2!$N$16) ->  | AB146: =+IF(CoberturasaElegirLocal3!$M$16="","",CoberturasaElegirLocal3!$M$16) ->  | AE146: =+IF(CoberturasaElegirLocal3!$N$16="","",CoberturasaElegirLocal3!$N$16) -> 
B147: 7 | C147: =+CoberturasaElegirLocal1!H17 -> Lucro Cesante | N147: =+IF(CoberturasaElegirLocal1!$M$17="","",CoberturasaElegirLocal1!$M$17) ->  | Q147: =+IF(CoberturasaElegirLocal1!$N$17="","",CoberturasaElegirLocal1!$N$17) ->  | U147: =+IF(CoberturasaElegirLocal2!$M$17="","",CoberturasaElegirLocal2!$M$17) ->  | X147: =+IF(CoberturasaElegirLocal2!$N$17="","",CoberturasaElegirLocal2!$N$17) ->  | AB147: =+IF(CoberturasaElegirLocal3!$M$17="","",CoberturasaElegirLocal3!$M$17) ->  | AE147: =+IF(CoberturasaElegirLocal3!$N$17="","",CoberturasaElegirLocal3!$N$17) -> 
C148: (*) Valor total declarado por local | N148: =+IF(CoberturasaElegirLocal1!$M$18="","",CoberturasaElegirLocal1!$M$18) ->  | Q148: =+IF(CoberturasaElegirLocal1!$N$18="","",CoberturasaElegirLocal1!$N$18) ->  | U148: =+IF(CoberturasaElegirLocal2!$M$18="","",CoberturasaElegirLocal2!$M$18) ->  | X148: =+IF(CoberturasaElegirLocal2!$N$18="","",CoberturasaElegirLocal2!$N$18) ->  | AB148: =+IF(CoberturasaElegirLocal3!$M$18="","",CoberturasaElegirLocal3!$M$18) ->  | AE148: =+IF(CoberturasaElegirLocal3!$N$18="","",CoberturasaElegirLocal3!$N$18) -> 
C149: (*) Limitado a US$ 2,000,000 y/o su equivalente en moneda nacional
M151: Endosado a favor de: | N151: =IF(Cotizador!$H$8=0,"",Cotizador!$H$8) ->  | U151: =IF(Cotizador!$M$8=0,"",Cotizador!$M$8) ->  | AB151: =IF(Cotizador!$R$8=0,"",Cotizador!$R$8) -> 
C153: Coberturas
B155: 1) Sección incendio y líneas aliadas | S155: Local 1 | Y155: Local 2 | AF155: Local 3
B157: A valor total | T157: =IF(Cotizador!$H$16 =0,"X","") -> X | Z157: =IF(Cotizador!$M$16 =0,"X","") -> X | AG157: =IF(Cotizador!$R$16 =0,"X","") -> X
B158: A valor total incluido lucro cesante, periodo incial 12 meses ( Limite único combinado) | T158: =IF(Cotizador!$H$16>0,"X","") ->  | Z158: =IF(Cotizador!$M$16>0,"X","") ->  | AG158: =IF(Cotizador!$R$16>0,"X","") -> 
B160: A valor total
B161: Bajo esta modalidad queda convenido que EL ASEGURADO fijará la suma asegurada, la cual debe coincidir con el Valor de
B162: Reposición a Nuevo de la totalidad de los bienes que conforman la materia asegurada.
B164: Sub Límites [1] | N164: Límite US $
B166: Huelga, Motín, Conmoción Civil, Daño Malicioso, Vandalismo y / o Terrorismo en el agregado por vigencia. (Límite Único y Combinado) | N166: Hasta el 100% del valor declarado, límite máximo US$ 2'000,000
B169: Gastos Extraordinarios: (Límite Único y Combinado) | N169: Hasta el 20% del valor declarado, límite máximo US$ 400,000.00
B170: - Honorarios Arquitectos, topógrafos e Ingenieros
B171: - Documentos y Modelos
B172: - Remoción de Escombros
B173: Cobertura Automática para Nuevas Adquisiciones, máximo 30 días | N173: Hasta el 20% del valor declarado, límite máximo
B174: para declaración a PACÍFICO. | N174: US$ 100,000.00
B175: (Aplica sólo si cuenta con contenido, equipos y maquinaria)
B176: Rotura Accidental de Vidrios, Cristales y/o Avisos luminosos. Aplica | N176: Hasta el 10% del valor declarado límite máximo
B177: para contenido y edificación. | N177: US$ 5,000.00
B179: Gastos extras | N179: Hasta el 20% del valor declarado límite máximo
N180: US$ 400,000.00
B182: Refrigeración ( Aplica a Grupo "A": restaurantes, hoteles, panaderías, | N182: US$5,000 por evento y 20,000 Límite Agregado Anual
B183: heladerías, carnicerías y bodegas)
B185: [1] Forman parte de la Suma Asegurada, no son Adicionales
B187: 2) Sección Rotura de Maquinaria
C189: Hasta el 100% del valor declarado de la maquinaria fija en la sección de incendio, limitado hasta US$ 200,000 y/o su equivalente
C190: en moneda nacional.
B192: 3) Sección Equipo Electrónico
C194: Hasta el 100% del valor declarado de equipo electrónico en la sección de incendio, limitado hasta US$ 50,000 y/o su equivalente
C195: en moneda nacional.
C196: Laptops y/o notebooks hasta el 100% de la suma asegurada de equipo electrónico, limitado hasta US$ 3,000.00 y/o su
C197: equivalente en moneda nacional y en límite agregado vigencia.
B199: 4) Sección Robo y/o Asalto
C201: Hasta el 100% del valor declarado total de activos (excepto edificio) limitado hasta US$ 100,000.00 y/o su equivalente en
C202: moneda nacional.
C203: Dinero en tránsito máximo US$ 3,000.00 y/o su equivalente en moderna nacional y en límite agregado por vigencia.
C204: Dinero dentro del local hasta US$ 3,000.00 y/o su equivalente en moderna nacional y en límite agregado vigencia.
B206: 5) Sección Responsabilidad Civil
C208: Responsabilidad civil extracontractual hasta el 100% del valor declarado de incendio, limitado hasta US$ 200,000.00 en límite
C209: agregado vigencia y/o su equivalente en moneda nacional.
C211: Límite Asegurado (excepto hoteles hasta US$) | W211: Solo hoteles hasta US$
H213: Local 1 | J213: Local 2 | L213: Local 3 | AB213: Local 1 | AD213: Local 2 | AF213: Local 3
C214: 50000 | H214: =IF(DatosdelNegocioLocal1!$AH$6<>13, IF($C$214=Cotizador!$I$33,"X",""),"") ->  | J214: =IF(DatosdelNegocioLocal2!$AH$6<>13, IF($C$214=Cotizador!$N$33,"X",""),"") ->  | L214: =IF(DatosdelNegocioLocal3!$AH$6<>13, IF($C$214=Cotizador!$S$33,"X",""),"") ->  | W214: 50000 | AB214: =IF(DatosdelNegocioLocal1!$AH$6=13,IF($W$214=Cotizador!$I$33,"X",""),"") ->  | AD214: =IF(DatosdelNegocioLocal2!$AH$6=13,IF($W$214=Cotizador!$N$33,"X",""),"") ->  | AF214: =IF(DatosdelNegocioLocal3!$AH$6=13,IF($W$214=Cotizador!$S$33,"X",""),"") -> 
C215: 100000 | H215: =IF(DatosdelNegocioLocal1!$AH$6<>13, IF($C$215=Cotizador!$I$33,"X",""),"") ->  | J215: =IF(DatosdelNegocioLocal2!$AH$6<>13, IF($C$215=Cotizador!$N$33,"X",""),"") ->  | L215: =IF(DatosdelNegocioLocal3!$AH$6<>13, IF($C$215=Cotizador!$S$33,"X",""),"") ->  | W215: 100000 | AB215: =IF(DatosdelNegocioLocal1!$AH$6=13,IF($W$215=Cotizador!$I$33,"X",""),"") ->  | AD215: =IF(DatosdelNegocioLocal2!$AH$6=13,IF($W$215=Cotizador!$N$33,"X",""),"") ->  | AF215: =IF(DatosdelNegocioLocal3!$AH$6=13,IF($W$215=Cotizador!$S$33,"X",""),"") -> 
C216: 200000 | H216: =IF(DatosdelNegocioLocal1!$AH$6<>13, IF($C$216=Cotizador!$I$33,"X",""),"") ->  | J216: =IF(DatosdelNegocioLocal2!$AH$6<>13, IF($C$216=Cotizador!$N$33,"X",""),"") ->  | L216: =IF(DatosdelNegocioLocal3!$AH$6<>13, IF($C$216=Cotizador!$S$33,"X",""),"") ->  | W216: 200000 | AB216: =IF(DatosdelNegocioLocal1!$AH$6=13,IF($W$216=Cotizador!$I$33,"X",""),"") ->  | AD216: =IF(DatosdelNegocioLocal2!$AH$6=13,IF($W$216=Cotizador!$N$33,"X",""),"") ->  | AF216: =IF(DatosdelNegocioLocal3!$AH$6=13,IF($W$216=Cotizador!$S$33,"X",""),"") -> 
C217: 300000 | H217: =IF(DatosdelNegocioLocal1!$AH$6<>13, IF($C$217=Cotizador!$I$33,"X",""),"") ->  | J217: =IF(DatosdelNegocioLocal2!$AH$6<>13, IF($C$217=Cotizador!$N$33,"X",""),"") ->  | L217: =IF(DatosdelNegocioLocal3!$AH$6<>13, IF($C$217=Cotizador!$S$33,"X",""),"") ->  | W217: 300000 | AB217: =IF(DatosdelNegocioLocal1!$AH$6=13,IF($W$217=Cotizador!$I$33,"X",""),"") ->  | AD217: =IF(DatosdelNegocioLocal2!$AH$6=13,IF($W$217=Cotizador!$N$33,"X",""),"") ->  | AF217: =IF(DatosdelNegocioLocal3!$AH$6=13,IF($W$217=Cotizador!$S$33,"X",""),"") -> 
C218: 500000 | H218: =IF(DatosdelNegocioLocal1!$AH$6<>13, IF($C$218=Cotizador!$I$33,"X",""),"") ->  | J218: =IF(DatosdelNegocioLocal2!$AH$6<>13, IF($C$218=Cotizador!$N$33,"X",""),"") ->  | L218: =IF(DatosdelNegocioLocal3!$AH$6<>13, IF($C$218=Cotizador!$S$33,"X",""),"") ->  | W218: 500000 | AB218: =IF(DatosdelNegocioLocal1!$AH$6=13,IF($W$218=Cotizador!$I$33,"X",""),"") ->  | AD218: =IF(DatosdelNegocioLocal2!$AH$6=13,IF($W$218=Cotizador!$N$33,"X",""),"") ->  | AF218: =IF(DatosdelNegocioLocal3!$AH$6=13,IF($W$218=Cotizador!$S$33,"X",""),"") -> 
B221: 6) Sección Transporte
C222: Hasta el límite máximo por embarque ( Límite agregado anual)
C224: Contratacion del Seguros de Transportes | L224: =IF(LEN(CuestionarioTransporte!$C$12)>0,"X","") -> 
C226: Tipo de Contratación | L226: =IF(LEN(CuestionarioTransporte!$C$12)>0,CuestionarioTransporte!$C$12,"") -> 
C227: Movimiento Estimado Anual (en USD) | L227: =IF(LEN(CuestionarioTransporte!$D$24)>0,CuestionarioTransporte!$D$24,"") ->  | P227: Límite Máximo por Embarque ( Limite agregado anual) : $ 25, 0000
C230: Pago de prima
C232: De acuerdo a lo establecido en el art. Nro 3, de la resolucion SBS 3198-2013, reglamento de pago de primas, la cobertura se inicia con la aceptacion de la solicitud y el pago de la prima. La forma de pago se aplicará a las posteriores renovaciones, salvo modificaciones por parte del contratante. La forma de pago es:
H236: =IF(Cotizador!$E$82="Débito Automático","X","") ->  | I236: Débito Automático | R236: =IF(Cotizador!$E$82="Cupones","X","") ->  | S236: Cupones | V236: Persona Natural
I239: =IF($H$236="X",IF(Cotizador!$AD$22=1,"X",""),"") ->  | J239: Contado | S239: =IF($R$236="X",IF(Cotizador!$AD$22=1,"X",""),"") ->  | T239: Contado
I241: =IF($H$236="X",IF(AND(Cotizador!$AD$22<>1,Cotizador!$I$87=4),"X",""),"") ->  | J241: 4 cuotas sin intereses | S241: =IF($R$236="X",IF(AND(Cotizador!$AD$22<>1,Cotizador!$I$87=4),"X",""),"") ->  | T241: 4 cuotas
I243: =IF($H$236="X",IF(AND(Cotizador!$AD$22<>1,Cotizador!$I$87=6),"X",""),"") ->  | J243: 6 cuotas sin intereses | S243: =IF($R$236="X",IF(AND(Cotizador!$AD$22<>1,Cotizador!$I$87=6),"X",""),"") ->  | T243: 6 cuotas (TCEA 17.5%)
I245: =IF($H$236="X",IF(AND(Cotizador!$AD$22<>1,Cotizador!$I$87=10),"X",""),"") ->  | J245: 10 cuotas sin intereses | S245: =IF($R$236="X",IF(AND(Cotizador!$AD$22<>1,Cotizador!$I$87=10),"X",""),"") ->  | T245: 10 cuotas (TCEA 17.5%)
I247: =IF($H$236="X",IF(AND(Cotizador!$AD$22<>1,Cotizador!$I$87=12),"X",""),"") ->  | J247: 12 cuotas sin intereses | S247: =IF($R$236="X",IF(AND(Cotizador!$AD$22<>1,Cotizador!$I$87=12),"X",""),"") -> 
C250: *Según cuota mínima del producto.
C253: Datos de asesor de venta
C255: Corredor | H255: =IF(LEN(Solicitud.Manual!$D$148)=0,"",Solicitud.Manual!$D$148) ->  | P255: Código o Número | U255: =IF(LEN(Solicitud.Manual!$J$144)=0,"",Solicitud.Manual!$J$144) -> 
C256: Teléfono | E256: =IF(LEN(Solicitud.Manual!$J$146)=0,"",Solicitud.Manual!$J$146) ->  | M256: Correo electrónico | Q256: =IF(LEN(Solicitud.Manual!$J$148)=0,"",Solicitud.Manual!$J$148) -> 
C262: Firma del Corredor
C265: Declaracion del asegurado
C267: DECLARO que:
C269: 1. Conozco que la veracidad y exactitud de la informacion aquí consignada es esencial para la determinacion de la prima, la cobertura y la decision final de PACIFICO SEGUROS para asegurar el riesgo analizado.
C270: 2. Conozco que la reticencia y/o declaracion inexacta, hecha don dolo o culpa inexcusable(negligencia grave), en llenado de la presente solicitud, genera la nulidad del contrato de seguro.
C271: 3. Conozco que constituye retinencia y/o declaracion inexacta con culpa inexcusable(negligencia grave) o dolo, según el caso, por ejemplo, ocultar o no develar informacion relevante y que era de mi conocimiento al momento de realizarse la inspeccion al riesgo asegurado, omitir dar informacion a PACIFICO SEGUROS al momento de contratar la poliza; y dejar espacios en blanco en la solicitud de seguro.
C272: 4. Conozco que tengo la obligacion de notificar por escrito a PACIFICO SEGUROS los hechos o circunstancias que agraven el riesgo y conozco tambien que esta obligacion se extiende durante la vigencia del Contrato de Seguro; asimismo, en la vigencias de polizas que se negocien sucesiva e ininterrupidamente.
C273: 5. Conozco que tengo la obligacion de informar a PACIFICO SEGUROS sobre cualquier evento o circunstancia que directa o indirectamente pueda ser pertinente para corregir, actualizar y/o complementar la informacion brindada en la solicitud de seguro. Si no actualizo la informacion nuevo que directa o indirectamente sea relevante para corregir, actualizar y/o complementar dicha informacion.
C274: 6. Conozco que estoy facultado para plantear ante la COMPAÑÍA todas las consultas y/o dudas que pueda tener respecto del contenido de la Solicitud de Seguro que consta en el presente documento
C275: 7. He tenido mi disposicion de manera previa a la contratacion de este seguro las condiciones generales, condiciones particulares, condiciones especiales y demas informacion del seguro que solicito.
B277: IMPORTANTE
C278: Aprobación de la solicitud de seguro | O278: AUTORIZACIONES PARA USOS ADICIONALES
C279: PACÍFICO SEGUROS entregará la póliza de seguro al Contratante dentro del plazo de 15 días calendario de haber recibido la solicitud, si es que no es rechazada. No obstante, cuando corresponda, PACÍFICO SEGUROS se obliga a comunicar el rechazo de la solicitud dentro del plazo de 15 días calendario de recibida, salvo que PACÍFICO SEGUROS haya requerido información adicional y/u otros requerimientos adicionales, necesarios para la evaluación del riesgo, dentro del referido plazo. En este caso, el plazo para comunicar el rechazo se contará a partir de la recepción de la información completa solicitada y de cumplidos los requerimientos realizados por PACÍFICO SEGUROS. En el supuesto que el Contratante no complete la información solicitada por PACÍFICO SEGUROS y/o no cumpla con los requerimientos que PACÍFICO SEGUROS haya realizado, se considerará rechazada la solicitud.
O280: EL CLIENTE autoriza que PACÍFICO SEGUROS, de manera directa o a través de sus Encargados: - Le oferte cualquiera de nuestros productos de los ramos de Riesgos Generales o de Vida. - Le oferte cualquier otro producto o servicio de PACÍFICO SEGUROS o de sus empresas terceras. - A transferir su Información a empresas Credicorp (incluyendo subsidiarias, vinculadas y afiliadas) así como socios comerciales (Terceros), para que cada uno de ellos pueda ofertar sus productos o servicios.
C291: Medios de comunicación pactados:
C292: Autorizo a PACIFICO SEGUROS, a que en el caso de aprobar la presente solicitud, pueda enviar válidamente cualquier comunicación y/o notificación vinculada con este seguro durante su vigencia por cualquiera de los medios de comunicación arriba indicados. Declaro igualmente conocer y estar de acuerdo con que las comunicaciones y/o notificaciones que sean dirigidas a mi correo electrónico surtirán efectos y las consideraré recibidas a partir del momento en que éstas sean recibidas en el servidor de mi cuenta del correo electrónico, considerándose igualmente que en ese momento he tomado conocimiento del contenido del documento enviado por dicho medio.
O297: EL CLIENTE acepta haber tenido a su disposición la lista de Terceros y Encargados que también se encuentra disponible en https://www.pacifico.com.pe/transparencia/politica-privacidad. Dicha lista detalla los posibles usos que los Terceros darán a sus datos personales. El envío de comunicaciones o mensajes con las ofertas y/o publicidades podrá ser remitida a través de medios escritos, verbales (por ejemplo: mensajes, push notification o llamadas telefónicas) o electrónicos/informáticos (por ejemplo correo electrónico).
C301: Se enviará comunicaciones por escrito al domicilio físico del contratante y/o asegurado, en caso la normatividad vigente lo exija o, no se consigne una dirección electrónica.
C304: PROTECCIÓN DE DATOS PERSONALES
C306: Para la correcta ejecución de la relación contractual, EL CONTRATANTE / ASEGURADO (“EL CLIENTE”) se obliga a mantener actualizada su información personal, financiera y crediticia (“LA INFORMACIÓN”) y reconoce que PACÍFICO SEGUROS podrá tratarla, actualizarla, completarla y realizar flujos transfronterizos conforme a ley.
C313: PACÍFICO SEGUROS conservará, tratará y realizará flujos transfronterizos con LA INFORMACIÓN de EL CLIENTE mientras se mantenga la relación contractual y luego de veinte (20) años de finalizado el contrato. Para el tratamiento de La INFORMACIÓN de EL CLIENTE, PACÍFICO SEGUROS utilizará diversos Encargados ubicados en el Perú y el extranjero, los cuales se han puesto a disposición del El cliente y también se encuentran detallados en https://www.pacifico.com.pe/transparencia/politica-privacidad. | O313: PACÍFICO SEGUROS y los Terceros podrán conservar y tratar LA INFORMACIÓN de EL CLIENTE en los términos establecidos en esta sección, mientras se mantenga la relación contractual y luego de veinte (20) años de finalizado el contrato. La aceptación o no de esta autorización para usos adicionales (ajenos a la ejecución de la relación contractual) no condiciona la prestación del servicio que EL CLIENTE está contratando.
O326: Sí acepto | AB326: =IF(LEN(Solicitud.Manual!$E$109)=0,"",Solicitud.Manual!$E$109) -> 
O327: No acepto y
C328: Su información será incluida en el banco de datos de Usuarios que se encuentra registrado ante la Autoridad de Protección de Datos Personales bajo el número de registro RNPDP-PJ N.° 774, de titularidad de PACÍFICO SEGUROS, ubicada en Juan de Arona 830, San Isidro, Lima - Perú. | O328: prefiero perder la oportunidad de recibir nuevas ofertas | AB328: =IF(LEN(Solicitud.Manual!$E$111)=0,"",Solicitud.Manual!$E$111) -> 
O333: Cláusulas Abusivas
O334: “Las condiciones de la presente póliza se encuentran sujetas a una revisión posterior por parte de la Superintendencia de Banca, Seguros y AFPs, por lo que, en caso se identiﬁquen cláusulas abusivas en el marco de la Ley del Contrato de Seguro y normas reglamentarias, y estas no sean subsanadas por PACÍFICO SEGUROS, la Superintendencia de Banca, Seguros y AFPs,
C338: EL CLIENTE puede ejercer los derechos de acceso, rectificación, cancelación, revocación y oposición, dirigiéndose a PACÍFICO SEGUROS de forma presencial en cualquiera de sus oficinas a nivel nacional en el horario establecido para la atención al público o por teléfono o a través del Chat ubicado en nuestra página web www.pacifico.com.pe. El detalle de nuestra Política de Privacidad se encuentra disponible en: https://www.pacifico.com.pe/transparencia/politica-privacidad
O344: Derecho de arrepentimiento
O345: En el caso que este seguro sea ofertado por un comercializador (incluyendo la bancaseguro), declaro conocer que tengo derecho a arrepentirme de la contratación de este seguro, sin expresión de causa ni penalidad alguna, dentro del plazo de 15 días de recibir la póliza de seguro o el certificado de seguro, de ser el caso, y a que se me devuelva la prima que hubiere pagado.
AB358: Fecha | AD358: =DAY(Cotizador!$I$88) -> 0 | AE358: =MONTH(Cotizador!$I$88) -> 1 | AF358: =YEAR(Cotizador!$I$88) -> 1900
E359: Firma del Asegurado | AD359: día | AE359: mes | AF359: año

Sheet CartillaVentaPyme

Sheet slipcotizador

Sheet Slip CONSOLIDADO
A2: PROTECCIÓN PARA NEGOCIO | O2: OK
A6: CONTRATANTE | C6: =Solicitud.Manual!$C$9 & " " &Solicitud.Manual!$C$10 & " " & Solicitud.Manual!$E$10 -> 
A9: CORREDOR | C9: =Solicitud.Manual!$D$148 -> 0
A10: VIGENCIA | C10: =PagodePrimasLocal1!$N$22 ->  | D10: al | E10: =+IF(C10="","",IF(DAY(C10)<10,0&DAY(C10),DAY(C10))&"/"&IF(MONTH(C10)<10,0&MONTH(C10),MONTH(C10))&"/"&YEAR(C10)+1) ->  | F10: 12:00 Hrs
A11: MONEDA | C11: DÓLARES
A12: CONDICIONES PARTICULARES
A14: ASEGURADO | C14: =Solicitud.Manual!$I$9 & " " & Solicitud.Manual!$I$10 & " " & Solicitud.Manual!$M$10 -> 
A16: ACTIVIDAD O GIRO DEL NEGOCIO
A17: Local 1 | C17: =Solicitud.Manual!$E$27 -> 
A18: Local 2 | C18: =Solicitud.Manual!$E$32 -> 
A19: Local 3 | C19: =Solicitud.Manual!$E$37 -> 
A21: DIRECCIÓN DE LOS LOCALES POR ASEGURAR
A22: Local 1 | C22: =Solicitud.Manual!$C$47 & " " & Solicitud.Manual!$C$48 & " " &Solicitud.Manual!$C$46 -> 
A23: Local 2 | C23: =Solicitud.Manual!$G$47 & " " & Solicitud.Manual!$G$48 & " " &Solicitud.Manual!$G$46 -> 
A24: Local 3 | C24: =Solicitud.Manual!$K$47 & " " & Solicitud.Manual!$K$48 & " " &Solicitud.Manual!$K$46 -> 
A26: PROTECCIÓN PARA NEGOCIO | O26: OK
A28: SECCIÓN INCENDIO Y LÍNEAS ALIADAS
A30: A. MATERIA DEL SEGURO
A31: Toda propiedad, , comprendiendo también maquinaria, equipos fijo, equipo móviles dentro y fuera de los predios asegurados, sea de propiedad del ASEGURADO y/o de terceros que se encuentren bajo su responsabilidad, supervisión , control y custodia siempre que formen parte de los Valores Declarados en la Póliza, en locales propios y/o de terceros señalados en póliza, en forma permanente o temporal incluyendo bienes a la intemperie (siempre que debido a su naturaleza, deban estar bajo esa condición).
A35: B. MODALIDAD DE ASEGURAMIENTO
A36: A Valor Total
A39: C. BIENES ASEGURADOS Y VALORES DECLARADOS
F40: Local 1 | I40: Local 2 | L40: Local 3 | O40: OK
F41: Valor Declarado | I41: Valor Declarado | L41: Valor Declarado
F42: Total | G42: Endosado | I42: Total | J42: Endosado | L42: Total | M42: Endosado
A43: Edificio y/o Instalaciones fijas (sin considerar el valor del terreno) | F43: =IF(CoberturasaElegirLocal1!$M$11="","",CoberturasaElegirLocal1!$M$11) ->  | G43: =IF(CoberturasaElegirLocal1!$N$11="","",CoberturasaElegirLocal1!$N$11) ->  | I43: =IF(CoberturasaElegirLocal2!$M$11="","",CoberturasaElegirLocal2!$M$11) ->  | J43: =IF(CoberturasaElegirLocal2!$N$11="","",CoberturasaElegirLocal2!$N$11) ->  | L43: =IF(CoberturasaElegirLocal3!$M$11="","",CoberturasaElegirLocal3!$M$11) ->  | M43: =IF(CoberturasaElegirLocal3!$N$11="","",CoberturasaElegirLocal3!$N$11) -> 
A44: Instalaciones Fijas | F44: =IF(CoberturasaElegirLocal1!$M$12="","",CoberturasaElegirLocal1!$M$12) ->  | G44: =IF(CoberturasaElegirLocal1!$N$12="","",CoberturasaElegirLocal1!$N$12) ->  | I44: =IF(CoberturasaElegirLocal2!$M$12="","",CoberturasaElegirLocal2!$M$12) ->  | J44: =IF(CoberturasaElegirLocal2!$N$12="","",CoberturasaElegirLocal2!$N$12) ->  | L44: =IF(CoberturasaElegirLocal3!$M$12="","",CoberturasaElegirLocal3!$M$12) ->  | M44: =IF(CoberturasaElegirLocal3!$N$12="","",CoberturasaElegirLocal3!$N$12) -> 
A45: Mobiliario y/o Contenido propios del giro | F45: =IF(CoberturasaElegirLocal1!$M$13="","",CoberturasaElegirLocal1!$M$13) ->  | G45: =IF(CoberturasaElegirLocal1!$N$13="","",CoberturasaElegirLocal1!$N$13) ->  | I45: =IF(CoberturasaElegirLocal2!$M$13="","",CoberturasaElegirLocal2!$M$13) ->  | J45: =IF(CoberturasaElegirLocal2!$N$13="","",CoberturasaElegirLocal2!$N$13) ->  | L45: =IF(CoberturasaElegirLocal3!$M$13="","",CoberturasaElegirLocal3!$M$13) ->  | M45: =IF(CoberturasaElegirLocal3!$N$13="","",CoberturasaElegirLocal3!$N$13) -> 
A46: Existencias propias del giro del negocio | F46: =IF(CoberturasaElegirLocal1!$M$14="","",CoberturasaElegirLocal1!$M$14) ->  | G46: =IF(CoberturasaElegirLocal1!$N$14="","",CoberturasaElegirLocal1!$N$14) ->  | I46: =IF(CoberturasaElegirLocal2!$M$14="","",CoberturasaElegirLocal2!$M$14) ->  | J46: =IF(CoberturasaElegirLocal2!$N$14="","",CoberturasaElegirLocal2!$N$14) ->  | L46: =IF(CoberturasaElegirLocal3!$M$14="","",CoberturasaElegirLocal3!$M$14) ->  | M46: =IF(CoberturasaElegirLocal3!$N$14="","",CoberturasaElegirLocal3!$N$14) -> 
A47: Maquinaria propia del giro del negocio | F47: =IF(CoberturasaElegirLocal1!$M$15="","",CoberturasaElegirLocal1!$M$15) ->  | G47: =IF(CoberturasaElegirLocal1!$N$15="","",CoberturasaElegirLocal1!$N$15) ->  | I47: =IF(CoberturasaElegirLocal2!$M$15="","",CoberturasaElegirLocal2!$M$15) ->  | J47: =IF(CoberturasaElegirLocal2!$N$15="","",CoberturasaElegirLocal2!$N$15) ->  | L47: =IF(CoberturasaElegirLocal3!$M$15="","",CoberturasaElegirLocal3!$M$15) ->  | M47: =IF(CoberturasaElegirLocal3!$N$15="","",CoberturasaElegirLocal3!$N$15) -> 
A48: Equipos electrónicos propios del giro del negocio | F48: =IF(CoberturasaElegirLocal1!$M$16="","",CoberturasaElegirLocal1!$M$16) ->  | G48: =IF(CoberturasaElegirLocal1!$N$16="","",CoberturasaElegirLocal1!$N$16) ->  | I48: =IF(CoberturasaElegirLocal2!$M$16="","",CoberturasaElegirLocal2!$M$16) ->  | J48: =IF(CoberturasaElegirLocal2!$N$16="","",CoberturasaElegirLocal2!$N$16) ->  | L48: =IF(CoberturasaElegirLocal3!$M$16="","",CoberturasaElegirLocal3!$M$16) ->  | M48: =IF(CoberturasaElegirLocal3!$N$16="","",CoberturasaElegirLocal3!$N$16) -> 
A49: Lucro Cesante – Cédula A - Costos fijos | F49: =IF(CoberturasaElegirLocal1!$M$17="","",CoberturasaElegirLocal1!$M$17) ->  | I49: =IF(CoberturasaElegirLocal2!$M$17="","",CoberturasaElegirLocal2!$M$17) ->  | L49: =IF(CoberturasaElegirLocal3!$M$17="","",CoberturasaElegirLocal3!$M$17) -> 
A50: TOTAL VALOR DECLARADO (Máximo hasta 2'000,000 USD por local) | F50: =IF(CoberturasaElegirLocal1!$M$18="","",CoberturasaElegirLocal1!$M$18) ->  | G50: =IF(OR(CoberturasaElegirLocal1!$N$18="",CoberturasaElegirLocal1!$N$18=0),"",CoberturasaElegirLocal1!$N$18) ->  | I50: =IF(CoberturasaElegirLocal2!$M$18="","",CoberturasaElegirLocal2!$M$18) ->  | J50: =IF(OR(CoberturasaElegirLocal2!$N$18="",CoberturasaElegirLocal2!$N$18=0),"",CoberturasaElegirLocal2!$N$18) ->  | L50: =IF(CoberturasaElegirLocal3!$M$18="","",CoberturasaElegirLocal3!$M$18) ->  | M50: =IF(OR(CoberturasaElegirLocal3!$N$18="",CoberturasaElegirLocal3!$N$18=0),"",CoberturasaElegirLocal3!$N$18) -> 
A55: D. COBERTURAS Y SUMAS ASEGURADAS | F55: Local 1 | I55: Local 2 | L55: Local 3 | O55: OK
A56: COBERTURA | F56: Suma Asegurada US$ | I56: Suma Asegurada US$ | L56: Suma Asegurada US$
A57: Todo Riesgo Incendio y Líneas Aliadas | F57: =IF(SUM(F50)<>0,SUM(F50),"") ->  | I57: =IF(SUM(I50)<>0,SUM(I50),"") ->  | L57: =IF(SUM(L50)<>0,SUM(L50),"") -> 
A58: Límite Único, Combinado y en agregado anual para Todo Riesgo Incendio y Líneas Aliadas
O63: OK
A65: E. SUBLÍMITES
F66: Local 1 | I66: Local 2 | L66: Local 3
B67: Sublímite* | F67: Límite | I67: Límite | L67: Límite
B68: Huelga, Motín, Conmoción Civil, Daño Malicioso, Vandalismo y /o Terrorismo en el agregado por vigencia.(Límite Único, Combinado y en agregado anual) | F68: =F57 ->  | I68: =I57 ->  | L68: =L57 -> 
B70: Gastos Extraordinarios: (Límite Único y Combinado), tales como: - Honorarios de Arquitectos, topógrafos e Ingenieros - Documentos y Modelos - Remoción de Escombros | F70: =IF(ISERROR(IF(0.2*F57>400000,400000,0.2*F57)),0,(IF(0.2*F57>400000,400000,0.2*F57))) -> 0 | I70: =IF(ISERROR(IF(0.2*I57>400000,400000,0.2*I57)),0,(IF(0.2*I57>400000,400000,0.2*I57))) -> 0 | L70: =IF(ISERROR(IF(0.2*L57>400000,400000,0.2*L57)),0,(IF(0.2*L57>400000,400000,0.2*L57))) -> 0
B74: Cobertura Automática para Nuevas Adquisiciones, máximo 30 días para declaración a PACIFICO. Aplica sólo si cuenta con contenido y equipos y maquinaria | F74: =IF(ISERROR(IF(0.2*F57>100000,100000,0.2*F57)),0,IF(0.2*F57>100000,100000,0.2*F57)) -> 0 | I74: =IF(ISERROR(IF(0.2*I57>100000,100000,0.2*I57)),0,IF(0.2*I57>100000,100000,0.2*I57)) -> 0 | L74: =IF(ISERROR(IF(0.2*L57>100000,100000,0.2*L57)),0,IF(0.2*L57>100000,100000,0.2*L57)) -> 0
B77: Rotura Accidental de Vidrios, Cristales y/o Avisos luminosos. Aplica para contenido y edificación. | F77: =IF(ISERROR(IF(0.1*F57>5000,5000,0.1*F57)),0,IF(0.1*F57>5000,5000,0.1*F57)) -> 0 | I77: =IF(ISERROR(IF(0.1*I57>5000,5000,0.1*I57)),0,IF(0.1*I57>5000,5000,0.1*I57)) -> 0 | L77: =IF(ISERROR(IF(0.1*L57>5000,5000,0.1*L57)),0,IF(0.1*L57>5000,5000,0.1*L57)) -> 0
B79: Gastos Extras | F79: =IF(ISERROR(IF(0.2*F57>400000,400000,0.2*F57)),0,IF(0.2*F57>400000,400000,0.2*F57)) -> 0 | I79: =IF(ISERROR(IF(0.2*I57>400000,400000,0.2*I57)),0,IF(0.2*I57>400000,400000,0.2*I57)) -> 0 | L79: =IF(ISERROR(IF(0.2*L57>400000,400000,0.2*L57)),0,IF(0.2*L57>400000,400000,0.2*L57)) -> 0
B80: Refrigeración (L.A.A.)** | F80: =IF(ISERROR(IF(DatosdelNegocioLocal1!$AH$5="A",20000,"")),0,(IF(DatosdelNegocioLocal1!$AH$5="A",20000,""))) ->  | I80: =IF(ISERROR(IF(DatosdelNegocioLocal1!$AH$5="A",20000,"")),0,(IF(DatosdelNegocioLocal1!$AH$5="A",20000,""))) ->  | L80: =IF(ISERROR(IF(DatosdelNegocioLocal1!$AH$5="A",20000,"")),0,(IF(DatosdelNegocioLocal1!$AH$5="A",20000,""))) -> 
B81: *: Foman parte de la Suma Asegurada, no son adicionales
B82: **: $ 5,000 por evento. $ 20,000 en agregado anual.
A84: F. CONDICIONADOS Y CLÁUSULAS APLICABLES A ESTA SECCIÓN | O84: OK
A86: 990000 - Claúsulas Generales de Contratación para Riesgos Generales
A87: Condicionado General Multi-Riesgo Negocios 2016
A88: 010005 - Cláusula Todo Riesgo.
A89: 010027 - Claúsula para Pérdidas y Daños por Huelga, Motín y Conmoción Civil.
A90: 010028 - Claúsula para Pérdidas o Daños por Vandalismo, Terrorismo y Daño Malicioso.
A91: 010029 - Claúsula para Gastos Extras
A92: 010024 - Claúsula para Gastos Extraordinarios
A93: 010006 - Claúsula de Refrigeración.
A94: 010010 - Cláusula de cobertura automática por nuevas adquisiciones.
A95: 010003 - Cláusula de rotura de cristales y/o vidrios.
A96: 990001 - Cláusula de Terceros.
A97: 990003 - Cláusula de rehabilitación automática de la suma asegurada (condición PPS).
A98: 010038 - Claúsula de reemplazo.
A99: 010012 - Claúsula de Traslado temporal.
A100: 010011 - Claúsula de Propiedades fuera de control del Asegurado.
A101: 010013 - Claúsula de Errores u omisiones.
A102: 010004 -Cláusula de transporte incidental.
A103: 010037 Cláusula de 72 horas
A104: 011000 - Condicionado general de lucro cesante por incendio
A105: 011001 – CL. Para lucro cesante forma inglesa cédula A
A106: 010025 - Clausula para daños causados por terremoto, temblor, erupción volcánica, y/o fuego subterráneo, marejada, maremoto y tsunami
A107: Asistencias para el negocio.
A109: G. DEDUCIBLES (POR TODA Y CADA PÉRDIDA) | O109: OK
A111: Terremoto, temblor, erupción volcánica, fuego subterráneo, maremoto (tsunami), salida mar, marejada u oleaje: 1% del valor declarado del predio afectado y/o su contenido y/o sus existencias, mínimo US$ 1,000
A113: Otros riesgos de la naturaleza: 1% del valor declarado del predio afectado y/o su contenido y/o sus existencias, mínimo US$ 1,000
A114: Huelga, conmoción civil, asonada, daño malicioso y vandalismo, sabotaje y/o terrorismo: 10% del monto indemnizable mínimo US$ 1,000
A116: Rotura Accidental de Vidrios, Cristales y/o Avisos Luminosos: 10% del monto indemnizable mínimo US$ 50.00
A117: Gastos Extras: 3 días
A118: Otros riesgos: 5 % del Monto Indemnizable, mínimo US$ 500.00
A119: Lucro Cesante, 5 días
A120: Transporte Incidental: 10% del monto indemnizable mínimo US$ 100.00
A121: Refrigeración: 10.00% del monto indemnizable, mínimo US$ 200.00
A125: PROTECCIÓN PARA NEGOCIO | O125: OK
A128: H. CONDICIONES ESPECIALES APLICABLES ESTA SECCIÓN
A130: Las coberturas adicionales forman parte del límite principal
A131: La presente sección no cubre Lucro Cesante Contingente en cualquiera de sus modalidades.
A132: Se entiende como costo fijo para la cobertura de Lucro Cesante: Alquileres, sueldos de personal estable en planilla, mantenimiento, servicios de telefonía fija, agua y luz.
A133: Las siguientes cláusulas son de aplicación siempre y cuando la presente poliza se encuentre endosada a algún banco y/o entidad financiera: - clausula de reemplazo hasta 3 años de antiguedad. - traslado temporal. - propiedades fuera de control del asegurado. - errores u omisiones.
A138: La clausula de refrigeración es de aplicacion siempre y cuando corresponda a cualquiera de las siguientes actividades: restaurantes, hoteles,panaderías, heladerías, carnicerías y bodegas.
A140: I. GARANTÍAS APLICABLES ESTA SECCIÓN | O140: OK
A142: Queda entendido y convenido bajo pena para el asegurado de perder todo derecho a indemnización procedente de la presente póliza, que este seguro se formaliza en virtud a lo siguiente: Que el asegurado debe cumplir con las siguientes garantías mínimas para incendio. 1. Todas las llaves eléctricas deben estar instaladas en tableros con tapa y nunca al aire libre, deben ser del tipo electro magnéticas y deben estar dimensionadas de acuerdo a las cargas presentes en el local y al correspondiente circuito eléctrico que controlan. deberán ser siempre mediante enchufes adecuados y jamás directamente con cables. 2. Las instalaciones eléctricas deben ser tendidas dentro de tubos protectores de PVC empotrados, o expuestos debidamente fijados a la pared, piso o techo según corresponda. en caso de tratarse de cables blindados o vulcanizados diseñados especialmente para ser tendidos al aire libre, deben estar sobre canaletas adecuadamente habilitadas. 3. Contar con extintores vigentes y operativos. asimismo, todo el personal que labora en el local deberá recibir instrucción sobre la utilización de extintores por lo menos una vez al año, la cual se puede realizar al momento de la recarga de los mismos. 4. Deberá contar con la licencia de funcionamiento vigente.
A148: PROTECCIÓN PARA NEGOCIO | O148: OK
A151: SECCIÓN ROTURA DE MAQUINARIA
A153: A. MATERIA DEL SEGURO
A155: Maquinaria y equipo, fijo y estacionario en general de propiedad del ASEGURADO y/o de terceros que guarden relación con el giro del negocio que se encuentren bajo su responsabilidad, supervisión, control y custodia siempre que formen parte de los Valores Declarados en la Póliza, en el local señalado en póliza, en forma permanente o temporal y que sea parte o contribuyan directa o indirectamente con el proceso productivo o actividad del ASEGURADO.
A160: B. MODALIDAD DE ASEGURAMIENTO
A162: A PRIMER RIESGO
A164: C. COBERTURAS Y SUMAS ASEGURADAS | O164: OK
F165: Local 1 | I165: Local 2 | L165: Local 3
B166: Cobertura | F166: Suma Asegurada | I166: Suma Asegurada | L166: Suma Asegurada
B167: Daño Material – Básica | F167: =+CoberturasaElegirLocal1!$N$23 ->  | I167: =+CoberturasaElegirLocal2!$N$23 ->  | L167: =+CoberturasaElegirLocal3!$N$23 -> 
A170: D. SUBLÍMITES | O170: OK
F171: Local 1 | I171: Local 2 | L171: Local 3
B172: Sub Limites | F172: Límite US$ | I172: Límite US$ | L172: Límite US$
B173: Gastos adicionales por horas extras, trabajo nocturno, trabajo en días festivos, flete expreso, Límite Único y Combinado | F173: Hasta el 100% de Suma Asegurada, Hasta $ 10,000 | I173: Hasta el 100% de Suma Asegurada, Hasta $ 10,000 | L173: Hasta el 100% de Suma Asegurada, Hasta $ 10,000
B174: Flete aéreo. | F174: Hasta el 100% de Suma Asegurada, Hasta $ 10,000 | I174: Hasta el 100% de Suma Asegurada, Hasta $ 10,000 | L174: Hasta el 100% de Suma Asegurada, Hasta $ 10,000
A176: E. CONDICIONADOS Y CLÁUSULAS APLICABLES A ESTA SECCIÓN: | O176: OK
A178: − 330007 CLÁUSULA PARA CUBRIR GASTOS ADICIONALES POR HORAS EXTRA, TRABAJO NOCTURNO, TRABAJO EN DÍAS FESTIVOS Y FLETE EXPRESO
A179: − 330006 CL.PARA CUBRIR GASTOS ADICIONALES PARA FLETE AÉREO
A180: − 330005 CL. DE EXCLUSIÓN DE EXPLOSIONES DE GASES DE ESCAPE EN CALDERAS Y HORNOS
A181: − 330013 CL. DE AJUSTE DE LA DEPRECIACIÓN PARA LA REPARACIÓN DE MOTORES DE COMBUSTIÓN INTERNA
A182: − 330028 CL. VALOR NUEVO DE REPOSICION-RM
A183: − 990000 - Claúsulas Generales de Contratación para Riesgos Generales
A184: Condicionado General Multi-Riesgo Negocios.
A185: 330013 - clausula de ajuste de la depreciación para la reparación de motores de combustión interna (p. ej. motores de gasolina, motores a gas). (obligatorio)
A187: - 330012 - ajuste de depreciación en rebobinados maquinas eléctricas. (obligatorio)
A189: F. DEDUCIBLES (POR TODA Y CADA PÉRDIDA) | O189: OK
A191: Daño Material, 10% del monto indemnizable mínimo US$ 500.
A192: - Gastos adicionales por horas extras, trabajo nocturno, trabajo en días festivos, flete expreso. 10% del monto indemnizable mínimo US$ 200
A193: - Flete Aéreo 10% del monto indemnizable mínimo US$ 200
A196: G. CONDICIONES ESPECIALES APLICABLES ESTA SECCIÓN | O196: OK
A198: La presente póliza se limita a amparar la maquinaria fija dentro del local declarado.
A199: El Valor Declarado debe corresponder al valor de reposición a nuevo del equipo asegurado.
A200: Valor Nuevo de reemplazo, aplicables para maquinaria hasta 2 años de antigüedad.
A202: H. GARANTÍAS APLICABLES ESTA SECCIÓN
A204: Queda entendido y convenido bajo pena para el asegurado de perder todo derecho a indemnización procedente de la siguiente póliza, que este seguro se formaliza en virtud de que el asegurado se comprometa a cumplir lo siguiente: Se debe contar, cumplir y documentar con el programa de Mantenimiento Preventivo, según indicaciones del fabricante para todos los equipos.
A209: PROTECCIÓN PARA NEGOCIO | O209: OK
A212: SECCIÓN EQUIPO ELECTRONICO
A214: A. MATERIA DEL SEGURO
A216: Equipos eléctricos y electrónicos instalados, de propiedad del ASEGURADO y/o de terceros que guarden relación con el giro del negocio bajo control, cuidado y custodia del ASEGURADO, dentro del local asegurado que formen parte del Valor Declarado y sea parte o contribuyan directa o indirectamente con el proceso productivo o actividad del ASEGURADO.
A220: B. MODALIDAD DE ASEGURAMIENTO
A222: A PRIMER RIESGO
A224: C. COBERTURAS Y SUMAS ASEGURADAS | O224: OK
F225: Local 1 | I225: Local 2 | L225: Local 3
B226: Coberturas | F226: Sumas Aseguradas | I226: Sumas Aseguradas | L226: Sumas Aseguradas
B227: Todo Riesgo Equipo Electrónico Secciones I,II y III – Límite Único y Combinado, período de indemnización Sección III: 06 meses | F227: =+CoberturasaElegirLocal1!$N$26 ->  | I227: =+CoberturasaElegirLocal2!$N$26 ->  | L227: =+CoberturasaElegirLocal3!$N$26 -> 
A231: D. SUBLÍMITES | O231: OK
F232: Local 1 | I232: Local 2 | L232: Local 3
B233: Sublímite | F233: Límite | I233: Límite | L233: Límite
B234: Equipos Móviles y Portátiles fuera del predio limitado a Laptops y/o notebooks US$ 3,000 por evento y en el Agregado por vigencia. | F234: =CoberturasaElegirLocal1!$N$27 ->  | I234: =CoberturasaElegirLocal2!$N$27 ->  | L234: =CoberturasaElegirLocal3!$N$27 -> 
B237: Gastos adicionales por horas extras, trabajo nocturno, trabajo en días festivos, flete expreso – por evento y en el Agregado por vigencia, Límite Único y Combinado | F237: Hasta el 100% de Suma Asegurada, Hasta $ 5,000 | I237: Hasta el 100% de Suma Asegurada, Hasta $ 5,000 | L237: Hasta el 100% de Suma Asegurada, Hasta $ 5,000
B238: Flete aéreo – por evento y en el Agregado Vigencia | F238: Hasta el 100% de Suma Asegurada, Hasta $ 5,000 | I238: Hasta el 100% de Suma Asegurada, Hasta $ 5,000 | L238: Hasta el 100% de Suma Asegurada, Hasta $ 5,000
A240: E. CONDICIONADOS Y CLÁUSULAS APLICABLES A ESTA SECCIÓN: | O240: OK
A242: 990000 - Claúsulas Generales de Contratación para Riesgos Generales
A243: Condicionado General Multi-Riesgo Negocios.
A244: 360002 - Cláusula de valor nuevo de reposición.
A245: 360015 - Cláusula sobre celebración de un contrato de mantenimiento.
A246: 360008 - Cláusula de obligaciones relativas a equipos de climatización.
A247: 360027 Cláusula para cubrir gastos adicionales para el flete aéreo.
A248: =+IF(F234="","","Cláusula para equipos móviles y portátiles fuera del predio asegurado.") -> 
A249: 360023 Cláusula de cobertura de equipos móviles y portátiles fuera de los predios asegurados.
A252: F. DEDUCIBLES (POR TODA Y CADA PÉRDIDA) | O252: OK
A254: Secciones I y II, 10% del monto indemnizable mínimo US$ 200
A255: Sección III : 3 días
A256: =+IF(F234="","","Equipos Móviles y Portátiles fuera de los predios: 20 % del monto indemnizable mínimo US$ 500") -> 
A257: Gastos adicionales por horas extras, trabajo nocturno, trabajo en días festivos, flete expreso. 10% del monto indemnizable mínimo US$ 200
A258: Flete Aéreo 10% del monto indemnizable mínimo US$ 200
A259: Equipo móvil: 20.00% del monto indemnizable, mínimo US$ 500.00
A260: G. CONDICIONES ESPECIALES APLICABLES ESTA SECCIÓN | O260: OK
A261: Contar con duplicado de información backup, para efectos de la Sección II portadores externos de datos, en otro local del asegurado.
A262: Se excluyen los daños causados por los programas denominados “virus informáticos”.
A263: Se excluye la cobertura de robo para equipos electrónicos. Las secciones I,II ,III estan expresadas en limite único y combinado y en agregado anual , periodo de indemnización sección III 6 meses. Se otorga cobertura de equipo móviles y portatiles fuera del predio asegurado, para laptops y/o notebooks hasta el 50% del valor asegurado de equipo electrónico, limitado hasta us$ 3,000, limite por evento y en agregado vigencia. El valor declarado debe corresponder al valor de reposición a nuevo del equipo asegurado. Cláusula de valor nuevo de reposición, hasta 2 años de antigüedad. Las coberturas adicionales forman parte del limite principal.
A265: H. GARANTÍAS APLICABLES ESTA SECCIÓN | O265: OK
A266: Queda entendido y convenido bajo pena para el asegurado de perder todo derecho a indemnizacion procedente de la presente poliza, que este seguro se formaliza en virtud a lo siguiente: Que el asegurado debe cumplir con las siguientes garantias minimas para equipo electronico Todos los Equipos deberán contar con Estabilizador de Voltaje operativo.
A267: Se debe contar, cumplir y documentar con el programa de Mantenimiento Preventivo, según indicaciones del fabricante para todos los equipos.
A271: PROTECCIÓN PARA NEGOCIO | O271: OK
A274: SECCIÓN ROBO
A276: A. MATERIA DEL SEGURO
A278: Contenidos en el local asegurado incluyendo maquinaria y equipos, existencias en general y dinero en efectivo de propiedad del ASEGURADO y/o de terceros que guarden relación con el giro del negocio que se encuentren bajo su responsabilidad, supervisión, control y custodia siempre que formen parte de los Valores Declarados en la Póliza.
A282: B. BIENES ASEGURADOS Y VALORES DECLARADOS | O282: OK
F283: Local 1 | I283: Local 2 | L283: Local 3
A284: Detalle | F284: Valor Declarado | G284: Suma Asegurada Máxima | I284: Valor Declarado | J284: Suma Asegurada Máxima | L284: Valor Declarado | M284: Suma Asegurada Máxima
A285: Edificio (sin considerar el valor del terreno)
A286: Instalaciones fijas | F286: =+CoberturasaElegirLocal1!$M$31 ->  | I286: =+CoberturasaElegirLocal2!$M$31 ->  | L286: =+CoberturasaElegirLocal3!$M$31 -> 
A287: Mobiliario y/o contenido propios del giro del negocio | F287: =+CoberturasaElegirLocal1!$M$32 ->  | I287: =+CoberturasaElegirLocal2!$M$32 ->  | L287: =+CoberturasaElegirLocal3!$M$32 -> 
A288: Existencias propias del giro del negocio | F288: =+CoberturasaElegirLocal1!$M$33 ->  | I288: =+CoberturasaElegirLocal2!$M$33 ->  | L288: =+CoberturasaElegirLocal3!$M$33 -> 
A289: Maquinaria propia del giro del negocio | F289: =+CoberturasaElegirLocal1!$M$34 ->  | I289: =+CoberturasaElegirLocal2!$M$34 ->  | L289: =+CoberturasaElegirLocal3!$M$34 -> 
A290: Equipo electrónico fijo | F290: =+CoberturasaElegirLocal1!$M$35 ->  | I290: =+CoberturasaElegirLocal2!$M$35 ->  | L290: =+CoberturasaElegirLocal3!$M$35 -> 
A291: Dinero en Tránsito (LAA) | F291: --------- | G291: =+CoberturasaElegirLocal1!$N$38 ->  | I291: --------- | J291: =+CoberturasaElegirLocal2!$N$38 ->  | L291: --------- | M291: =+CoberturasaElegirLocal3!$N$38 -> 
A292: Dinero y/o valores dentro del local (caja chica y/o caja registradora) solo en horas laborables (LAA) | F292: =+CoberturasaElegirLocal1!$M$36 -> --------- | G292: =+CoberturasaElegirLocal1!$N$36 ->  | I292: =+CoberturasaElegirLocal2!$M$36 -> --------- | J292: =+CoberturasaElegirLocal2!$N$36 ->  | L292: =+CoberturasaElegirLocal3!$M$36 -> --------- | M292: =+CoberturasaElegirLocal3!$N$36 -> 
A293: Total: | F293: =IF(SUM(F286:F290)=0,"",SUM(F286:F290)) ->  | G293: =IF(LEN(F293)>0,IF(F293>100000,100000,F293),"") ->  | I293: =IF(SUM(I286:I290)=0,"",SUM(I286:I290)) ->  | J293: =IF(LEN(I293)>0,IF(I293>100000,100000,I293),"") ->  | L293: =IF(SUM(L286:L290)=0,"",SUM(L286:L290)) ->  | M293: =IF(LEN(L293)>0,IF(L293>100000,100000,L293),"") -> 
A295: C. MODALIDAD DE ASEGURAMIENTO | O295: OK
A297: A PRIMER RIESGO
A299: D. CONDICIONADOS Y CLÁUSULAS APLICABLES A ESTA SECCIÓN:
A301: 990001 - Cláusula de terceros
A302: 410006 - Cláusula de garantía para dinero y valores en tránsito
A303: =+IF(G292="","","410004 - Cláusula para cubrir dinero en efectivo y o valores dentro del local asegurado, en Agregado por Vigencia.") -> 
A304: =+IF(G291="","","410003 - Cláusula de Dinero en Efectivo y Valores en Tránsito desde Oficinas del Asegurado.") -> 
A306: E. DEDUCIBLES (POR TODA Y CADA PÉRDIDA) | O306: OK
A308: Robo y/o Asalto de Activos y/o Existencias: 10.00 % del monto indemnizable, mínimo US$ 500 toda y cada pérdida.
A309: =+IF(G291="","","Dinero en Tránsito y Dinero en Caja Chica: 10% del monto indemnizable mínimo USD250.00") -> 
A311: F. CONDICIONES ESPECIALES APLICABLES ESTA SECCIÓN | O311: OK
A313: No se ampara los bienes que se encuentran en patios, jardines, terrazas, azoteas que no tengan más defensa que muros perimétricos o en vitrinas fijas o movibles que se hallen colocadas fuera del edificio o de los ámbitos que constituyen el lugar del seguro.
A316: No cubre almacenes de campo.
A318: G. GARANTÍAS APLICABLES ESTA SECCIÓN | O318: OK
A320: 1. Si la puerta es de una sola hoja, como mínimo dispondrá de una chapa sólida que se reforzará a su base o estará soldada a la misma; debe ser de no menos de 2 golpes. Adicionalmente, la puerta de reja deberá protegerse con dos (02) candados con media luna protectora de bronce o puente protector metálico. Si la puerta es de dos hojas; las medidas de seguridad serán las que se han mencionado, agregándole a la reja dos cerrojos verticales (uno al marco superior y otro al inferior) en cada hoja; en los que se colocarán un candado con media luna protectora de bronce.
A330: PROTECCIÓN PARA NEGOCIO | O330: OK
A334: 2. Cuando el local cuente con cortinas enrollables que den hacia la calle, se deberá cumplir con los siguientes requisitos: A. Cada una de las cortinas metálicas enrollables deberá contar como mínimo con dos (2) argollas de fierro ancladas al piso, las cuales se sujetarán interiormente a las cortinas metálicas con un candado media luna protectora de bronce. B. Si la cortina dispone de puerta chica, ésta deberá contar como mínimo con dos chapas de tres golpes o más, y adicionalmente dos candados protegidos con puente protector o media luna protectora de bronce: C. Los carriles de la cortina enrollable deben estar reforzados tanto por dentro como por fuera, con ángulos de fierro de no menos de 3 pulgadas de ancho y como mínimo 1.50 metros con respecto al nivel del suelo. Esta medida de seguridad no es necesario adoptarla si la cortina enrollable dispone de una sobre reja de fierro exteriormente.
A342: PROTECCIÓN PARA NEGOCIO | O342: OK
A345: SECCIÓN RESPONSABILIDAD CIVIL
... 65 more rows

Sheet Slip Final
A2: PROTECCIÓN PARA NEGOCIO | O2: OK
A5: ASISTENCIAS
A7: SERVICIOS MÉDICOS PARA EL NEGOCIO
A9: Servicios de Ambulancia por Emergencia o Accidente, disponible las 24 horas del día todo el año, hasta un máximo de 03 atenciones por año de vigencia de la póliza, hasta S/. 350 por evento.
A11: Servicio de “Aló doctor” para el asegurado y empleados, disponible las 24 horas del día todo el año, sin límite.
A12: Servicios de “Doctor a domicilio”, para el asegurado y empleados, disponible las 24 horas del día, todo el año con copago de S/. 35 (no incluye medicinas ni exámenes médicos), sin límite. | AD12: 2
A14: Un chequeo preventivo anual gratuito (incluye 02 exámenes básicos al escoger entre: colesterol, glucosa o triglicéridos), al cual podrá acceder comunicándose al teléfono Lima y provincias: (01) 415-1515
A17: ASISTENCIAS DE SERVICIOS PARA EL NEGOCIO
A19: Servicios de emergencia de cerrajería, gasfitería, electricidad o vidriería atendidos por técnicos especializados disponible las 24 horas del día, todo el año, hasta un máximo de 4 eventos al año por cada servicio y hasta S/300 por evento.
A21: Servicio de orientación telefónica para referencia y coordinación del servicio de fumigaciones y mantenimiento en general, sin limite
A23: ASISTENCIA LEGAL Y TRIBUTARIA PARA EL NEGOCIO | O23: OK
A25: Asistencia Legal en caso de Robo del Negocio, disponible las 24 horas del día y hasta 2 eventos al año.
A26: Asistencia Tributaria Vía Telefónica, disponible las 24 horas del día , sin limite.
A27: Asesoría telefónica en cuanto a materia Tributaria, Legal, Penal y Familiar, sin limite.
A28: Asesoría telefónica en temas referentes a Permisos, Trámites y Licencias, disponible las 24 horas del día, sin límite.
A30: CONDICIONES APLICABLES A TODAS LAS SECCIONES | O30: OK
A32: Monto Indemnizable: Para efectos de este seguro se entenderá como el monto total de la pérdida amparada por la póliza antes de aplicar el deducible.
A34: La Suma Asegurada de cada una de las Secciones adicionales a INCENDIO forman parte integrante de la Suma Asegurada de Incendio, se comportan como sub límite a Primera Perdida.
A37: GARANTIAS APLICABLES A TODA LA PÓLIZA
A39: En caso de incumplimiento EL CONTRATANTE y/o ASEGURADO perderán Todo derecho indemnizatorio proveniente de esta Póliza, a partir del momento mismo de la violación quedando En consecuencia liberada LA COMPAÑÍA de toda responsabilidad.
A42: CONDICIONES ESPECIALES A TODA LA PÓLIZA | O42: OK
A43: Se deja constancia expresa que, a potestad de la Compañía, la aceptación final del riesgo por parte de ésta queda sujeta a la realización de la inspección o evaluación, por parte de nuestro Departamento de Ingeniería o la persona autorizada para tal efecto, para verificar el efectivo estado del riesgo, así como el estricto cumplimiento por parte del Asegurado de las garantías que a mérito de dicha inspección establezca el Departamento de Ingeniería de la Compañía.
A49: CONDICIONES APLICABLES A LA COTIZACIÓN | O49: OK
A50: Se deja constancia expresa que la presente cotización se originó con información brindada por el ASEGURADO y/o CONTRATANTE, así como la no existencia de siniestros conocidos, ocurridos, ni reportados.
A52: Las condiciones antes detalladas quedan sujetas al no aumento de la siniestralidad antes del inicio de la vigencia.
A53: La presente cotización se ha basado en la información presentada por el cliente, en caso de sufrir modificaciones para la orden de emisión, Pacifico se reserva el derecho de anular, cambiar o ajustar las condiciones y términos presentados.
A55: La presente cotización tiene una validez de quince (15) días calendarios, contados a partir de la fecha de presentación por parte de Pacífico.
A57: La presente cotización tiene una validez de 15 días
A58: La Compañía, se obliga a entregar la póliza de seguro al contratante y/o asegurado dentro de 15 días calendario de haber recibido la solicitud si no media rechazo previo de ésta. En el supuesto que el contratante y/o asegurado no completen la información y/o no cumplan con las medidas que la compañía requiera, se considerará rechazada la solicitud al vencimiento del plazo indicado. El contratante y/o asegurado podrá presentar una nueva solicitud.
A64: PROTECCIÓN PARA NEGOCIO | O64: OK
A65: La COMPAÑÍA informará al Contratante, dentro de los quince (15) días de recibida esta Solicitud, si la misma ha sido rechazada, salvo que se le haya requerido información adicional, necesaria para la evaluación del riesgo, en el referido plazo. En este caso, el plazo para comunicar el rechazo, se contará a partir de la recepción de la información completa solicitada.
A71: PRIMA COMERCIAL: | C71: =PagodePrimasLocal1!$AH$10 -> 0 | D71: USD
A73: PRIMA COMERCIAL + IGV: | C73: =IF(AND(PagodePrimasLocal1!$AD$21=1,Cotizador!$I$87=""),PagodePrimasLocal1!$AG$10,IF(Cotizador!$I$87="","----",PagodePrimasLocal1!$AG$12)) -> ---- | D73: USD
A77: Cordialmente,
A79: =+TODAY() -> 2021-10-13

Sheet ACCO
A4: ACCIDENTES COLECTIVOS | O4: OK
A7: DATOS GENERALES
D9: Fecha de la cotización: | E9: =TODAY() -> 2021-10-13
D11: Producto: | E11: ACCO
D12: Plan: | E12: Colectivo
D13: Moneda: | E13: Dólares
D15: Vigencia de la Póliza: | E15: 12 meses
E17: Local 1 | F17: Local 2 | G17: Local 3
D18: Número de asegurados:
D19: (max 20 por Local)
D21: RUC Contratante | E21: =IF(LEN(Solicitud.Manual!$E$8)=0,"",Solicitud.Manual!$E$8) -> 
D22: Nombre Contratante | E22: =IF(LEN(Solicitud.Manual!$C$9)=0,"",Solicitud.Manual!$C$9) -> 
D23: Broker: | E23: =IF(LEN(Solicitud.Manual!$D$148)=0,"",Solicitud.Manual!$D$148) -> 
E25: Local 1
D26: Actividad: | E26: =IF(LEN(E18)>0,IF(LEN(Cotizador!$D$54)=0,"",Cotizador!$D$54),"") -> 
E28: Local 2
D29: Actividad: | E29: =IF(LEN(F18)>0,IF(LEN(Cotizador!$D$56)=0,"",Cotizador!$D$56),"") -> 
E31: Local 3
D32: Actividad: | E32: =IF(LEN(G18)>0,IF(LEN(Cotizador!$D$58)=0,"",Cotizador!$D$58),"") -> 
A34: COBERTURAS (*) | O34: OK
D36: Moneda: | F36: =E13 -> Dólares
E38: Local 1 | F38: Local 2 | G38: Local 3
C39: Muerte Accidental: | D39: Muerte Accidental:
C40: Invalidez Permanente: | D40: Invalidez Permanente: | E40: =IF(E39=5000,5000,IF(E39=10000,10000,IF(E39=15000,15000,0))) -> 0 | F40: =IF(F39=5000,5000,IF(F39=10000,10000,IF(F39=15000,15000,0))) -> 0 | G40: =IF(G39=5000,5000,IF(G39=10000,10000,IF(G39=15000,15000,0))) -> 0
C41: Gastos de Curación: | D41: Gastos de Curación:
C42: Gastos de Sepelio: | D42: Gastos de Sepelio:
D43: Transporte por Evacuación: | E43: Transporte por Evacuación:
D44: Traslado de Restos: | E44: Traslado de Restos:
A47: CLÁUSULAS ADICIONALES | O47: OK
C48: Cláusula de invalidez permanente parcial previa al seguro.
C49: Cláusula por la cobertura de Terrorismo y otros riesgos.
C50: Cláusula por la práctica no profesional de deportes y/o actividades de riesgo.
C51: Cláusula por la conducción urbana o rural de motocicletas, motonetas y otros vehículos similares.
C52: Cláusula para pasajeros que usan cualquier medio habitual de transporte público de personas, en vehículos que no recorren itinerarios regulares y fijos.
C53: Cláusula para pasajeros de aviones y/o helicópteros particulares y/o de la FAP por viajes eventuales.
C54: Cláusula de ampliación del límite máximo de edad, personas mayores de 70 y hasta los 80 años inclusive.
C56: RECARGOS
C57: Por usar y/o portar armas
C59: DESCUENTOS
C60: Por limitación a horas de trabajo.
C61: Por cubrir gastos no reembolsables por ESSALUD.
C62: Por aplicación de franquicia en incapacidad temporal. | G62: 30 días
C63: Por aplicación de deducible en gastos de curación. | G63: 0.25
E64: Local 1 | F64: Local 2 | G64: Local 3 | I64: Total
D65: Prima Neta Total. | E65: =E67*E18 -> 0 | F65: =F67*F18 -> 0 | G65: =G67*G18 -> 0 | I65: =SUM(E65:G65) -> 0
D66: Prima Total (incluye IGV y DE): | E66: =E65*1.2154 -> 0 | F66: =F65*1.2154 -> 0 | G66: =G65*1.2154 -> 0 | I66: =SUM(E66:G66) -> 0
D67: Prima neta por Persona: | E67: =IF(E39=5000,5,IF(E39=10000,7.5,IF(E39=15000,10,0))) -> 0 | F67: =IF(F39=5000,5,IF(F39=10000,7.5,IF(F39=15000,10,0))) -> 0 | G67: =IF(G39=5000,5,IF(G39=10000,7.5,IF(G39=15000,10,0))) -> 0 | I67: =SUM(E67:G67) -> 0
D68: Prima Total por Persona | E68: =E67*1.2154 -> 0 | F68: =F67*1.2154 -> 0 | G68: =G67*1.2154 -> 0 | I68: =SUM(E68:G68) -> 0
C70: TABLA DE PRIMAS
C72: Dias de Seguro | E72: Prima Neta | G72: Meses de Seguro | I72: Prima Neta
C73: 1 | D73: 0.05 | E73: =D73*E67 -> 0 | G73: 2 | H73: 0.3 | I73: =H73*E67 -> 0
C74: 2 | D74: 0.07 | E74: =D74*E67 -> 0 | G74: 3 | H74: 0.4 | I74: =H74*E67 -> 0
C75: 3 | D75: 0.09 | E75: =D75*E67 -> 0 | G75: 4 | H75: 0.5 | I75: =H75*E67 -> 0
C76: 4 | D76: 0.11 | E76: =D76*E67 -> 0 | G76: 5 | H76: 0.6 | I76: =H76*E67 -> 0
C77: 5 | D77: 0.13 | E77: =D77*E67 -> 0 | G77: 6 | H77: 0.7 | I77: =H77*E67 -> 0
C78: 6 | D78: 0.14 | E78: =D78*E67 -> 0 | G78: 7 | H78: 0.8 | I78: =H78*E67 -> 0
C79: 7 | D79: 0.15 | E79: =D79*E67 -> 0 | G79: 8 | H79: 0.9 | I79: =H79*E67 -> 0
C80: 8 a 15 | D80: 0.2 | E80: =D80*E67 -> 0 | G80: más de 9 | H80: 1 | I80: =H80*E67 -> 0
C81: 16 a 30 | D81: 0.25 | E81: =D81*E67 -> 0
A83: COMENTARIOS | O83: OK
A84: Ingresa aquí tu comentario
A86: Cordialmente,
A88: =+TODAY() -> 2021-10-13

Sheet CuestionarioTransporte
B2: CUESTIONARIO DEL SEGURO DE TRANSPORTE NACIONAL
B4: DATOS DEL CONTRATANTE
B5: NOMBRE O RAZÓN SOCIAL | C5: =IF(LEN(Solicitud.Manual!$I$9)=0,"",Solicitud.Manual!$I$9) -> 
B6: RUC | C6: =IF(LEN(Solicitud.Manual!$M$8)=0,"",Solicitud.Manual!$M$8) -> 
B8: DATOS DEL ASEGURADO
B9: NOMBRE O RAZÓN SOCIAL | C9: =IF(LEN(Solicitud.Manual!$C$9)=0,"",Solicitud.Manual!$C$9) -> 
B10: RUC | C10: =IF(LEN(Solicitud.Manual!$E$8)=0,"",Solicitud.Manual!$E$8) -> 
B12: CONTRATACIÓN DE SEGURO
B13: TIPO DE CONTRATACIÓN
B15: PREGUNTAS | D15: RESPUESTA
B16: Experiencia siniestralidad previa
B17: ¿El contratante es dueño de la mercadería?
B18: Tipo de mercadería a transportar (Detallar)
B19: Tipo de embalaje
B20: Radio de Acción | AD20: Transportes
B21: Medio de transporte a utilizar | AD21: 2 | AF21: 1436 | AG21: =IFERROR(AF21/(1+$AE$14),0) -> 1436 | AH21: =+IF($AD$21=2,4,"") -> 4
B22: Medidas de seguridad utilizadas durante el transporte. | AF22: =IFERROR(IF(OR($E$60=4,$E$60=12),$AF$21*VLOOKUP($E$60,PagodePrimasLocal1!$AD$35:$AF$40,3,0),$AF$21*SUMPRODUCT((PagodePrimasLocal1!$AD$35:$AD$40=$E$60)*(PagodePrimasLocal1!$AE$35:$AE$40=$C$55)*(PagodePrimasLocal1!$AF$35:$AF$40))),0) -> 154.5011181 | AH22: =+IF($AD$21=2,6,"") -> 6
B23: Límite Máximo por Embarque (en USD) | D23: 25000 | AF23: =SUM(AF21:AF22) -> 1590.501118 | AH23: =+IF($AD$21=2,10,"") -> 10
B24: =tablaTransportes!$G$2 -> Movimiento Anual (en USD) Mínimo USD 150,000 | AH24: =+IF($AD$21=2,12,"") -> 12
B26: Prima Comercial + IGV | D26: 345
B28: DESCRIPCION DE LA MERCANCIA:
B29: Mercadería de terceros bajo su responsabilidad, custodia o control, excluyendo:
B31: 1. Animales vivos
B32: 2. Explosivos y productos químicos de naturaleza explosiva o autocombustible y productos fiscalizados.
B33: 3. Fosforo (cerillas), fulminantes comunes y eléctricos
B34: 4. Armas y Municiones
B35: 5. Joyas, documentos valorados, valores, obras de arte, pieles, dinero o cualquier papel que lo represente, piedras preciosas y relojes,
B36: 6. Menaje de casa y/o equipaje acompañado y/o efectos personales.
B37: 7. Equipos de cómputo, sus partes y piezas, software no instalado.
B38: 8. Tarjetas telefónicas, tablets, similares y sus partes y piezas
B39: 9. Equipos de telefonía móvil (celulares, smartphones, iphones, modems)
B40: 10. CDs, DVDs, Blurays, videojuegos y televisores.
B41: 11. Todo tipo de productos a granel (granos secos o líquidos).
B42: 12. Concentrado de minerales tales como: oro y plata,
B43: 13. Cátodos de Cobre, Cableado eléctrico
B44: 14. Llantas con neumáticos / sin neumáticos,
B45: 15. Productos farmacéuticos
B46: 16. Licores, Cigarrillos
B47: 17. Artículos para deportes
B48: 18. Café en sacos y tipo exportación
A51: Pago de Primas
B53: Autorizaciones
B55: Condición de pago | C55: Cupones | D55: Emitir Factura? | E55: SÍ
B58: Inicio de Vigencia y Pago
B60: Forma de pago | D60: Nro. Cuotas: | E60: 10
C61: Al Contado | D61: Inicio Vigencia Póliza: | E61: =TODAY() -> 2021-10-13
C62: En cuotas
D64: Monto Total a Pagar Anual (incluye IGV y DE): | E64: =IF(AND($AD$21=1,$E$60=""),$AF$21,IF($E$60="","----",$AF$23)) -> 1590.501118
D65: Monto Total a Pagar Mensual: | E65: =IF(ISERROR(IF(E60=" ","---",E64/E60)),0,IF(E60=" ","---",E64/E60)) -> 159.0501118

Sheet TransportistaTerrestre
A2: SLIP DE COTIZACIÓN PARA EL SEGURO DE CARGA | O2: OK
A3: TRANSPORTE NACIONAL
A4: (TRANSPORTISTAS TERRESTRE)
B8: CONTRATANTE: | D8: =IF(LEN(CuestionarioTransporte!$C$5)>0,CuestionarioTransporte!$C$5,"") -> 
B10: RUC: | D10: =IF(LEN(CuestionarioTransporte!$C$6)>0,CuestionarioTransporte!$C$6,"") -> 
B12: ASEGURADO | D12: =IF(LEN(CuestionarioTransporte!$C$9)>0,CuestionarioTransporte!$C$9,"") -> 
B13: Propietario de la mercadería
A15: RADIO DE ACCION
A16: Dentro del Territorio Nacional; excluyendo el tránsito previo de la exportación y el transito posterior de importación, así como el transporte fluvial.
A18: MEDIOS DE TRANSPORTE
A19: En vehículos de carga de propiedad del Asegurado y/o de terceros que cuenten con autorización vigente otorgada por las Autoridades competentes para prestar el servicio de transporte terrestre automotor de carga y que se encuentren inscritos en los registros de la Dirección de Transporte Terrestre del Ministerio de Transporte y Comunicaciones.
A21: DESCRIPCION DE LA MERCANCIA: | O21: OK
A22: Mercadería de terceros bajo su responsabilidad, custodia o control, excluyendo:
A24: 1. Animales vivos
A25: 2. Explosivos y productos químicos de naturaleza explosiva o autocombustible y productos fiscalizados.
A26: 3. Fosforo (cerillas), fulminantes comunes y eléctricos
A27: 4. Armas y Municiones
A28: 5. Joyas, documentos valorados, valores, obras de arte, pieles, dinero o cualquier papel que lo represente, piedras preciosas y relojes,
A29: 6. Menaje de casa y/o equipaje acompañado y/o efectos personales.
A30: 7. Equipos de cómputo, sus partes y piezas, software no instalado.
A31: 8. Tarjetas telefónicas, tablets, similares y sus partes y piezas
A32: 9. Equipos de telefonía móvil (celulares, smartphones, iphones, modems)
A33: 10. CDs, DVDs, Blurays, videojuegos y televisores.
A34: 11. Todo tipo de productos a granel (granos secos o líquidos).
A35: 12. Concentrado de minerales tales como: oro y plata,
A36: 13. Cátodos de Cobre, Cableado eléctrico
A37: 14. Llantas con neumáticos / sin neumáticos,
A38: 15. Productos farmacéuticos
A39: 16. Licores, Cigarrillos
A40: 17. Artículos para deportes
A41: 18. Café en sacos y tipo exportación
A44: VALORIZACION DE LA MERCANCIA | O44: OK
A46: Factura Comercial y/o Guía de Remisión excluyendo los Impuestos de Ley
A49: COBERTURAS | O49: OK
B51: CODIGO | C51: CLAUSULAS
B52: 107430 | C52: 990000 - CLAUSULAS GENERALES CONTRATACIÓN RIESGOS GENERALES
B53: 107491 | C53: 111000 TRANSPORTES CARGA ABIERTA - CONDICIONES GENERALES
B54: 107209 | C54: CL TRA002 ACCIDENTE AL MEDIO DE TRANSPORTE
B55: 107212 | C55: CL TRA012 DE ROBO POR ASALTO
B56: 107215 | C56: CL TRA013 DE TRANSITO
B57: 107226 | C57: 066 CLAUSULA DE LOCALIDAD DEL INSTITUTO
B58: 107228 | C58: CL DE TERMINACION DEL TRANSITO (TERRORISMO)
B59: 107217 | C59: 256 CL DEL INST PARA HUELGAS (CARGAMENTOS)
B60: 107202 | C60: 356 CL DEL INST SOBRE EXCLUSION DE CONTAMINACION RADIOACTIVA
B61: 107214 | C61: CL TRA003 DE CARGA Y DESCARGA
A64: LIMITE MAXIMO DE RESPONSABILIDAD | O64: OK
A66: HASTA US$50,000.00 Cincuenta mil dólares americanos
A68: Cualquier exceso en el límite indicado deberá ser puesto en conocimiento de la compañía de seguros para su aprobación antes del inicio del viaje.
A70: Límite agregado anual por Robo: $50,000.00
A72: MOVIMIENTO ESTIMADO ANUAL (MAE) | O72: OK
A74: US$ 500,000.00 Quinientos mil dólares americanos (MINIMO) máximo $5,000,000.00
A76: El Asegurado se compromete en proporcionar a la Compañía después de haber terminado la vigencia de esta Póliza, la suma total definitiva del período de seguro, en base a los libros contables.
A78: CONDICIONES ESPECIALES | O78: OK
A80: Queda entendido y convenido que las operaciones de transporte terrestre de mercadería deben realizarse considerando lo siguiente:
A82: · Que los transportes realizados por vehículos de terceros deben ser realizados bajo manifiestos / carta de porte (o nombre aplicable al documento) y/o guía de remisión emitida por el Asegurado y/o por el propietario de la mercadería.
A83: · Que los Conductores de los vehículos propios y de terceros son personas debidamente habilitadas y premunidas de una Licencia de conducir vigente y que corresponda a la clase y categoría prevista en el Reglamento de Licencias de Conducir para las características del vehículo que conduce. Los conductores deberán encontrarse identificados en el Registro de Nómina de Conductores del Registro Nacional de Transporte Terrestre del MTC.
A84: · Que los vehículos propios y de terceros a utilizar deberán ser cerrados, evitando que la mercadería se encuentre expuesta a simple vista, salvo aquella carga que por su propia naturaleza y/o dimensiones no pueda ser transportada en vehículos cerrados.
A85: · Que los vehículos de carga propios y de terceros no deben ser estacionados en sitios o lugares en los cuales no exista iluminación. En caso se tenga que pernoctar por motivos debidamente justificados, la unidad deberá permanecer en un estacionamiento que sea autorizado por el Asegurado, que se encuentre dentro de la ruta establecida para el transporte y que garantice la seguridad de la mercadería a través de medidas de protección y vigilancia policial o privada.
A86: · Que todos los transportes terrestres deben ser realizados en vehículos propios y de terceros que cuenten con un sistema de posicionamiento global (GPS) que brinde información en tiempo real y que se encuentre en funcionamiento mientras la mercadería se encuentre en el vehículo. Este sistema deberá brindar señales de alarma a un Centro de Control Terrestre en forma automática y a través de un dispositivo o botón de pánico; asimismo, deben contar con cobertura total dentro de las rutas establecidas para el transporte. El seguimiento de la situación de los vehículos durante el servicio debe ser continuo y permanente las 24 horas del día y se debe contar con un plan de contingencias y sistema de respuesta rápida ante ocurrencias, asaltos y/o situaciones de emergencia.
A87: · Que los Conductores deben utilizar medios alternos de comunicación, tales como equipos de radio y/o teléfonos celulares y mantener comunicación permanente con los centros de control durante el traslado de la mercancía.
A88: · Que las unidades transportadoras no deben llevar publicidad o propaganda que indique que están transportando.
A89: · Que los Conductores de vehículos propios y de terceros no deberán realizar jornadas de conducción continúas de más de cinco (05) horas para el servicio diurno o más de cuatro (04) horas en el servicio nocturno. Tras alcanzar el periodo máximo de conducción continua, el Conductor hará una pausa ininterrumpida de por lo menos 45 minutos. La duración acumulada de jornadas de conducción no deberá exceder de diez (10) horas en un periodo de veinte y cuatro (24) horas, contadas desde la hora de inicio de la conducción en un servicio.
A91: La inobservancia de estas Condiciones Especiales liberará de toda responsabilidad indemnizatoria a la Compañía de Seguros.
A93: EXCLUSIONES | O93: OK
A95: a) Actos de deshonestidad cometidos por los empleados del Asegurado cuando la mercancía sea transportada en vehículos de propiedad del Asegurado y/o de terceros bajo su responsabilidad.
A96: b) Olvido y/o negligencia y/o embriaguez de los empleados y/o personas encargadas del transporte y custodia de acuerdo a la Ley, cuando la mercancía sea transportada en vehículos de propiedad el Asegurado y/o de terceros bajo su responsabilidad.
A97: c) Robo por escape, ratería, hurto, estafa, engaño, sustracciones sistemáticas, fraude o desaparición, cuando la mercancía sea transportada en vehículos de propiedad del Asegurado y/o de terceros bajo su responsabilidad.
A98: d) Robo por desaparición mientras los objetos asegurados o el medio transportador se encuentre dentro de algún local o recinto del Asegurado o de terceros, en calidad de depositarios y no como parte del tránsito ordinario.
A99: e) Pérdidas y/o daños causados a la mercancía asegurada como consecuencia de choques contra puentes y/o túneles durante su traslado terrestre, hasta su destino final.
A100: f) El contratante de la póliza podrá contratar a todos los transportistas que cumplan con las condiciones de la póliza; los Transportistas contratados no podrán subcontratar a otros transportistas
A102: REAJUSTE DE PRIMAS | O102: OK
A103: La Compañía se reserva el derecho de efectuar revisiones de la Póliza y reajustar las Tasas y deducibles de acuerdo al índice de siniestralidad que presente la Póliza, previo acuerdo con el Asegurado y/o Broker de seguros.
B105: DEDUCIBLES
B106: Para robo por asalto: | D106: 20% del monto indemnizable, mínimo US$ 500 por evento
B107: Para otros riesgos: | D107: 10% del monto indemnizable, mínimo US$ 200 por evento
B110: ESQUEMA DE PRIMAS NETAS
B112: · Prima neta anual USD: | E112: =CuestionarioTransporte!$D$26 -> 345
A115: Cordialmente,
A117: =+TODAY() -> 2021-10-13

Sheet PropietarioMercaderia
A2: SLIP DE COTIZACIÓN PARA EL SEGURO DE CARGA | O2: OK
A3: TRANSPORTE NACIONAL
A4: (PROPIETARIO DE MERCADERÍA)
B8: CONTRATANTE: | D8: =IF(LEN(CuestionarioTransporte!$C$5)>0,CuestionarioTransporte!$C$5,"") -> 
B10: RUC: | D10: =IF(LEN(CuestionarioTransporte!$C$6)>0,CuestionarioTransporte!$C$6,"") -> 
B12: ASEGURADO | D12: =IF(LEN(CuestionarioTransporte!$C$9)>0,CuestionarioTransporte!$C$9,"") -> 
A15: RADIO DE ACCION
A16: Dentro del Territorio Nacional; excluyendo el tránsito previo de la exportación y el transito posterior de importación.
A18: MEDIOS DE TRANSPORTE
A20: Terrestre
A21: En vehículos de carga de propiedad del Asegurado y/o de terceros que cuenten con autorización vigente otorgada por las Autoridades competentes para prestar el servicio de transporte terrestre automotor de carga y que se encuentren inscritos en los registros de la Dirección de Transporte Terrestre del Ministerio de Transporte y Comunicaciones.
A35: La inobservancia de lo antes mencionado, liberará de responsabilidad a la Compañía.
A38: DESCRIPCION DE LA MERCANCIA: | O38: OK
A39: Mercadería de PROPIO DEL GIRO DEL NEGOCIO DEL ASEGURADO
A40: =IF(LEN(CuestionarioTransporte!$D$18)>0,CuestionarioTransporte!$D$18,"") -> 
A42: VALORIZACION DE LA MERCANCIA | O42: OK
A43: Factura Comercial y/o Guía de Remisión excluyendo los Impuestos de Ley más flete.
B45: COBERTURAS
B47: CODIGO | C47: CLAUSULAS
B48: 107430 | C48: 990000 - CLAUSULAS GENERALES CONTRATACIÓN RIESGOS GENERALES
B49: 107491 | C49: 111000 TRANSPORTES CARGA ABIERTA - CONDICIONES GENERALES
B50: 107209 | C50: CL TRA002 ACCIDENTE AL MEDIO DE TRANSPORTE
B51: 107212 | C51: CL TRA012 DE ROBO POR ASALTO
B52: 107215 | C52: CL TRA013 DE TRANSITO
B53: 107226 | C53: 066 CLAUSULA DE LOCALIDAD DEL INSTITUTO
B54: 107228 | C54: CL DE TERMINACION DEL TRANSITO (TERRORISMO)
B55: 107217 | C55: 256 CL DEL INST PARA HUELGAS (CARGAMENTOS)
B56: 107202 | C56: 356 CL DEL INST SOBRE EXCLUSION DE CONTAMINACION RADIOACTIVA
B57: 107214 | C57: CL TRA003 DE CARGA Y DESCARGA
B58: 107213 | C58: CL TRA011 DE ROBO CON FRACTURA
B59: 105326 | C59: CLAUSULA DE RIESGOS DE LA NATURALEZA
A62: LIMITE MAXIMO DE RESPONSABILIDAD | O62: OK
A64: HASTA US$25,000.00 Cincuenta mil dólares americanos
A66: Cualquier exceso en el límite indicado deberá ser puesto en conocimiento de la compañía de seguros para su aprobación antes del inicio del viaje.
A68: Límite agregado anual por Robo: $25,000.00
A70: MOVIMIENTO ANUAL (MA) | O70: OK
A72: Desde US$ 150,000.00 dólares americanos hasta $2,000,000.00
A74: El Asegurado se compromete en proporcionar a la Compañía después de haber terminado la vigencia de esta Póliza, la suma total definitiva del período de seguro, en base a los libros contables.
A77: CONDICIONES ESPECIALES | O77: OK
A79: Queda entendido y convenido que las operaciones de transporte terrestre de mercadería deben realizarse considerando lo siguiente:
A81: · Que los transportes realizados por vehículos de terceros deben ser realizados bajo manifiestos / carta de porte (o nombre aplicable al documento) y/o guía de remisión emitida por el Asegurado y/o por el propietario de la mercadería.
A82: · Que los Conductores de los vehículos propios y de terceros son personas debidamente habilitadas y premunidas de una Licencia de conducir vigente y que corresponda a la clase y categoría prevista en el Reglamento de Licencias de Conducir para las características del vehículo que conduce. Los conductores deberán encontrarse identificados en el Registro de Nómina de Conductores del Registro Nacional de Transporte Terrestre del MTC.
A83: · Que los vehículos propios y de terceros a utilizar deberán ser cerrados, evitando que la mercadería se encuentre expuesta a simple vista, salvo aquella carga que por su propia naturaleza y/o dimensiones no pueda ser transportada en vehículos cerrados.
A84: · Que los vehículos de carga propios y de terceros no deben ser estacionados en sitios o lugares en los cuales no exista iluminación. En caso se tenga que pernoctar por motivos debidamente justificados, la unidad deberá permanecer en un estacionamiento que sea autorizado por el Asegurado, que se encuentre dentro de la ruta establecida para el transporte y que garantice la seguridad de la mercadería a través de medidas de protección y vigilancia policial o privada.
A85: · Que todos los transportes terrestres deben ser realizados en vehículos propios y de terceros que cuenten con un sistema de posicionamiento global (GPS) que brinde información en tiempo real y que se encuentre en funcionamiento mientras la mercadería se encuentre en el vehículo. Este sistema deberá brindar señales de alarma a un Centro de Control Terrestre en forma automática y a través de un dispositivo o botón de pánico; asimismo, deben contar con cobertura total dentro de las rutas establecidas para el transporte. El seguimiento de la situación de los vehículos durante el servicio debe ser continuo y permanente mientras la mercadería esté siendo trasladada y se debe contar con un plan de contingencias y sistema de respuesta rápida ante ocurrencias, asaltos y/o situaciones de emergencia.
A86: · Que los Conductores deben utilizar medios alternos de comunicación, tales como equipos de radio y/o teléfonos celulares y mantener comunicación permanente con los centros de control durante el traslado de la mercancía.
A87: · Que los Conductores de vehículos propios y de terceros no deberán realizar jornadas de conducción continúas de más de cinco (05) horas para el servicio diurno o más de cuatro (04) horas en el servicio nocturno. Tras alcanzar el periodo máximo de conducción continua, el Conductor hará una pausa ininterrumpida de por lo menos 45 minutos. La duración acumulada de jornadas de conducción no deberá exceder de diez (10) horas en un periodo de veinte y cuatro (24) horas, contadas desde la hora de inicio de la conducción en un servicio.
A89: La inobservancia de estas Condiciones Especiales liberará de toda responsabilidad indemnizatoria a la Compañía de Seguros.
A92: EXCLUSIONES | O92: OK
A94: a) Actos de deshonestidad cometidos por los empleados del Asegurado cuando la mercancía sea transportada en vehículos de propiedad del Asegurado y/o de terceros bajo su responsabilidad.
A95: b) Olvido y/o negligencia y/o embriaguez de los empleados y/o personas encargadas del transporte y custodia de acuerdo a la Ley, cuando la mercancía sea transportada en vehículos de propiedad el Asegurado y/o de terceros bajo su responsabilidad.
A96: c) Robo por escape, ratería, hurto, estafa, engaño, sustracciones sistemáticas, fraude o desaparición, cuando la mercancía sea transportada en vehículos de propiedad del Asegurado y/o de terceros bajo su responsabilidad.
A97: d) Robo por desaparición mientras los objetos asegurados o el medio transportador se encuentre dentro de algún local o recinto del Asegurado o de terceros, en calidad de depositarios y no como parte del tránsito ordinario.
A98: e) Pérdidas y/o daños causados a la mercancía asegurada como consecuencia de choques contra puentes y/o túneles durante su traslado terrestre, hasta su destino final.
A99: f) El contratante de la póliza podrá contratar a todos los transportistas que cumplan con las condiciones de la póliza; los Transportistas contratados no podrán subcontratar a otros transportistas
A101: REAJUSTE DE PRIMAS | O101: OK
A102: La Compañía se reserva el derecho de efectuar revisiones de la Póliza y reajustar las Tasas y deducibles de acuerdo al índice de siniestralidad que presente la Póliza, previo acuerdo con el Asegurado y/o Broker de seguros.
A105: DEDUCIBLES
B106: Para robo por asalto: | D106: 20% del monto indemnizable, mínimo US$ 500
B107: Para otros riesgos: | D107: 10% del monto indemnizable, mínimo US$ 200
B110: ESQUEMA DE PRIMAS NETAS
B112: Prima Comercial + IGV | E112: =TransportistaTerrestre!$E$112 -> 345
B113: Movimiento Anual (en USD) | E113: =CuestionarioTransporte!$D$24 -> 0
A115: Cordialmente,
A117: =+TODAY() -> 2021-10-13

Sheet tablaTransportes
G1: CELDA D24
D2: MAE <= 3MM | E2: MAE > 3 MM y <= 5 MM | G2: ="Movimiento Anual (en USD) Mínimo USD " & TEXT($H$3,"#,##") -> Movimiento Anual (en USD) Mínimo USD 150,000
C3: TRANSPORTES CON INCENDIO | D3: 0.0023 | E3: 0.00088 | G3: Mínimo USD | H3: 150000
C4: TRANSPORTES SIN INCENDIO | D4: 0.00359 | E4: 0.00137 | G4: Maximo USD | H4: 2000000

Sheet Hoja1 (hidden)
A1: SLIP COTIZACIÓN PROTECCIÓN PARA TU NEGOCIO 2016
A4: PROTECCIÓN PARA NEGOCIO
A8: CONTRATANTE | C8: =Solicitud.Manual!$C$9 & " " &Solicitud.Manual!$C$10 & " " & Solicitud.Manual!$E$10 -> 
A11: CORREDOR | C11: =Solicitud.Manual!$D$148 -> 0
A12: VIGENCIA | C12: =PagodePrimasLocal1!$N$22 ->  | D12: al | E12: =+IF(C12="","",IF(DAY(C12)<10,0&DAY(C12),DAY(C12))&"/"&IF(MONTH(C12)<10,0&MONTH(C12),MONTH(C12))&"/"&YEAR(C12)+1) ->  | F12: 12:00 Hrs
A14: CONDICIONES PARTICULARES
A16: ASEGURADO | C16: =Solicitud.Manual!$I$9 & " " & Solicitud.Manual!$I$10 & " " & Solicitud.Manual!$M$10 -> 
A18: ACTIVIDAD O GIRO DEL NEGOCIO
A19: Local 1 | C19: =Solicitud.Manual!$E$27 -> 
A20: Local 2 | C20: =Solicitud.Manual!$E$32 -> 
A21: Local 3 | C21: =Solicitud.Manual!$E$37 -> 
A23: DIRECCIÓN DE LOS LOCALES POR ASEGURAR
A24: Local 1 | B24: =Solicitud.Manual!$C$47 & " " & Solicitud.Manual!$C$48 & " " &Solicitud.Manual!$C$46 -> 
A25: Local 2 | B25: =Solicitud.Manual!$G$47 & " " & Solicitud.Manual!$G$48 & " " &Solicitud.Manual!$G$46 -> 
A26: Local 3 | B26: =Solicitud.Manual!$K$47 & " " & Solicitud.Manual!$K$48 & " " &Solicitud.Manual!$K$46 -> 
A28: PROTECCIÓN PARA NEGOCIO
A30: SECCIÓN INCENDIO Y LÍNEAS ALIADAS
A32: A. MATERIA DEL SEGURO
A33: Toda propiedad, , comprendiendo también maquinaria, equipos fijo, equipo móviles dentro y fuera de los predios asegurados, sea de propiedad del ASEGURADO y/o de terceros que se encuentren bajo su responsabilidad, supervisión , control y custodia siempre que formen parte de los Valores Declarados en la Póliza, en locales propios y/o de terceros señalados en póliza, en forma permanente o temporal incluyendo bienes a la intemperie (siempre que debido a su naturaleza, deban estar bajo esa condición).
A38: B. MODALIDAD DE
A41: C. BIENES ASEGURADOS Y VALORES DECLARADOS
F42: Local 1 | I42: Local 2 | L42: Local 3
F43: Valor Declarado | I43: Valor Declarado | L43: Valor Declarado
F44: Total | G44: Endosado | I44: Total | J44: Endosado | L44: Total | M44: Endosado
A45: Edificio y/o Instalaciones fijas (sin considerar el valor del terreno ni Instalaciones Fijas) | F45: =IF(CoberturasaElegirLocal1!$M$11="","",CoberturasaElegirLocal1!$M$11) ->  | G45: =IF(CoberturasaElegirLocal1!$N$11="","",CoberturasaElegirLocal1!$N$11) ->  | I45: =IF(CoberturasaElegirLocal2!$M$11="","",CoberturasaElegirLocal2!$M$11) ->  | J45: =IF(CoberturasaElegirLocal2!$N$11="","",CoberturasaElegirLocal2!$N$11) ->  | L45: =IF(CoberturasaElegirLocal3!$M$11="","",CoberturasaElegirLocal3!$M$11) ->  | M45: =IF(CoberturasaElegirLocal3!$N$11="","",CoberturasaElegirLocal3!$N$11) -> 
A46: Instalaciones Fijas | F46: =IF(CoberturasaElegirLocal1!$M$12="","",CoberturasaElegirLocal1!$M$12) ->  | G46: =IF(CoberturasaElegirLocal1!$N$12="","",CoberturasaElegirLocal1!$N$12) ->  | I46: =IF(CoberturasaElegirLocal2!$M$12="","",CoberturasaElegirLocal2!$M$12) ->  | J46: =IF(CoberturasaElegirLocal2!$N$12="","",CoberturasaElegirLocal2!$N$12) ->  | L46: =IF(CoberturasaElegirLocal3!$M$12="","",CoberturasaElegirLocal3!$M$12) ->  | M46: =IF(CoberturasaElegirLocal3!$N$12="","",CoberturasaElegirLocal3!$N$12) -> 
A47: Mobiliario y/o Contenido propios del giro | F47: =IF(CoberturasaElegirLocal1!$M$13="","",CoberturasaElegirLocal1!$M$13) ->  | G47: =IF(CoberturasaElegirLocal1!$N$13="","",CoberturasaElegirLocal1!$N$13) ->  | I47: =IF(CoberturasaElegirLocal2!$M$13="","",CoberturasaElegirLocal2!$M$13) ->  | J47: =IF(CoberturasaElegirLocal2!$N$13="","",CoberturasaElegirLocal2!$N$13) ->  | L47: =IF(CoberturasaElegirLocal3!$M$13="","",CoberturasaElegirLocal3!$M$13) ->  | M47: =IF(CoberturasaElegirLocal3!$N$13="","",CoberturasaElegirLocal3!$N$13) -> 
A48: Existencias propias del giro del negocio | F48: =IF(CoberturasaElegirLocal1!$M$14="","",CoberturasaElegirLocal1!$M$14) ->  | G48: =IF(CoberturasaElegirLocal1!$N$14="","",CoberturasaElegirLocal1!$N$14) ->  | I48: =IF(CoberturasaElegirLocal2!$M$14="","",CoberturasaElegirLocal2!$M$14) ->  | J48: =IF(CoberturasaElegirLocal2!$N$14="","",CoberturasaElegirLocal2!$N$14) ->  | L48: =IF(CoberturasaElegirLocal3!$M$14="","",CoberturasaElegirLocal3!$M$14) ->  | M48: =IF(CoberturasaElegirLocal3!$N$14="","",CoberturasaElegirLocal3!$N$14) -> 
A49: Maquinaria propia del giro del negocio | F49: =IF(CoberturasaElegirLocal1!$M$15="","",CoberturasaElegirLocal1!$M$15) ->  | G49: =IF(CoberturasaElegirLocal1!$N$15="","",CoberturasaElegirLocal1!$N$15) ->  | I49: =IF(CoberturasaElegirLocal2!$M$15="","",CoberturasaElegirLocal2!$M$15) ->  | J49: =IF(CoberturasaElegirLocal2!$N$15="","",CoberturasaElegirLocal2!$N$15) ->  | L49: =IF(CoberturasaElegirLocal3!$M$15="","",CoberturasaElegirLocal3!$M$15) ->  | M49: =IF(CoberturasaElegirLocal3!$N$15="","",CoberturasaElegirLocal3!$N$15) -> 
A50: Equipos electrónicos propios del giro del negocio | F50: =IF(CoberturasaElegirLocal1!$M$16="","",CoberturasaElegirLocal1!$M$16) ->  | G50: =IF(CoberturasaElegirLocal1!$N$16="","",CoberturasaElegirLocal1!$N$16) ->  | I50: =IF(CoberturasaElegirLocal2!$M$16="","",CoberturasaElegirLocal2!$M$16) ->  | J50: =IF(CoberturasaElegirLocal2!$N$16="","",CoberturasaElegirLocal2!$N$16) ->  | L50: =IF(CoberturasaElegirLocal3!$M$16="","",CoberturasaElegirLocal3!$M$16) ->  | M50: =IF(CoberturasaElegirLocal3!$N$16="","",CoberturasaElegirLocal3!$N$16) -> 
A51: Lucro Cesante – Cédula A - Utilidad Bruta Anual ó Gastos Fijos (Estables) | F51: =IF(CoberturasaElegirLocal1!$M$17="","",CoberturasaElegirLocal1!$M$17) ->  | I51: =IF(CoberturasaElegirLocal2!$M$17="","",CoberturasaElegirLocal2!$M$17) ->  | L51: =IF(CoberturasaElegirLocal3!$M$17="","",CoberturasaElegirLocal3!$M$17) -> 
A52: TOTAL VALOR DECLARADO (Máximo hasta 2'000,000 USD) | F52: =IF(CoberturasaElegirLocal1!$M$18="","",CoberturasaElegirLocal1!$M$18) ->  | G52: =IF(OR(CoberturasaElegirLocal1!$N$18="",CoberturasaElegirLocal1!$N$18=0),"",CoberturasaElegirLocal1!$N$18) ->  | I52: =IF(CoberturasaElegirLocal2!$M$18="","",CoberturasaElegirLocal2!$M$18) ->  | J52: =IF(OR(CoberturasaElegirLocal2!$N$18="",CoberturasaElegirLocal2!$N$18=0),"",CoberturasaElegirLocal2!$N$18) ->  | L52: =IF(CoberturasaElegirLocal3!$M$18="","",CoberturasaElegirLocal3!$M$18) ->  | M52: =IF(OR(CoberturasaElegirLocal3!$N$18="",CoberturasaElegirLocal3!$N$18=0),"",CoberturasaElegirLocal3!$N$18) -> 
A54: D. MODALIDAD DE ASEGURAMIENTO
A55: A Valor Total
A57: E. COBERTURAS Y SUMAS ASEGURADAS | F57: Local 1 | I57: Local 2 | L57: Local 3
A58: COBERTURA | F58: Suma Asegurada US$ | I58: Suma Asegurada US$ | L58: Suma Asegurada US$
A59: Todo Riesgo Incendio y Líneas Aliadas | F59: =IF(SUM(F52)<>0,SUM(F52),"") ->  | I59: =IF(SUM(I52)<>0,SUM(I52),"") ->  | L59: =IF(SUM(L52)<>0,SUM(L52),"") -> 
A60: Límite Único y Combinado para Todo Riesgo Incendio y Líneas Aliadas
A61: Lucro Cesante periodo de indemnización 12 meses.
A65: PROTECCIÓN PARA NEGOCIO
A67: F. SUBLÍMITES
F68: Local 1 | I68: Local 2 | L68: Local 3
B69: Sublímite* | F69: Límite | I69: Límite | L69: Límite
B70: Huelga, Motín, Conmoción Civil, Daño Malicioso, Vandalismo y /o Terrorismo en el agregado por vigencia.(Límite Único y Combinado) | F70: =F59 ->  | I70: =I59 ->  | L70: =L59 -> 
B72: Gastos Extraordinarios: (Límite Único y Combinado), tales como: - Honorarios de Arquitectos, topógrafos e Ingenieros - Documentos y Modelos - Remoción de Escombros | F72: =IF(ISERROR(IF(0.2*F59>400000,400000,0.2*F59)),0,(IF(0.2*F59>400000,400000,0.2*F59))) -> 0 | I72: =IF(ISERROR(IF(0.2*I59>400000,400000,0.2*I59)),0,(IF(0.2*I59>400000,400000,0.2*I59))) -> 0 | L72: =IF(ISERROR(IF(0.2*L59>400000,400000,0.2*L59)),0,(IF(0.2*L59>400000,400000,0.2*L59))) -> 0
B76: Cobertura Automática para Nuevas Adquisiciones, máximo 30 días para declaración a PACIFICO. Aplica sólo si cuenta con contenido y equipos y maquinaria | F76: =IF(ISERROR(IF(0.2*F59>100000,100000,0.2*F59)),0,IF(0.2*F59>100000,100000,0.2*F59)) -> 0 | I76: =IF(ISERROR(IF(0.2*I59>100000,100000,0.2*I59)),0,IF(0.2*I59>100000,100000,0.2*I59)) -> 0 | L76: =IF(ISERROR(IF(0.2*L59>100000,100000,0.2*L59)),0,IF(0.2*L59>100000,100000,0.2*L59)) -> 0
B79: Rotura Accidental de Vidrios, Cristales y/o Avisos luminosos. Aplica para contenido y edificación. | F79: =IF(ISERROR(IF(0.1*F59>5000,5000,0.1*F59)),0,IF(0.1*F59>5000,5000,0.1*F59)) -> 0 | I79: =IF(ISERROR(IF(0.1*I59>5000,5000,0.1*I59)),0,IF(0.1*I59>5000,5000,0.1*I59)) -> 0 | L79: =IF(ISERROR(IF(0.1*L59>5000,5000,0.1*L59)),0,IF(0.1*L59>5000,5000,0.1*L59)) -> 0
B81: Gastos Extras | F81: =IF(ISERROR(IF(0.2*F59>400000,400000,0.2*F59)),0,IF(0.2*F59>400000,400000,0.2*F59)) -> 0 | I81: =IF(ISERROR(IF(0.2*I59>400000,400000,0.2*I59)),0,IF(0.2*I59>400000,400000,0.2*I59)) -> 0 | L81: =IF(ISERROR(IF(0.2*L59>400000,400000,0.2*L59)),0,IF(0.2*L59>400000,400000,0.2*L59)) -> 0
B82: Refrigeración (L.A.A.)** | F82: =IF(ISERROR(IF(DatosdelNegocioLocal1!$AH$5="A",20000,"")),0,(IF(DatosdelNegocioLocal1!$AH$5="A",20000,""))) ->  | I82: =IF(ISERROR(IF(DatosdelNegocioLocal1!$AH$5="A",20000,"")),0,(IF(DatosdelNegocioLocal1!$AH$5="A",20000,""))) ->  | L82: =IF(ISERROR(IF(DatosdelNegocioLocal1!$AH$5="A",20000,"")),0,(IF(DatosdelNegocioLocal1!$AH$5="A",20000,""))) -> 
B83: *: Foman parte de la Suma Asegurada, no son adicionales
B84: **: $ 5,000 por evento.
A86: G. CONDICIONADOS Y CLÁUSULAS APLICABLES A ESTA SECCIÓN
A88: 990000 - Claúsulas Generales de Contratación para Riesgos Generales
A89: Condicionado General Multi-Riesgo Negocios.
A90: 010005 - Cláusula Todo Riesgo.
A91: 010027 - Claúsula para Pérdidas y Daños por Huelga, Motín y Conmoción Civil.
A92: 010028 - Claúsula para Pérdidas o Daños por Vandalismo, Terrorismo y Daño Malicioso.
A93: 010029 - Claúsula para Gastos Extras
A94: 010024 - Claúsula para Gastos Extraordinarios
A95: 010006 - Claúsula de Refrigeración.
A96: 010010 - Cláusula de cobertura automática por nuevas adquisiciones.
A97: 010003 - Cláusula de rotura de cristales y/o vidrios.
A98: 990001 - Cláusula de Terceros.
A99: 990003 - Cláusula de rehabilitación automática de la suma asegurada (condición PPS).
A100: 010038 - Claúsula de reemplazo.
A101: 010012 - Claúsula de Traslado temporal.
A102: 010011 - Claúsula de Propiedades fuera de control del Asegurado.
A103: 010013 - Claúsula de Errores u omisiones.
A104: - Cláusula de transporte incidental.
A105: LUCRO CESANTE
A106: − 011000 CONDICIONADO GENERAL DE LUCRO CESANTE POR INCENDIO
A107: − 011001 – CL. PARA LUCRO CESANTE FORMA INGLESA CÉDULA A
A108: Asistencia para el negocio.
A109: =+IF(DatosdelNegocioLocal1!$AH$5="A","Clausula de refrigeración","") -> 
A111: H. DEDUCIBLES (POR TODA Y CADA PÉRDIDA)
A113: Terremoto, temblor, erupción volcánica, fuego subterráneo, maremoto (tsunami), salida mar, marejada u oleaje: 1% del valor declarado del predio afectado y/o su contenido y/o sus existencias, mínimo US$ 1,000
A115: Otros riesgos de la naturaleza: 1% del valor declarado del predio afectado y/o su contenido y/o sus existencias, mínimo US$ 1,000
A116: Huelga, conmoción civil, asonada, daño malicioso y vandalismo, sabotaje y/o terrorismo: 10% del monto indemnizable mínimo US$ 1,000
A118: Rotura Accidental de Vidrios, Cristales y/o Avisos Luminosos: 10% del monto indemnizable mínimo US$ 50.00
A119: Gastos Extras: 3 días
A120: Demás Coberturas: 5 % del Monto Indemnizable, mínimo US$ 500.00
A121: - Lucro Cesante, 7 días,
A122: Transporte Incidental: 10% del monto indemnizable mínimo US$ 100.00
A127: PROTECCIÓN PARA NEGOCIO
A130: I. CONDICIONES ESPECIALES APLICABLES ESTA SECCIÓN
A132: LAS COBERTURAS ADICIONALES FORMAN PARTE DEL LIMITE PRINCIPAL
A133: - La presente sección no cubre Lucro Cesante Contingente en cualquiera de sus modalidades.
A135: Las siguientes cláusulas son de aplicación siempre y cuando la presente poliza se encuentre endosada a algún banco y/o entidad financiera: - clausula de reemplazo hasta 3 años de antiguedad. - traslado temporal. - propiedades fuera de control del asegurado. - errores u omisiones.
A140: La clausula de refrigeración es de aplicacion siempre y cuando corresponda a cualquiera de las siguientes actividades: restaurantes, hoteles,panaderías, heladerías, carnicerías y bodegas.
A142: J. GARANTÍAS APLICABLES ESTA SECCIÓN
A144: I. La empresa deberá contar con licencia de funcionamiento vigente.
A145: II. El local deberá contar con extintor vigente.
A148: PROTECCIÓN PARA NEGOCIO
A151: SECCIÓN ROTURA DE MAQUINARIA
A153: A. MATERIA DEL SEGURO
A155: Maquinaria y equipo, fijo y estacionario en general de propiedad del ASEGURADO y/o de terceros que guarden relación con el giro del negocio que se encuentren bajo su responsabilidad, supervisión, control y custodia siempre que formen parte de los Valores Declarados en la Póliza, en el local señalado en póliza, en forma permanente o temporal y que sea parte o contribuyan directa o indirectamente con el proceso productivo o actividad del ASEGURADO.
A160: B. MODALIDAD DE ASEGURAMIENTO
A162: A PRIMER RIESGO
A164: C. COBERTURAS Y SUMAS ASEGURADAS
F165: Local 1 | I165: Local 2 | L165: Local 3
B166: Cobertura | F166: Suma Asegurada | I166: Suma Asegurada | L166: Suma Asegurada
B167: Daño Material – Básica | F167: =+CoberturasaElegirLocal1!$N$23 ->  | I167: =+CoberturasaElegirLocal2!$N$23 ->  | L167: =+CoberturasaElegirLocal3!$N$23 -> 
A170: D. SUBLÍMITES
F171: Local 1 | I171: Local 2 | L171: Local 3
B172: Sub Limites | F172: Límite US$ | I172: Límite US$ | L172: Límite US$
B173: Gastos adicionales por horas extras, trabajo nocturno, trabajo en días festivos, flete expreso, Límite Único y Combinado | F173: Hasta el 100% de Suma Asegurada, Hasta $ 10,000 | I173: Hasta el 100% de Suma Asegurada, Hasta $ 10,000 | L173: Hasta el 100% de Suma Asegurada, Hasta $ 10,000
B174: Flete aéreo. | F174: Hasta el 100% de Suma Asegurada, Hasta $ 10,000 | I174: Hasta el 100% de Suma Asegurada, Hasta $ 10,000 | L174: Hasta el 100% de Suma Asegurada, Hasta $ 10,000
A176: E. CONDICIONADOS Y CLÁUSULAS APLICABLES A ESTA SECCIÓN:
A178: − 330007 CLÁUSULA PARA CUBRIR GASTOS ADICIONALES POR HORAS EXTRA, TRABAJO NOCTURNO, TRABAJO EN DÍAS FESTIVOS Y FLETE EXPRESO
A179: − 330006 CL.PARA CUBRIR GASTOS ADICIONALES PARA FLETE AÉREO
A180: − 330005 CL. DE EXCLUSIÓN DE EXPLOSIONES DE GASES DE ESCAPE EN CALDERAS Y HORNOS
A181: − 330013 CL. DE AJUSTE DE LA DEPRECIACIÓN PARA LA REPARACIÓN DE MOTORES DE COMBUSTIÓN INTERNA
A182: − 330028 CL. VALOR NUEVO DE REPOSICION-RM
A183: − 990000 - Claúsulas Generales de Contratación para Riesgos Generales
A184: Condicionado General Multi-Riesgo Negocios.
A185: 330013 - clausula de ajuste de la depreciación para la reparación de motores de combustión interna (p. ej. motores de gasolina, motores a gas). (obligatorio)
A187: 330012 - ajuste de depreciación en rebobinados maquinas eléctricas. (obligatorio)
A189: F. DEDUCIBLES (POR TODA Y CADA PÉRDIDA)
A191: Daño Material, 10% del monto indemnizable mínimo US$ 500.
A192: - Gastos adicionales por horas extras, trabajo nocturno, trabajo en días festivos, flete expreso. 10% del monto indemnizable mínimo US$ 200
A194: - Flete Aéreo 10% del monto indemnizable mínimo US$ 200
A196: G. CONDICIONES ESPECIALES APLICABLES ESTA SECCIÓN
A198: La presente póliza se limita a amparar la maquinaria fija dentro del local declarado.
A199: El Valor Declarado debe corresponder al valor de reposición a nuevo del equipo asegurado.
A200: Valor Nuevo de reemplazo, aplicables para maquinaria hasta 2 años de antigüedad.
A202: H. GARANTÍAS APLICABLES ESTA SECCIÓN
A204: Se debe contar, cumplir y documentar con el programa de Mantenimiento Preventivo, según indicaciones del fabricante para todos los equipos.
A208: PROTECCIÓN PARA NEGOCIO
A211: SECCIÓN EQUIPO ELECTRONICO
A213: A. MATERIA DEL SEGURO
A215: Equipos eléctricos y electrónicos instalados, de propiedad del ASEGURADO y/o de terceros que guarden relación con el giro del negocio bajo control, cuidado y custodia del ASEGURADO, dentro del local asegurado que formen parte del Valor Declarado y sea parte o contribuyan directa o indirectamente con el proceso productivo o actividad del ASEGURADO.
A219: B. MODALIDAD DE ASEGURAMIENTO
A221: A PRIMER RIESGO
A223: C. COBERTURAS Y SUMAS ASEGURADAS
F224: Local 1 | I224: Local 2 | L224: Local 3
B225: Coberturas | F225: Sumas Aseguradas | I225: Sumas Aseguradas | L225: Sumas Aseguradas
B226: Todo Riesgo Equipo Electrónico Secciones I,II y III – Límite Único y Combinado, período de indemnización Sección III: 06 meses | F226: =+CoberturasaElegirLocal1!$N$26 ->  | I226: =+CoberturasaElegirLocal2!$N$26 ->  | L226: =+CoberturasaElegirLocal3!$N$26 -> 
A230: D. SUBLÍMITES
F231: Local 1 | I231: Local 2 | L231: Local 3
B232: Sublímite | F232: Límite | I232: Límite | L232: Límite
B233: Equipos Móviles y Portátiles fuera del predio limitado a Laptops y/o notebooks US$ 3,000 por evento y en el Agregado por vigencia. | F233: =CoberturasaElegirLocal1!$N$27 ->  | I233: =CoberturasaElegirLocal2!$N$27 ->  | L233: =CoberturasaElegirLocal3!$N$27 -> 
B236: Gastos adicionales por horas extras, trabajo nocturno, trabajo en días festivos, flete expreso – por evento y en el Agregado por vigencia, Límite Único y Combinado | F236: Hasta el 100% de Suma Asegurada, Hasta $ 5,000 | I236: Hasta el 100% de Suma Asegurada, Hasta $ 5,000 | L236: Hasta el 100% de Suma Asegurada, Hasta $ 5,000
B237: Flete aéreo – por evento y en el Agregado Vigencia | F237: Hasta el 100% de Suma Asegurada, Hasta $ 5,000 | I237: Hasta el 100% de Suma Asegurada, Hasta $ 5,000 | L237: Hasta el 100% de Suma Asegurada, Hasta $ 5,000
A239: E. CONDICIONADOS Y CLÁUSULAS APLICABLES A ESTA SECCIÓN:
A241: 990000 - Claúsulas Generales de Contratación para Riesgos Generales
A242: Condicionado General Multi-Riesgo Negocios.
A243: 360002 - Cláusula de valor nuevo de reposición.
A244: 360015 - Cláusula sobre celebración de un contrato de mantenimiento.
A245: 360008 - Cláusula de obligaciones relativas a equipos de climatización.
A246: 360015 - Cláusula para servicios de mantenimiento y prestaciones del seguro.
A247: =+IF(F233="","","Cláusula para equipos móviles y portátiles fuera del predio asegurado.") -> 
A248: − 360027 CL. PARA CUBRIR GASTOS ADICIONALES PARA EL FLETE AÉREO
A249: − 360023 CL. DE COBERTURA DE EQUIPOS MÓVILES Y PORTÁTILES FUERA DE LOS PREDIOS ASEGURADOS
A251: F. DEDUCIBLES (POR TODA Y CADA PÉRDIDA)
A253: Secciones I y II, 10% del monto indemnizable mínimo US$ 200
A254: Sección III : 3 días
A255: =+IF(F233="","","Equipos Móviles y Portátiles fuera de los predios: 20 % del monto indemnizable mínimo US$ 500") -> 
A256: Gastos adicionales por horas extras, trabajo nocturno, trabajo en días festivos, flete expreso. 10% del monto indemnizable mínimo US$ 200
A257: Flete Aéreo 10% del monto indemnizable mínimo US$ 200
A259: G. CONDICIONES ESPECIALES APLICABLES ESTA SECCIÓN
A260: Contar con duplicado de información backup, para efectos de la Sección II portadores externos de datos, en otro local del asegurado.
A261: Se excluyen los daños causados por los programas denominados “virus informáticos”.
A262: Se excluye la cobertura de robo para equipos electrónicos.
A264: H. GARANTÍAS APLICABLES ESTA SECCIÓN
A265: Todos los Equipos deberán contar con Estabilizador de Voltaje operativo.
A266: Se debe contar, cumplir y documentar con el programa de Mantenimiento Preventivo, según indicaciones del fabricante para todos los equipos.
A269: PROTECCIÓN PARA NEGOCIO
A272: SECCIÓN ROBO
A274: A. MATERIA DEL SEGURO
A276: Contenidos en el local asegurado incluyendo maquinaria y equipos, existencias en general y dinero en efectivo de propiedad del ASEGURADO y/o de terceros que guarden relación con el giro del negocio que se encuentren bajo su responsabilidad, supervisión, control y custodia siempre que formen parte de los Valores Declarados en la Póliza.
A280: B. BIENES ASEGURADOS Y VALORES DECLARADOS
F281: Local 1 | I281: Local 2 | L281: Local 3
A282: Detalle | F282: Valor Declarado | G282: Suma Asegurada Máxima | I282: Valor Declarado | J282: Suma Asegurada Máxima | L282: Valor Declarado | M282: Suma Asegurada Máxima
A283: Edificio (sin considerar el valor del terreno ni Instalaciones Fijas) | F283: =+CoberturasaElegirLocal1!$M$11 ->  | I283: =+CoberturasaElegirLocal2!$M$11 ->  | L283: =+CoberturasaElegirLocal3!$M$11 -> 
A284: Instalaciones fijas | F284: =+CoberturasaElegirLocal1!$M$31 ->  | I284: =+CoberturasaElegirLocal2!$M$31 ->  | L284: =+CoberturasaElegirLocal3!$M$31 -> 
A285: Mobiliario y/o contenido propios del giro del negocio | F285: =+CoberturasaElegirLocal1!$M$32 ->  | I285: =+CoberturasaElegirLocal2!$M$32 ->  | L285: =+CoberturasaElegirLocal3!$M$32 -> 
A286: Existencias propias del giro del negocio | F286: =+CoberturasaElegirLocal1!$M$33 ->  | I286: =+CoberturasaElegirLocal2!$M$33 ->  | L286: =+CoberturasaElegirLocal3!$M$33 -> 
A287: Maquinaria propia del giro del negocio | F287: =+CoberturasaElegirLocal1!$M$34 ->  | I287: =+CoberturasaElegirLocal2!$M$34 ->  | L287: =+CoberturasaElegirLocal3!$M$34 -> 
A288: Equipo electrónico fijo | F288: =+CoberturasaElegirLocal1!$M$35 ->  | I288: =+CoberturasaElegirLocal2!$M$35 ->  | L288: =+CoberturasaElegirLocal3!$M$35 -> 
A289: Dinero en Tránsito (LAA) | F289: --------- | I289: --------- | L289: ---------
A290: Dinero y/o valores dentro del local (caja chica y/o caja registradora) solo en horas laborables (LAA) | F290: =+CoberturasaElegirLocal1!$M$36 -> --------- | I290: =+CoberturasaElegirLocal2!$M$36 -> --------- | L290: =+CoberturasaElegirLocal3!$M$36 -> ---------
A291: Total: | F291: =+CoberturasaElegirLocal1!$M$18 ->  | G291: =IF(F291>100000,100000,F291) -> 100000 | I291: =+CoberturasaElegirLocal2!$M$18 ->  | J291: =IF(I291>100000,100000,I291) -> 100000 | L291: =+CoberturasaElegirLocal3!$M$18 ->  | M291: =IF(L291>100000,100000,L291) -> 100000
A293: C. MODALIDAD DE ASEGURAMIENTO
A295: A PRIMER RIESGO
A297: D. CONDICIONADOS Y CLÁUSULAS APLICABLES A ESTA SECCIÓN:
A299: 990000 - Claúsulas Generales de Contratación para Riesgos Generales
A300: Condicionado General Multi-Riesgo Negocios.
A301: =+IF(G290="","","Cláusula para cubrir dinero en efectivo y o valores dentro del local asegurado, en Agregado por Vigencia.") -> 
A302: =+IF(G289="","","410003 - Cláusula de Dinero en Efectivo y Valores en Tránsito desde Oficinas del Asegurado.") -> 
A304: E. DEDUCIBLES (POR TODA Y CADA PÉRDIDA)
A306: Robo y/o Asalto de Activos y/o Existencias: 10.00 % del monto indemnizable, mínimo US$ 500 toda y cada pérdida.
A307: =+IF(G289="","","Dinero en Tránsito y Dinero en Caja Chica: 10% del monto indemnizable mínimo USD250.00") -> 
A309: F. CONDICIONES ESPECIALES APLICABLES ESTA SECCIÓN
A311: No se ampara los bienes que se encuentran en patios, jardines, terrazas, azoteas que no tengan más defensa que muros perimétricos o en vitrinas fijas o movibles que se hallen colocadas fuera del edificio o de los ámbitos que constituyen el lugar del seguro.
A314: No cubre almacenes de campo.
A316: G. GARANTÍAS APLICABLES ESTA SECCIÓN
A318: 1. Si la puerta es de una sola hoja, como mínimo dispondrá de una chapa sólida que se reforzará a su base o estará soldada a la misma; debe ser de no menos de 2 golpes. Adicionalmente, la puerta de reja deberá protegerse con dos (02) candados con media luna protectora de bronce o puente protector metálico. Si la puerta es de dos hojas; las medidas de seguridad serán las que se han mencionado, agregándole a la reja dos cerrojos verticales (uno al marco superior y otro al inferior) en cada hoja; en los que se colocarán un candado con media luna protectora de bronce.
A328: PROTECCIÓN PARA NEGOCIO
A331: CORTINAS ENROLLABLES
A332: 2. Cuando el local cuente con cortinas enrollables que den hacia la calle, se deberá cumplir con los siguientes requisitos: A. Cada una de las cortinas metálicas enrollables deberá contar como mínimo con dos (2) argollas de fierro ancladas al piso, las cuales se sujetarán interiormente a las cortinas metálicas con un candado media luna protectora de bronce. B. Si la cortina dispone de puerta chica, ésta deberá contar como mínimo con dos chapas de tres golpes o más, y adicionalmente dos candados protegidos con puente protector o media luna protectora de bronce: C. Los carriles de la cortina enrollable deben estar reforzados tanto por dentro como por fuera, con ángulos de fierro de no menos de 3 pulgadas de ancho y como mínimo 1.50 metros con respecto al nivel del suelo. Esta medida de seguridad no es necesario adoptarla si la cortina enrollable dispone de una sobre reja de fierro exteriormente.
... 236 more rows

Sheet DatosdelNegocioLocal1
AC5: TIPO | AD5: CATEG | AG5: Comercial | AH5: =IF(ISERROR(VLOOKUP(I8,$AC$6:$AE$36,2,0)),"",(VLOOKUP(I8,$AC$6:$AE$36,2,0))) -> 
G6: Actividad Realizada | AB6: 1 | AC6: AGENCIAS DE EMPLEO | AD6: C | AE6: =+AB6 -> 1 | AG6: Servicios | AH6: =IF(ISERROR(VLOOKUP(I8,$AC$6:$AE$36,3,0)),"",VLOOKUP(I8,$AC$6:$AE$36,3,0)) -> 
AB7: 2 | AC7: AGENCIAS DE PUBLICIDAD Y MARKETING | AD7: C | AE7: =+AB7 -> 2 | AG7: Comercial y Servicios
H8: Actividad y/o Giro: | I8: =IF(Cotizador!$D$54=0,"",Cotizador!$D$54) ->  | AB8: 3 | AC8: BAZARES | AD8: B | AE8: 3 | AG8: =IF(LEN(I8)>0,1,0)+IF(LEN(I16)>0,1,0)+IF(LEN(I12)>0,1,0) -> 1
AB9: 4 | AC9: BODEGAS / MINIMARKETS | AD9: A | AE9: 4
G10: Tipo de Negocio | AB10: 5 | AC10: CARNICERÍAS | AD10: A | AE10: 5
AB11: 6 | AC11: CLUBES, CENTROS DE ESPARCIMIENTO, CENTROS DEPORTIVOS. | AD11: C | AE11: 6
H12: Tipo: | I12: =IF(Cotizador!$D$62=0,"",Cotizador!$D$62) -> Comercial y Servicios | AB12: 7 | AC12: COLEGIOS, ACADEMIAS, INSTITUTOS, CENTROS DE ENSEÑANZA. | AD12: C | AE12: 7
AB13: 8 | AC13: CONSULTORIOS MÉDICOS | AD13: B | AE13: 8
G14: Uso del Local | AB14: 10 | AC14: FERRETERÍAS | AD14: B | AE14: 10
AB15: 11 | AC15: GIMNASIOS | AD15: C | AE15: 11
H16: Ocupación: | I16: =IF(Cotizador!$D$71=0,"",Cotizador!$D$71) ->  | AB16: 12 | AC16: HELADERÍAS (SÓLO VENTA) | AD16: A | AE16: 12
AB17: 13 | AC17: HOTELES Y HOSPEDAJES (DE 2 Y 3 ESTRELLAS) | AD17: A | AE17: 13
AB18: 14 | AC18: INSTITUCIONES RELIGIOSAS | AD18: C | AE18: 14
AB19: 15 | AC19: LAVANDERIAS | AD19: B | AE19: 15
AB20: 16 | AC20: LIBRERÍAS | AD20: B | AE20: 16
AB21: 17 | AC21: OFICINAS EN GENERAL | AD21: C | AE21: 17
AB22: 18 | AC22: ÓPTICAS | AD22: B | AE22: 18
AB23: 19 | AC23: PANADERÍAS Y PASTELERÍAS | AD23: A | AE23: 19
AB24: 20 | AC24: PELUQUERÍAS | AD24: C | AE24: 20
AB25: 21 | AC25: RESTAURANTES / NEGOCIOS DE COMIDA | AD25: A | AE25: 21
AB26: 22 | AC26: SALONES DE BELLEZA /SPA | AD26: C | AE26: 22
AB27: 23 | AC27: SERVICIOS FUNERARIOS | AD27: C | AE27: 23
AB28: 24 | AC28: TALLERES DE METAL MECÁNICA | AD28: B | AE28: 24
AB29: 25 | AC29: VENTA DE MAQUINARIA PESADA | AD29: B | AE29: 25
AB30: 26 | AC30: VENTA ARTÍCULOS DE LIMPIEZA PARA EL HOGAR | AD30: B | AE30: 26
AB31: 27 | AC31: VENTA DE ACCESORIOS (EXCEPTO JOYAS, PIEDRAS PRECIOSAS, CELULARES Y COMPUTADORAS) | AD31: B | AE31: 27
AB32: 28 | AC32: VENTA DE ROPA Y VENTA DE TEXTILES (NO FÁBRICA) | AD32: B | AE32: 28
AB33: 29 | AC33: VENTA DE VÍVERES EN GENERAL | AD33: B | AE33: 29
AB34: 30 | AC34: VETERINARIAS | AD34: C | AE34: 30
AB35: 31 | AC35: ZAPATERÍAS (SOLO VENTA) | AD35: B | AE35: 31
AB36: 32 | AC36: OTROS | AD36: C | AE36: 1

Sheet DatosdelNegocioLocal2
AC5: TIPO | AD5: CATEG | AG5: Comercial | AH5: =IF(ISERROR(VLOOKUP(I8,$AC$6:$AE$36,2,0)),"",(VLOOKUP(I8,$AC$6:$AE$36,2,0))) -> 
G6: Actividad Realizada | AB6: 1 | AC6: AGENCIAS DE EMPLEO | AD6: C | AE6: =+AB6 -> 1 | AG6: Servicios | AH6: =IF(ISERROR(VLOOKUP(I8,$AC$6:$AE$36,3,0)),"",VLOOKUP(I8,$AC$6:$AE$36,3,0)) -> 
AB7: 2 | AC7: AGENCIAS DE PUBLICIDAD Y MARKETING | AD7: C | AE7: =+AB7 -> 2 | AG7: Comercial y Servicios
H8: Actividad y/o Giro: | I8: =IF(Cotizador!$D$56=0,"",Cotizador!$D$56) ->  | AB8: 3 | AC8: BAZARES | AD8: B | AE8: 3 | AG8: =IF(LEN(I8)>0,1,0)+IF(LEN(I16)>0,1,0)+IF(LEN(I12)>0,1,0) -> 1
AB9: 4 | AC9: BODEGAS / MINIMARKETS | AD9: A | AE9: 4
G10: Tipo de Negocio | AB10: 5 | AC10: CARNICERÍAS | AD10: A | AE10: 5
AB11: 6 | AC11: CLUBES, CENTROS DE ESPARCIMIENTO, CENTROS DEPORTIVOS. | AD11: C | AE11: 6
H12: Tipo: | I12: =IF(Cotizador!$D$64=0,"",Cotizador!$D$64) -> Comercial y Servicios | AB12: 7 | AC12: COLEGIOS, ACADEMIAS, INSTITUTOS, CENTROS DE ENSEÑANZA. | AD12: C | AE12: 7
AB13: 8 | AC13: CONSULTORIOS MÉDICOS | AD13: B | AE13: 8
G14: Uso del Local | AB14: 10 | AC14: FERRETERÍAS | AD14: B | AE14: 10
AB15: 11 | AC15: GIMNASIOS | AD15: C | AE15: 11
H16: Ocupación: | I16: =IF(Cotizador!$D$73=0,"",Cotizador!$D$73) ->  | AB16: 12 | AC16: HELADERÍAS (SÓLO VENTA) | AD16: A | AE16: 12
AB17: 13 | AC17: HOTELES Y HOSPEDAJES (DE 2 Y 3 ESTRELLAS) | AD17: A | AE17: 13
AB18: 14 | AC18: INSTITUCIONES RELIGIOSAS | AD18: C | AE18: 14
AB19: 15 | AC19: LAVANDERIAS | AD19: B | AE19: 15
AB20: 16 | AC20: LIBRERÍAS | AD20: B | AE20: 16
AB21: 17 | AC21: OFICINAS EN GENERAL | AD21: C | AE21: 17
AB22: 18 | AC22: ÓPTICAS | AD22: B | AE22: 18
AB23: 19 | AC23: PANADERÍAS Y PASTELERÍAS | AD23: A | AE23: 19
AB24: 20 | AC24: PELUQUERÍAS | AD24: C | AE24: 20
AB25: 21 | AC25: RESTAURANTES / NEGOCIOS DE COMIDA | AD25: A | AE25: 21
AB26: 22 | AC26: SALONES DE BELLEZA /SPA | AD26: C | AE26: 22
AB27: 23 | AC27: SERVICIOS FUNERARIOS | AD27: C | AE27: 23
AB28: 24 | AC28: TALLERES DE METAL MECÁNICA | AD28: B | AE28: 24
AB29: 25 | AC29: VENTA DE MAQUINARIA PESADA | AD29: B | AE29: 25
AB30: 26 | AC30: VENTA ARTÍCULOS DE LIMPIEZA PARA EL HOGAR | AD30: B | AE30: 26
AB31: 27 | AC31: VENTA DE ACCESORIOS (EXCEPTO JOYAS, PIEDRAS PRECIOSAS, CELULARES Y COMPUTADORAS) | AD31: B | AE31: 27
AB32: 28 | AC32: VENTA DE ROPA Y VENTA DE TEXTILES (NO FÁBRICA) | AD32: B | AE32: 28
AB33: 29 | AC33: VENTA DE VÍVERES EN GENERAL | AD33: B | AE33: 29
AB34: 30 | AC34: VETERINARIAS | AD34: C | AE34: 30
AB35: 31 | AC35: ZAPATERÍAS (SOLO VENTA) | AD35: B | AE35: 31
AB36: 32 | AC36: OTROS | AD36: C | AE36: 1

Sheet DatosdelNegocioLocal3
AC5: TIPO | AD5: CATEG | AG5: Comercial | AH5: =IF(ISERROR(VLOOKUP(I8,$AC$6:$AE$36,2,0)),"",(VLOOKUP(I8,$AC$6:$AE$36,2,0))) -> 
G6: Actividad Realizada | AB6: 1 | AC6: AGENCIAS DE EMPLEO | AD6: C | AE6: =+AB6 -> 1 | AG6: Servicios | AH6: =IF(ISERROR(VLOOKUP(I8,$AC$6:$AE$36,3,0)),"",VLOOKUP(I8,$AC$6:$AE$36,3,0)) -> 
AB7: 2 | AC7: AGENCIAS DE PUBLICIDAD Y MARKETING | AD7: C | AE7: =+AB7 -> 2 | AG7: Comercial y Servicios
H8: Actividad y/o Giro: | I8: =IF(Cotizador!$D$58=0,"",Cotizador!$D$58) ->  | AB8: 3 | AC8: BAZARES | AD8: B | AE8: 3 | AG8: =IF(LEN(I8)>0,1,0)+IF(LEN(I16)>0,1,0)+IF(LEN(I12)>0,1,0) -> 1
AB9: 4 | AC9: BODEGAS / MINIMARKETS | AD9: A | AE9: 4
G10: Tipo de Negocio | AB10: 5 | AC10: CARNICERÍAS | AD10: A | AE10: 5
AB11: 6 | AC11: CLUBES, CENTROS DE ESPARCIMIENTO, CENTROS DEPORTIVOS. | AD11: C | AE11: 6
H12: Tipo: | I12: =IF(Cotizador!$D$66=0,"",Cotizador!$D$66) -> Comercial y Servicios | AB12: 7 | AC12: COLEGIOS, ACADEMIAS, INSTITUTOS, CENTROS DE ENSEÑANZA. | AD12: C | AE12: 7
AB13: 8 | AC13: CONSULTORIOS MÉDICOS | AD13: B | AE13: 8
G14: Uso del Local | AB14: 10 | AC14: FERRETERÍAS | AD14: B | AE14: 10
AB15: 11 | AC15: GIMNASIOS | AD15: C | AE15: 11
H16: Ocupación: | I16: =IF(Cotizador!$D$75=0,"",Cotizador!$D$75) ->  | AB16: 12 | AC16: HELADERÍAS (SÓLO VENTA) | AD16: A | AE16: 12
AB17: 13 | AC17: HOTELES Y HOSPEDAJES (DE 2 Y 3 ESTRELLAS) | AD17: A | AE17: 13
AB18: 14 | AC18: INSTITUCIONES RELIGIOSAS | AD18: C | AE18: 14
AB19: 15 | AC19: LAVANDERIAS | AD19: B | AE19: 15
AB20: 16 | AC20: LIBRERÍAS | AD20: B | AE20: 16
AB21: 17 | AC21: OFICINAS EN GENERAL | AD21: C | AE21: 17
AB22: 18 | AC22: ÓPTICAS | AD22: B | AE22: 18
AB23: 19 | AC23: PANADERÍAS Y PASTELERÍAS | AD23: A | AE23: 19
AB24: 20 | AC24: PELUQUERÍAS | AD24: C | AE24: 20
AB25: 21 | AC25: RESTAURANTES / NEGOCIOS DE COMIDA | AD25: A | AE25: 21
AB26: 22 | AC26: SALONES DE BELLEZA /SPA | AD26: C | AE26: 22
AB27: 23 | AC27: SERVICIOS FUNERARIOS | AD27: C | AE27: 23
AB28: 24 | AC28: TALLERES DE METAL MECÁNICA | AD28: B | AE28: 24
AB29: 25 | AC29: VENTA DE MAQUINARIA PESADA | AD29: B | AE29: 25
AB30: 26 | AC30: VENTA ARTÍCULOS DE LIMPIEZA PARA EL HOGAR | AD30: B | AE30: 26
AB31: 27 | AC31: VENTA DE ACCESORIOS (EXCEPTO JOYAS, PIEDRAS PRECIOSAS, CELULARES Y COMPUTADORAS) | AD31: B | AE31: 27
AB32: 28 | AC32: VENTA DE ROPA Y VENTA DE TEXTILES (NO FÁBRICA) | AD32: B | AE32: 28
AB33: 29 | AC33: VENTA DE VÍVERES EN GENERAL | AD33: B | AE33: 29
AB34: 30 | AC34: VETERINARIAS | AD34: C | AE34: 30
AB35: 31 | AC35: ZAPATERÍAS (SOLO VENTA) | AD35: B | AE35: 31
AB36: 32 | AC36: OTROS | AD36: C | AE36: 1
